{"text_format":"1","workbook":"xlsx","n_sheets":6,"sheets":["legenda","QUEST PROFILATURA CLIENTI","calcolo","Domande Controllo","STAMPA","-"],"not_rendered":{"charts":0,"images":27,"macros":1,"external_links":0,"defined_names":1,"comments":0,"pivot_tables":0},"unopened":[],"bounds":{"document_bytes":16777216,"sheet_cells":100000,"rows_first":2000,"rows_last":500,"rows_between":2000,"halvings":0,"cell_chars":16384,"cell_head_chars":4096},"cells_cut":0,"cells_raw":0,"read":"whole","date_system":"1900"}

{"sheet":"legenda","index":0,"n_rows":46,"n_cols":8,"rows_kept":46,"cut":false,"hidden":false,"merged":[[56,0,56,7],[57,0,57,7],[7,0,7,7],[11,0,11,7],[12,0,12,7],[20,0,20,7],[21,0,21,7],[22,0,22,7],[51,0,51,7],[46,0,46,7],[42,0,42,7],[43,0,43,7],[52,0,52,7],[53,0,53,7],[54,0,54,7],[49,0,49,7],[50,0,50,7],[40,0,40,7],[41,0,41,7],[55,0,55,7],[44,0,44,7],[45,0,45,7],[47,0,47,7],[48,0,48,7],[39,0,39,7],[35,0,35,7],[36,0,36,7],[30,0,30,7],[37,0,37,7],[38,0,38,7],[31,0,31,7],[32,0,32,7],[33,0,33,7],[34,0,34,7],[29,0,29,7],[9,0,9,7],[28,0,28,7],[10,0,10,7],[27,0,27,7],[4,0,4,7],[23,0,23,7],[0,0,0,7],[2,0,2,7],[3,0,3,7],[5,0,5,7],[6,0,6,7],[8,0,8,7],[15,3,15,6]]}
["LEGENDA"]
[]
["INTRODUZIONE"]
["Il presente questionario è composto in tre distinte sezioni: 1) ESPERIENZA FINANZIARIA e CONOSCENZA,  2) SITUAZIONE FINANZIARIA E PROSPETTIVE, 3) ASEPTTATIVE, OBIETTIVI e RISCHIO. Ogni sezione attibuisce un profilo di rischio specifico attraverso domande con pesi differenti al fine di  valutare nel modo più oggettivo possibile il grado di rischio effettivamente sostenibile dal cliente."]
["Il lavoro nel suo complesso è ispirato ad un puntuale e rigoroso rispetto dei principi legislativi espressi in tutte le nuove normative, compresa Mifid2."]
["La compilazione del questionario prevede il semplice inserimento di una x nelle celle di risposta alle domande. Ai quesiti va data un'unica risposta, tranne che i quesiti che indicano la dicitura \"risposta multipla\". Il sistema comprende un meccanismo di controllo che, in caso di non corretto inserimento, avvisa l'utente con la dicitura in rosso \"Controlla Risposta\". Si suggerisce di stampare e far firmare ogni pagina, oltre che dell'output \"STAMPA\", anche del questionario di immissione dati. Su entrambi i file vengono indicati automaticamente a piè di pagina: data, pagina ed ora di stampa."]
[]
["PROFILI DI RISCHIO","PROFILI DI RISCHIO"]
["Sono stati presi in considerazione 4 distinti profili di rischio relativi a portafogli con VaR differenti. La definizione di VaR adottata è descritta più sotto."]
["I profili sono individuati ciascuno attraverso un distinto valore numerico e nell'output vengono evidenziati i punteggi relativi a tutti i profili: in questo modo è possibile cogliere le sfumature o, viceversa, l'eventuale perentorietà nel risultato finale."]
["In ogni modo, soprattutto nella terza sezione (aspettative, obiettivi, rischio), sarà cura del consulente evidenziare al cliente eventuali risposte non logiche o non coerenti che potrebbero far scadere la bontà del risultato finale."]
["Quasi tutte le domande, prevedono valori crescenti di rischio (e quindi vengono loro attribuiti punteggi decrescenti rispetto il profilo 1 e crescenti rispetto al profilo 4)."]
["Esempio: domanda B5. L'attuale tenore di vita dipende dall'utilizzo dei flussi generati dagli investimenti finanziari?"]
[]
[null,null,"moltiplicatori","profilo 1","profilo 2","profilo 3","profilo 4"]
[null,null,2.5,"Dipendenza tenore di vita da flussi"]
[null,"a) sì, utilizzo tutti i redditi derivanti dai miei investimenti per mantenere il mio tenore di vita.",1,100,80,20,0]
[null,"b) sì, utilizzo fino al 50% dei redditi derivanti dai miei investimenti per mantenere inalterato il mio tenore di vita",1,80,60,40,20]
[null,"c) no, non utilizzo questi redditi per mantenere costante il mio tenore di vita",0.8,20,35,55,90]
[]
["In caso di risposta a) per il profilo 2 vengono attribuiti 2 punti: il valore 80 è moltiplicato per un primo moltiplicatore (1) e poi per un secondo (2,5). Il tutto viene poi diviso per 100: 80x1x2,5/100=2."]
["L'uso di diversi moltiplicatori consente di ottenere maggiore precisione e flessibilità del risultato finale, commisurato così anche all'importanza delle altre domande della sezione."]
[]
[]
[]
[]
[]
["COMMENTI SU PESI E MOLTIPLICATORI"]
["La sezione con maggiore peso sull'output finale è la C: infatti le prime due sezioni pesano sul risultato finale per il 25% cadauna, la C per il 50%.  "]
[]
[]
["VaR","Profilo di Rischio","Profilo di Rischio","Profilo di Rischio","Profilo di Rischio","Profilo di Rischio","Profilo di Rischio","Profilo di Rischio"]
["Il nostro applicativo software permette di calcolare il Value at Risk di un portafoglio titoli (obbligazioni, azioni, fondi) su un predefinito orizzonte temporale."]
["Il Value at Risk (VaR) è una misura statistica delle possibili perdite in cui può incorrere un portafoglio da oggi fino ad un orizzonte temporale prestabilito. Più correttamente, fissata una probabilità a (equivalentemente un grado di confidenza 1-a ) e un orizzonte temporale h, il VaR fornisce una misura della perdita massima del portafoglio da oggi a h , a quel grado di confidenza."]
["In altre parole, ci si aspetta che il portafoglio subisca perdite superiori a VaR nel a% dei casi."]
["Fissato ad esempio a pari allo 0.01 (1-a =99%) e h pari a 1 giorno; se VaR è pari a 1000 Euro, ci si aspetta che la perdità da oggi a domani possa superare 1000 Euro solo con una probabilità del 1% ."]
["Con il nostro applicativo è possibile inserire la data di valutazione di riferimento e l'orizzonte temporale considerato (Holding Period), espresso in numero di giorni. Nel campo Grado di Confidenza Stima VaR il nostro programma valorizza per default 99%: l'utente ha facoltà di variare a piacere tale valore. E' possibile inoltre selezionare la lunghezza delle serie storiche sulla quale l'applicativo calcola le matrici di varianza/covarianza (il defaul è 1 anno)."]
["L’appplicazione calcola il valore del VaR giornaliero, del VaR periodale , e la volatilità dei singoli titoli e del portafoglio nel suo complesso. Inoltre  viene calcolato il contributo percentuale al VaR di ogni singola posizione; tale contributo, noto anche come Component VaR(%), rappresenta una suddivisione del VaR che indica approssimativamente di quanto varierebbe (in termini percentuali) il VaR del portafoglio se venisse chiusa (eliminandola completamente dal portafoglio o trasformandola in cash) la posizione a cui il contributo fa riferimento. In altre parole il component VaR è un indicatore del contributo percentuale al VaR totale di ogni singola posizione, correttamente normalizzato a 100; si tratta di una approssimazione molto buona se il controvalore delle posizione è abbastanza piccolo rispetto al controvalore totale del portafoglio."]
["L'approccio teorico utilizzato per la valorizzazione del VaR si basa sul calcolo delle matrici di varianza e covarianza dei rendimenti dei titoli, utilizzando una media mobile, sul periodo scelto, equipesata. L'ipotesi sottostante è quella di Normalità dei rendimenti giornalieri, a media nulla. In questo approccio, il valore di Var fornito rappresenta una stima della massima perdita inattesa del portafoglio al grado di confidenza fissato."]
["Normalmente la volatilità dei titoli (azioni e fondi, indici) è calcolata utilizzando un anno di dati (circa 252-256 osservazioni)."]
["Nell'attuale release dell'applicativo, in caso di serie storiche (azioni/fondi) più brevi rispetto al periodo selezionato, i dati mancanti vengono completati utilizzando il seguente criterio:"]
["- se la serie storica del titolo è più breve di un mese di calendario, l'applicativo esclude il titolo dal calcolo del Var."]
["- se il periodo di dati disponibili è superiore al mese l'applicativo calcola dapprima i rendimenti corrispondenti e, in seguito, proietta tali valori \"all'indietro\" su tutto il \"Periodo Serie\" considerato per il calcolo del Var. Questo assicura che il valore della volatilità ottenuto per il titolo sia conforme a quello che si otterrebbe lavorando sui soli dati disponibili."]
["Il problema del prolungamento all'indietro delle serie storiche non sussiste per i titoli obbligazionari, i cui rendimenti sono mappati sui rendimenti delle curve zero coupon di riferimento (Euribor,....). Questo implica che la volatilità che compare nell'ultima colonna del modulo non è la volatilità storica del titolo obbligazionario , ma è legata alla volatilità delle variazioni dei tassi ZC."]
["Nel caso di titoli in valuta non Euro, l'applicativo tiene conto anche del rischio di cambio"]
["Il VaR periodale è legato al VaR giornaliero dalla relazione Var (h )= Var (giornaliero) * Radice(h) : è la stima della massima perdita del portafoglio dalla data di inizio valutazione fino all'orizzonte h . "]

{"sheet":"QUEST PROFILATURA CLIENTI","index":1,"n_rows":569,"n_cols":13,"rows_kept":569,"cut":false,"hidden":false,"merged":[[539,0,540,10],[549,0,549,9],[544,0,544,9],[535,2,535,9],[530,2,530,9],[532,2,532,9],[533,2,533,9],[534,2,534,9],[526,2,526,9],[527,2,527,9],[528,2,528,9],[529,2,529,9],[524,2,524,9],[525,2,525,9],[517,2,517,9],[518,2,518,9],[519,2,519,9],[520,2,520,9],[513,2,513,9],[514,2,514,9],[515,2,515,9],[511,2,511,9],[512,2,512,9],[504,2,504,9],[505,2,505,9],[506,2,506,9],[507,2,507,9],[502,2,502,9],[521,2,521,9],[523,2,523,9],[508,2,508,9],[509,2,509,9],[488,2,488,9],[489,2,489,9],[490,2,490,9],[491,2,491,9],[495,2,495,9],[496,2,496,9],[497,2,497,9],[498,2,498,9],[494,2,494,9],[445,15,445,18],[446,2,446,9],[447,2,447,9],[448,2,448,9],[449,2,449,9],[451,2,451,9],[468,2,468,9],[470,2,470,9],[471,2,471,9],[464,2,464,9],[465,2,465,9],[466,2,466,9],[467,2,467,9],[459,2,459,9],[460,2,460,9],[461,2,461,9],[462,2,462,9],[445,2,445,9],[480,2,480,9],[481,2,481,9],[482,2,482,9],[474,2,474,9],[439,2,439,9],[440,2,440,9],[441,2,441,9],[442,2,442,9],[487,2,487,9],[444,2,444,9],[486,2,486,9],[452,2,452,9],[453,2,453,9],[454,2,454,9],[455,2,455,9],[456,2,456,9],[458,2,458,9],[472,2,472,9],[483,2,483,9],[484,2,484,9],[475,2,475,9],[476,2,476,9],[477,2,477,9],[478,2,478,9],[434,2,434,9],[435,2,435,9],[436,2,436,9],[437,2,437,9],[438,2,438,9],[429,2,429,9],[430,2,430,9],[431,2,431,9],[432,2,432,9],[433,2,433,9],[427,2,427,9],[428,2,428,9],[418,2,418,9],[419,2,419,9],[420,2,420,9],[421,2,421,9],[422,2,422,9],[425,2,425,9],[413,2,413,9],[414,2,414,9],[415,2,415,9],[417,2,417,9],[408,2,408,9],[409,2,409,9],[411,2,411,9],[412,2,412,9],[403,2,403,9],[405,2,405,9],[406,2,406,9],[407,2,407,9],[398,15,398,18],[399,2,399,9],[400,2,400,9],[401,2,401,9],[402,2,402,9],[393,2,393,9],[394,2,394,9],[395,2,395,9],[396,2,396,9],[398,2,398,9],[388,2,388,9],[389,2,389,9],[390,2,390,9],[391,15,391,18],[392,2,392,9],[392,15,392,18],[383,2,383,9],[384,2,384,9],[385,2,385,9],[387,2,387,9],[378,2,378,9],[379,2,379,9],[380,2,380,9],[382,2,382,9],[374,2,374,9],[375,2,375,9],[376,2,376,9],[377,2,377,9],[370,2,370,9],[371,2,371,9],[372,2,372,9],[373,2,373,9],[365,2,365,9],[366,2,366,9],[367,2,367,9],[368,2,368,9],[363,2,363,9],[359,2,359,9],[360,2,360,9],[356,2,356,9],[357,2,357,9],[358,2,358,9],[349,3,349,10],[350,3,350,10],[351,3,351,10],[352,3,352,10],[355,2,355,9],[343,3,343,10],[344,3,344,10],[345,3,345,10],[346,3,346,10],[348,3,348,10],[337,3,337,10],[338,3,338,10],[339,3,339,10],[340,3,340,10],[342,3,342,10],[330,3,330,10],[331,3,331,10],[332,3,332,10],[335,2,335,9],[336,3,336,10],[325,3,325,10],[326,3,326,10],[328,3,328,10],[329,3,329,10],[320,3,320,10],[322,3,322,10],[323,3,323,10],[324,3,324,10],[316,3,316,10],[317,3,317,10],[318,3,318,10],[319,3,319,10],[309,3,309,10],[310,3,310,10],[311,3,311,10],[312,3,312,10],[315,2,315,9],[303,3,303,10],[304,3,304,10],[305,3,305,10],[306,3,306,10],[308,3,308,10],[297,3,297,10],[298,3,298,10],[299,3,299,10],[300,3,300,10],[302,3,302,10],[290,3,290,10],[291,3,291,10],[292,3,292,10],[295,2,295,9],[296,3,296,10],[285,3,285,10],[286,3,286,10],[288,3,288,10],[289,3,289,10],[280,3,280,10],[282,3,282,10],[283,3,283,10],[284,3,284,10],[276,3,276,10],[277,3,277,10],[278,3,278,10],[279,3,279,10],[269,3,269,10],[270,3,270,10],[271,3,271,10],[272,3,272,10],[275,2,275,9],[263,3,263,10],[264,3,264,10],[265,3,265,10],[266,3,266,10],[268,3,268,10],[257,3,257,10],[258,3,258,10],[259,3,259,10],[260,3,260,10],[262,3,262,10],[250,3,250,10],[251,3,251,10],[252,3,252,10],[255,2,255,9],[256,3,256,10],[245,3,245,10],[246,3,246,10],[248,3,248,10],[249,3,249,10],[240,3,240,10],[242,3,242,10],[243,3,243,10],[244,3,244,10],[236,3,236,10],[237,3,237,10],[238,3,238,10],[239,3,239,10],[229,3,229,10],[230,3,230,10],[231,3,231,10],[232,3,232,10],[235,2,235,9],[223,3,223,10],[224,3,224,10],[225,3,225,10],[226,3,226,10],[228,3,228,10],[217,3,217,10],[218,3,218,10],[219,3,219,10],[220,3,220,10],[222,3,222,10],[211,3,211,10],[212,3,212,10],[215,2,215,9],[216,3,216,10],[206,3,206,10],[208,3,208,10],[209,3,209,10],[210,3,210,10],[202,3,202,10],[203,3,203,10],[204,3,204,10],[205,3,205,10],[197,3,197,10],[198,3,198,10],[199,3,199,10],[200,3,200,10],[189,3,189,10],[190,3,190,10],[191,3,191,10],[192,3,192,10],[195,2,195,9],[196,3,196,10],[183,3,183,10],[184,3,184,10],[185,3,185,10],[186,3,186,10],[188,3,188,10],[177,3,177,10],[178,3,178,10],[179,3,179,10],[180,3,180,10],[182,3,182,10],[160,2,160,9],[163,3,163,9],[164,3,164,9],[165,3,165,9],[166,3,166,9],[168,3,168,9],[174,2,174,9],[175,2,175,9],[176,3,176,10],[173,2,173,9],[169,3,169,9],[170,3,170,9],[171,3,171,9],[76,2,76,9],[77,3,77,9],[110,3,110,9],[111,3,111,9],[91,3,91,9],[93,3,93,9],[78,3,78,9],[79,3,79,9],[80,3,80,9],[82,3,82,9],[83,3,83,9],[84,3,84,9],[85,3,85,9],[89,2,89,9],[90,3,90,9],[64,3,64,9],[65,3,65,9],[66,3,66,9],[67,3,67,9],[69,3,69,9],[70,3,70,9],[71,3,71,9],[72,3,72,9],[63,2,63,9],[1,1,1,10],[0,1,0,10],[28,2,28,9],[53,2,53,9],[54,2,54,9],[55,2,55,9],[56,2,56,9],[49,2,49,9],[50,2,50,9],[51,2,51,9],[52,2,52,9],[42,2,42,9],[43,2,43,9],[44,2,44,9],[45,2,45,9],[46,2,46,9],[47,2,47,9],[39,2,39,9],[4,2,4,10],[5,2,5,4],[7,2,7,9],[8,2,8,9],[9,2,9,9],[10,2,10,9],[115,2,115,9],[116,3,116,9],[117,3,117,9],[2,2,2,10],[3,2,3,10],[3,12,3,14],[18,2,18,9],[20,2,20,9],[21,2,21,9],[22,2,22,9],[11,2,11,9],[13,2,13,9],[14,2,14,9],[15,2,15,9],[16,2,16,9],[17,2,17,9],[60,2,60,9],[61,2,61,9],[74,2,74,9],[87,2,87,9],[105,2,105,9],[113,2,113,9],[57,2,57,9],[59,2,59,9],[36,2,36,9],[37,2,37,9],[41,2,41,9],[30,2,30,9],[31,2,31,9],[32,2,32,9],[33,2,33,9],[35,2,35,9],[23,2,23,9],[24,2,24,9],[25,2,25,9],[26,2,26,9],[27,2,27,9],[130,3,130,9],[131,3,131,9],[132,3,132,9],[134,3,134,9],[135,3,135,9],[136,3,136,9],[137,3,137,9],[565,0,565,9],[141,2,141,9],[142,3,142,9],[143,3,143,9],[152,3,152,9],[153,3,153,9],[155,3,155,9],[156,3,156,9],[144,3,144,9],[145,3,145,9],[149,2,149,9],[150,3,150,9],[151,3,151,9],[147,2,147,9],[157,3,157,9],[158,3,158,9],[162,2,162,9],[554,0,554,9],[560,0,560,9],[109,3,109,9],[95,3,95,9],[96,3,96,9],[98,3,98,9],[92,3,92,9],[97,3,97,9],[100,3,100,9],[101,3,101,9],[102,3,102,9],[103,3,103,9],[107,2,107,9],[108,3,108,9],[118,3,118,9],[119,3,119,9],[121,3,121,9],[122,3,122,9],[126,2,126,9],[139,2,139,9],[128,2,128,9],[123,3,123,9],[124,3,124,9],[129,3,129,9]]}
[null,"Questionario finanziario, valutazione di adeguatezza"]
[null,"CFA SCF"]
[null,1,"DATI ANAGRAFICI "]
[null,null,"CFA SCF",null,null,null,null,null,null,null,null,null,"inserire una x nelle caselle"]
[null,null,"xx/xx/xxxx"]
[null,null,"codice fiscale"]
[]
[null,2,"TITOLARITA' DEL PATRIMONIO OGGETTO DI CONSULENZA",null,null,null,null,null,null,null,null,null,{"$f":"+IF(COUNTA(L9:L12)=0,\"Rispondi alla domanda\",IF(COUNTA(L9:L12)>1,\"Controlla Risposta\",\"ok\"))","v":"Rispondi alla domanda"}]
[null,null,"il patrimonio finanziario è di mia esclusiva proprietà "]
[null,null,"il patrimonio finanziario è di mia proprietà e del mio coniuge"]
[null,null,"sono comproprietario del patrimonio finanziario con uno o più familiari"]
[null,null,"il patrimonio finanziario appartiene ad uno o più familiari cui presto assistenza nella gestione"]
[]
[null,null,"INFORMAZIONI RIGUARDO AL/AI SOGGETTO/I CUI APPARTIENE IL PATRIMONIO FINANZIARIO, AL/AI SOGGETTO/I CHE INTRATTENGONO IL RAPPORTO DI CONSULENZA "]
[]
[]
[]
[]
[]
[]
[null,null,"STATO CIVILE",null,null,null,null,null,null,null,null,null,{"$f":"+IF(COUNTA(L22:L29)=0,\"Rispondi alla domanda\",IF(COUNTA(L22:L29)>1,\"Controlla Risposta\",\"ok\"))","v":"Rispondi alla domanda"}]
[null,null,"Coniugato in regime non conosciuto"]
[null,null,"Vedova/o"]
[null,null,"Non coniugato"]
[null,null,"Coniugato in regime di comunione legale"]
[null,null,"Coniugato in regime di comunione convenzionale"]
[null,null,"Coniugato in regime di separazione dei beni"]
[null,null,"Separato/divorziato"]
[null,null,"Altro"]
[]
[null,null,"COMPOSIZIONE DELLA FAMIGLIA"]
[null,null,"Numero Componenti nucleo familiare"]
[null,null,"Numero Percettori di reddito"]
[null,null,"Numero di Persone a carico"]
[]
[null,null,"ABITAZIONE PRINCIPALE",null,null,null,null,null,null,null,null,null,{"$f":"+IF(COUNTA(L37:L38)=0,\"Rispondi alla domanda\",IF(COUNTA(L37:L38)>1,\"Controlla Risposta\",\"ok\"))","v":"Rispondi alla domanda"}]
[null,null,"a) in affitto"]
[null,null,"b) casa di proprietà"]
[]
[null,"A)","CONOSCENZA ed ESPERIENZA"]
[]
[null,"A.1)","ATTIVITA' PROFESSIONALE",null,null,null,null,null,null,null,null,null,{"$f":"+IF(COUNTA(L43:L48)=0,\"Rispondi alla domanda\",IF(COUNTA(L43:L48)>1,\"Controlla Risposta\",\"ok\"))","v":"Rispondi alla domanda"}]
[null,null,"a) non occupato"]
[null,null,"b) occupato con contratto temporaneo"]
[null,null,"c) pensionato"]
[null,null,"d) occupato con contratto a tempo indeterminato"]
[null,null,"e) autonomo / professionista"]
[null,null,"f) imprenditore"]
[]
[null,"A.2)","LAVORA O HA MAI LAVORATO NEL SETTORE DELLA FINANZA O IN AZIENDE CON COMPITI CHE PRESUPPONGONO COMPETENZE SPECIFICHE INERENTI IL CAMPO FINANZIARIO?",null,null,null,null,null,null,null,null,null,{"$f":"+IF(COUNTA(L51:L52)=0,\"Rispondi alla domanda\",IF(COUNTA(L51:L52)>1,\"Controlla Risposta\",\"ok\"))","v":"Rispondi alla domanda"}]
[null,null,"a) no"]
[null,null,"b) sì"]
[]
[null,"A.3)","TITOLO DI STUDIO",null,null,null,null,null,null,null,null,null,{"$f":"+IF(COUNTA(L55:L58)=0,\"Rispondi alla domanda\",IF(COUNTA(L55:L58)>1,\"Controlla Risposta\",\"ok\"))","v":"Rispondi alla domanda"}]
[null,null,"a) licenza elementare"]
[null,null,"b) licenza media"]
[null,null,"c) diploma scuola superiore"]
[null,null,"d) laurea"]
[]
[null,"A.4)","DI QUALI STRUMENTI HA CONOSCENZA?",null,null,null,null,null,null,null,null,null,"Risposta multipla"]
[null,null,"a) nessuno"]
[null,null,"b) titoli di stato; obbligazioni (plain vanilla o semplici) area euro e valuta euro "]
[]
[null,null,"Rispondi ad almeno una di queste domande:"]
[null,null,null,{"$f":"+VLOOKUP(\"57p1\",'Domande Controllo'!C:H,2,0)","v":"All'aumentare dei tassi di mercato sulla stessa scadenza di un'obbligazione, il prezzo dell'obbligazione"},null,null,null,null,null,null,null,null,{"$f":"+IF(COUNTA(L66:L68)=0,\"Rispondi alla domanda\",IF(COUNTA(L66:L68)>1,\"Controlla Risposta\",IF(MATCH(\"x\",L66:L68)='Domande Controllo'!H2,\"ok\",\"!! risposta sbagliata !!\")))","v":"Rispondi alla domanda"}]
[null,null,null,{"$f":"+VLOOKUP(\"57p1\",'Domande Controllo'!C:H,3,0)","v":"a) aumenta"}]
[null,null,null,{"$f":"+VLOOKUP(\"57p1\",'Domande Controllo'!C:H,4,0)","v":"b) diminuisce"}]
[null,null,null,{"$f":"+VLOOKUP(\"57p1\",'Domande Controllo'!C:H,5,0)","v":"c) le due cose non sono collegate"}]
[]
[null,null,null,{"$f":"+VLOOKUP(\"57p2\",'Domande Controllo'!C:H,2,0)","v":"Investire denaro in un Titolo di Stato decennale in scadenza tra 6 mesi è da considerarsi un investimento"},null,null,null,null,null,null,null,null,{"$f":"+IF(COUNTA(L71:L73)=0,\"Rispondi alla domanda\",IF(COUNTA(L71:L73)>1,\"Controlla Risposta\",IF(MATCH(\"x\",L71:L73)='Domande Controllo'!H3,\"ok\",\"!! risposta sbagliata !!\")))","v":"Rispondi alla domanda"}]
[null,null,null,{"$f":"+VLOOKUP(\"57p2\",'Domande Controllo'!C:H,3,0)","v":"a) a medio rischio"}]
[null,null,null,{"$f":"+VLOOKUP(\"57p2\",'Domande Controllo'!C:H,4,0)","v":"b) a basso rischio"}]
[null,null,null,{"$f":"+VLOOKUP(\"57p2\",'Domande Controllo'!C:H,5,0)","v":"c) ad alto rischio"}]
[]
[null,null,"c) titoli di stato e obbligazioni ordinarie in valuta non euro"]
[]
[null,null,"Rispondi ad almeno una di queste domande:"]
[null,null,null,{"$f":"+VLOOKUP(\"58p1\",'Domande Controllo'!C:H,2,0)","v":"Il rendimento di una obbligazione in valuta estera"},null,null,null,null,null,null,null,null,{"$f":"+IF(COUNTA(L79:L81)=0,\"Rispondi alla domanda\",IF(COUNTA(L79:L81)>1,\"Controlla Risposta\",IF(MATCH(\"x\",L79:L81)='Domande Controllo'!H4,\"ok\",\"!! risposta sbagliata !!\")))","v":"Rispondi alla domanda"}]
[null,null,null,{"$f":"+VLOOKUP(\"58p1\",'Domande Controllo'!C:H,3,0)","v":"a) dipende dai tassi di interesse e dall’andamento del cambio della valuta"}]
[null,null,null,{"$f":"+VLOOKUP(\"58p1\",'Domande Controllo'!C:H,4,0)","v":"b) dipende solo dal tasso di interesse"}]
[null,null,null,{"$f":"+VLOOKUP(\"58p1\",'Domande Controllo'!C:H,5,0)","v":"c) non dipende dall’andamento della valuta"}]
[]
[null,null,null,{"$f":"+VLOOKUP(\"58p2\",'Domande Controllo'!C:H,2,0)","v":"Il rating di un'obbligazione è "},null,null,null,null,null,null,null,null,{"$f":"+IF(COUNTA(L84:L86)=0,\"Rispondi alla domanda\",IF(COUNTA(L84:L86)>1,\"Controlla Risposta\",IF(MATCH(\"x\",L84:L86)='Domande Controllo'!H5,\"ok\",\"!! risposta sbagliata !!\")))","v":"Rispondi alla domanda"}]
[null,null,null,{"$f":"+VLOOKUP(\"58p2\",'Domande Controllo'!C:H,3,0)","v":"a) un punteggio che misura la redditività del titolo rispetto alle altre obbligazioni simili"}]
[null,null,null,{"$f":"+VLOOKUP(\"58p2\",'Domande Controllo'!C:H,4,0)","v":"b) un giudizio sulla capacità dell'emittente di rimborsare l'obbligazione"}]
[null,null,null,{"$f":"+VLOOKUP(\"58p2\",'Domande Controllo'!C:H,5,0)","v":"c) non so"}]
[]
[null,null,"d) fondi comuni, comparti sicav, ETF "]
[]
[null,null,"Rispondi ad almeno una di queste domande:"]
[null,null,null,{"$f":"+VLOOKUP(\"59p1\",'Domande Controllo'!C:H,2,0)","v":"Se fallisce la società che gestisce un fondo comune d'investimento"},null,null,null,null,null,null,null,null,{"$f":"+IF(COUNTA(L92:L94)=0,\"Rispondi alla domanda\",IF(COUNTA(L92:L94)>1,\"Controlla Risposta\",IF(MATCH(\"x\",L92:L94)='Domande Controllo'!H6,\"ok\",\"!! risposta sbagliata !!\")))","v":"Rispondi alla domanda"}]
[null,null,null,{"$f":"+VLOOKUP(\"59p1\",'Domande Controllo'!C:H,3,0)","v":"a) il sottoscrittore del fondo rischia di perdere tutti i soldi investiti"}]
[null,null,null,{"$f":"+VLOOKUP(\"59p1\",'Domande Controllo'!C:H,4,0)","v":"b) il patrimonio del fondo è separato da quelli del gestore e quindi non rientra nella procedura fallimentare."}]
[null,null,null,{"$f":"+VLOOKUP(\"59p1\",'Domande Controllo'!C:H,5,0)","v":"c) non so"}]
[]
[null,null,null,{"$f":"+VLOOKUP(\"59p2\",'Domande Controllo'!C:H,2,0)","v":"I costi di un fondo comune d'investimento"},null,null,null,null,null,null,null,null,{"$f":"+IF(COUNTA(L97:L99)=0,\"Rispondi alla domanda\",IF(COUNTA(L97:L99)>1,\"Controlla Risposta\",IF(MATCH(\"x\",L97:L99)='Domande Controllo'!H7,\"ok\",\"!! risposta sbagliata !!\")))","v":"Rispondi alla domanda"}]
[null,null,null,{"$f":"+VLOOKUP(\"59p2\",'Domande Controllo'!C:H,3,0)","v":"a) si pagano solo al momento dell'investimento oppure del disinvestimento"}]
[null,null,null,{"$f":"+VLOOKUP(\"59p2\",'Domande Controllo'!C:H,4,0)","v":"b) oltre ai costi a carico dell'investitore vi sono una serie di costi a carico del fondo che indirettamente pagano i sottoscrittori poiché diminuiscono il valore della quota"}]
[null,null,null,{"$f":"+VLOOKUP(\"59p2\",'Domande Controllo'!C:H,5,0)","v":"c) non ci sono costi nei fondi comuni"}]
[]
[null,null,null,{"$f":"+VLOOKUP(\"59p3\",'Domande Controllo'!C:H,2,0)","v":"Gli ETF (Exchanged Traded Funds) sono"},null,null,null,null,null,null,null,null,{"$f":"+IF(COUNTA(L102:L104)=0,\"Rispondi alla domanda\",IF(COUNTA(L102:L104)>1,\"Controlla Risposta\",IF(MATCH(\"x\",L102:L104)='Domande Controllo'!H8,\"ok\",\"!! risposta sbagliata !!\")))","v":"Rispondi alla domanda"}]
[null,null,null,{"$f":"+VLOOKUP(\"59p3\",'Domande Controllo'!C:H,3,0)","v":"a) fondi comuni quotati il cui prezzo è generalmente legato ad un indice di mercato"}]
[null,null,null,{"$f":"+VLOOKUP(\"59p3\",'Domande Controllo'!C:H,4,0)","v":"b) una categoria di azioni di gestori di fondi comuni d'investimento"}]
[null,null,null,{"$f":"+VLOOKUP(\"59p3\",'Domande Controllo'!C:H,5,0)","v":"c) non so"}]
[]
[null,null,"e) polizze index linked; polizze unit linked"]
[]
[null,null,"Rispondi ad almeno una di queste domande:"]
[null,null,null,{"$f":"+VLOOKUP(\"60p1\",'Domande Controllo'!C:H,2,0)","v":"Il valore di riscatto di una polizza index linked o unit linked"},null,null,null,null,null,null,null,null,{"$f":"+IF(COUNTA(L110:L112)=0,\"Rispondi alla domanda\",IF(COUNTA(L110:L112)>1,\"Controlla Risposta\",IF(MATCH(\"x\",L110:L112)='Domande Controllo'!H9,\"ok\",\"!! risposta sbagliata !!\")))","v":"Rispondi alla domanda"}]
[null,null,null,{"$f":"+VLOOKUP(\"60p1\",'Domande Controllo'!C:H,3,0)","v":"a) è sempre garantito almeno pari al valore di sottoscrizione "}]
[null,null,null,{"$f":"+VLOOKUP(\"60p1\",'Domande Controllo'!C:H,4,0)","v":"b) può essere inferiore al valore di sottoscrizione solo se si riscatta in anticipo"}]
[null,null,null,{"$f":"+VLOOKUP(\"60p1\",'Domande Controllo'!C:H,5,0)","v":"c) dipende dalle condizioni della polizza e dall’andamento dell’indice o del fondo sottostante"}]
[]
[null,null,"f) azioni ordinarie, di risparmio, privilegiate"]
[]
[null,null,"Rispondi ad almeno una di queste domande:"]
[null,null,null,{"$f":"+VLOOKUP(\"61p1\",'Domande Controllo'!C:H,2,0)","v":"Acquistando azioni di un'azienda quotata si diventa"},null,null,null,null,null,null,null,null,{"$f":"+IF(COUNTA(L118:L120)=0,\"Rispondi alla domanda\",IF(COUNTA(L118:L120)>1,\"Controlla Risposta\",IF(MATCH(\"x\",L118:L120)='Domande Controllo'!H10,\"ok\",\"!! risposta sbagliata !!\")))","v":"Rispondi alla domanda"}]
[null,null,null,{"$f":"+VLOOKUP(\"61p1\",'Domande Controllo'!C:H,3,0)","v":"a) creditori dell'azienda, che deve restituire almeno il capitale investito pagando i dividendi"}]
[null,null,null,{"$f":"+VLOOKUP(\"61p1\",'Domande Controllo'!C:H,4,0)","v":"b) soci dell'azienda, esposti a perdere anche tutto il capitale investito"}]
[null,null,null,{"$f":"+VLOOKUP(\"61p1\",'Domande Controllo'!C:H,5,0)","v":"c) soci dell’azienda ma con un capitale minimo garantito in proporzione al capitale sociale"}]
[]
[null,null,null,{"$f":"+VLOOKUP(\"61p2\",'Domande Controllo'!C:H,2,0)","v":"Cosa sono i dividendi"},null,null,null,null,null,null,null,null,{"$f":"+IF(COUNTA(L123:L125)=0,\"Rispondi alla domanda\",IF(COUNTA(L123:L125)>1,\"Controlla Risposta\",IF(MATCH(\"x\",L123:L125)='Domande Controllo'!H11,\"ok\",\"!! risposta sbagliata !!\")))","v":"Rispondi alla domanda"}]
[null,null,null,{"$f":"+VLOOKUP(\"61p2\",'Domande Controllo'!C:H,3,0)","v":"a) dei lotti di azioni destinati inizialmente agli investitori istituzioni e che verranno poi  suddivisi in lotti più piccoli per il mercato retail"}]
[null,null,null,{"$f":"+VLOOKUP(\"61p2\",'Domande Controllo'!C:H,4,0)","v":"b) una parte degli utili dell'emittente che vengono distribuiti agli azionisti"}]
[null,null,null,{"$f":"+VLOOKUP(\"61p2\",'Domande Controllo'!C:H,5,0)","v":"c) non so"}]
[]
[null,null,"g) certificates non a leva; obbligazioni strutturate; obbligazioni subordinate"]
[]
[null,null,"Rispondi ad almeno una di queste domande:"]
[null,null,null,{"$f":"+VLOOKUP(\"62p1\",'Domande Controllo'!C:H,2,0)","v":"Investire denaro in un “Investment Certificate” rappresenta sempre"},null,null,null,null,null,null,null,null,{"$f":"+IF(COUNTA(L131:L133)=0,\"Rispondi alla domanda\",IF(COUNTA(L131:L133)>1,\"Controlla Risposta\",IF(MATCH(\"x\",L131:L133)='Domande Controllo'!H12,\"ok\",\"!! risposta sbagliata !!\")))","v":"Rispondi alla domanda"}]
[null,null,null,{"$f":"+VLOOKUP(\"62p1\",'Domande Controllo'!C:H,3,0)","v":"a) un investimento ad alto rischio perché al suo interno sono presenti “strumenti  derivati” "}]
[null,null,null,{"$f":"+VLOOKUP(\"62p1\",'Domande Controllo'!C:H,4,0)","v":"b) un investimento con un livello di rischio che varia a seconda della tipologia del  certificato"}]
[null,null,null,{"$f":"+VLOOKUP(\"62p1\",'Domande Controllo'!C:H,5,0)","v":"c) un investimento con rischi contenuti perché viene comunque garantito il rimborso di una percentuale prestabilita dell’importo investito"}]
[]
[null,null,null,{"$f":"+VLOOKUP(\"62p2\",'Domande Controllo'!C:H,2,0)","v":"Le obbligazioni subordinate sono"},null,null,null,null,null,null,null,null,{"$f":"+IF(COUNTA(L136:L138)=0,\"Rispondi alla domanda\",IF(COUNTA(L136:L138)>1,\"Controlla Risposta\",IF(MATCH(\"x\",L136:L138)='Domande Controllo'!H13,\"ok\",\"!! risposta sbagliata !!\")))","v":"Rispondi alla domanda"}]
[null,null,null,{"$f":"+VLOOKUP(\"62p2\",'Domande Controllo'!C:H,3,0)","v":"a) obbligazioni il cui rimborso è subordinato al comportamento di alcuni indici di  mercato"}]
[null,null,null,{"$f":"+VLOOKUP(\"62p2\",'Domande Controllo'!C:H,4,0)","v":"b) obbligazioni legate al pagamento dei mutui ipotecari"}]
[null,null,null,{"$f":"+VLOOKUP(\"62p2\",'Domande Controllo'!C:H,5,0)","v":"c) obbligazioni che garantiscono, in caso di fallimento dell’emittente, una minore  priorità nei diritti di credito rispetto alle obbligazioni senior"}]
[]
[null,null,"h) ETC, ETN e certificates a leva"]
[]
[null,null,"Rispondi ad almeno una di queste domande:"]
[null,null,null,{"$f":"+VLOOKUP(\"63p1\",'Domande Controllo'!C:H,2,0)","v":"Per investimenti a leva si intende"},null,null,null,null,null,null,null,null,{"$f":"+IF(COUNTA(L144:L146)=0,\"Rispondi alla domanda\",IF(COUNTA(L144:L146)>1,\"Controlla Risposta\",IF(MATCH(\"x\",L144:L146)='Domande Controllo'!H14,\"ok\",\"!! risposta sbagliata !!\")))","v":"Rispondi alla domanda"}]
[null,null,null,{"$f":"+VLOOKUP(\"63p1\",'Domande Controllo'!C:H,3,0)","v":"a) un investimento il cui rendimento (in positivo o in negativo) è più che proporzionale al movimento di prezzo del sottostante"}]
[null,null,null,{"$f":"+VLOOKUP(\"63p1\",'Domande Controllo'!C:H,4,0)","v":"b) un investimento che prevede più opzioni di rendimento che si possono attivare in base al verificarsi di determinati “eventi” finanziari (delle “leve”)"}]
[null,null,null,{"$f":"+VLOOKUP(\"63p1\",'Domande Controllo'!C:H,5,0)","v":"c) non so"}]
[]
[null,null,"i) strumenti derivati standardizzati, trading in marginazione"]
[]
[null,null,"Rispondi ad almeno una di queste domande:"]
[null,null,null,{"$f":"+VLOOKUP(\"64p1\",'Domande Controllo'!C:H,2,0)","v":"Se ho una visione moderatamente negativa circa l’andamento futuro del prezzo di un titolo, la strategia più coerente con questa visione potrebbe essere"},null,null,null,null,null,null,null,null,{"$f":"+IF(COUNTA(L152:L154)=0,\"Rispondi alla domanda\",IF(COUNTA(L152:L154)>1,\"Controlla Risposta\",IF(MATCH(\"x\",L152:L154)='Domande Controllo'!H15,\"ok\",\"!! risposta sbagliata !!\")))","v":"Rispondi alla domanda"}]
[null,null,null,{"$f":"+VLOOKUP(\"64p1\",'Domande Controllo'!C:H,3,0)","v":"a) acquistare un’opzione PUT con lo strike molto inferiore al prezzo attuale"}]
[null,null,null,{"$f":"+VLOOKUP(\"64p1\",'Domande Controllo'!C:H,4,0)","v":"b) vendere un’opzione CALL out-of-the-money"}]
[null,null,null,{"$f":"+VLOOKUP(\"64p1\",'Domande Controllo'!C:H,5,0)","v":"c) non so"}]
[]
[null,null,null,{"$f":"+VLOOKUP(\"64p2\",'Domande Controllo'!C:H,2,0)","v":"Con il termine CONTANGO s’intende"},null,null,null,null,null,null,null,null,{"$f":"+IF(COUNTA(L157:L159)=0,\"Rispondi alla domanda\",IF(COUNTA(L157:L159)>1,\"Controlla Risposta\",IF(MATCH(\"x\",L157:L159)='Domande Controllo'!H16,\"ok\",\"!! risposta sbagliata !!\")))","v":"Rispondi alla domanda"}]
[null,null,null,{"$f":"+VLOOKUP(\"64p2\",'Domande Controllo'!C:H,3,0)","v":"a) un termine utilizzato nell’analisi finanziaria per indicare una fase nella quale il  prezzo SPOT è inferiore al prezzo di un Future"}]
[null,null,null,{"$f":"+VLOOKUP(\"64p2\",'Domande Controllo'!C:H,4,0)","v":"b) un termine utilizzato nell’analisi finanziaria per indicare una fase nella quale il  prezzo SPOT è superiore al prezzo di un Future"}]
[null,null,null,{"$f":"+VLOOKUP(\"64p2\",'Domande Controllo'!C:H,5,0)","v":"c) non so"}]
[]
[null,null,"l) fondi hedge"]
[]
[null,null,"Rispondi ad almeno una di queste domande:"]
[null,null,null,{"$f":"+VLOOKUP(\"65p1\",'Domande Controllo'!C:H,2,0)","v":"Quale fra queste frasi ritiene essere vera?"},null,null,null,null,null,null,null,null,{"$f":"+IF(COUNTA(L165:L167)=0,\"Rispondi alla domanda\",IF(COUNTA(L165:L167)>1,\"Controlla Risposta\",IF(MATCH(\"x\",L165:L167)='Domande Controllo'!H17,\"ok\",\"!! risposta sbagliata !!\")))","v":"Rispondi alla domanda"}]
[null,null,null,{"$f":"+VLOOKUP(\"65p1\",'Domande Controllo'!C:H,3,0)","v":"a) in Italia gli Hedge Fund si possono pubblicizzare liberamente come tutti gli altri fondi comune di investimento"}]
[null,null,null,{"$f":"+VLOOKUP(\"65p1\",'Domande Controllo'!C:H,4,0)","v":"b) gli Hedge Fund sono fondi d’investimento speculativi destinati esclusivamente a profili di rischio molto elevati"}]
[null,null,null,{"$f":"+VLOOKUP(\"65p1\",'Domande Controllo'!C:H,5,0)","v":"c) gli Hedge Fund sono una categoria di fondi d’investimento che comprende al loro interno profili di rischio / rendimento molto diversificati"}]
[]
[null,null,null,{"$f":"+VLOOKUP(\"65p2\",'Domande Controllo'!C:H,2,0)","v":"Quale di queste non è una tipologia di hedge fund?"},null,null,null,null,null,null,null,null,{"$f":"+IF(COUNTA(L170:L172)=0,\"Rispondi alla domanda\",IF(COUNTA(L170:L172)>1,\"Controlla Risposta\",IF(MATCH(\"x\",L170:L172)='Domande Controllo'!H18,\"ok\",\"!! risposta sbagliata !!\")))","v":"Rispondi alla domanda"}]
[null,null,null,{"$f":"+VLOOKUP(\"65p2\",'Domande Controllo'!C:H,3,0)","v":"a) Market neutral o relative value"}]
[null,null,null,{"$f":"+VLOOKUP(\"65p2\",'Domande Controllo'!C:H,4,0)","v":"b) Global Macro"}]
[null,null,null,{"$f":"+VLOOKUP(\"65p2\",'Domande Controllo'!C:H,5,0)","v":"c) Cash Colect "}]
[]
[null,"A.5)","IN QUALI STRUMENTI E PRODOTTI FINANZIARI HA REALIZZATO OPERAZIONI DI INVESTIMENTO? ",null,null,null,null,null,null,null,null,null,"Risposta multipla"]
[null,null,"a) nessuno"]
[null,null,"b) titoli di stato; obbligazioni (plain vanilla o semplici) area euro e valuta euro "]
[null,null,null,"Qual è la frequenza normale delle operazioni finanziarie da Lei effettuate?",null,null,null,null,null,null,null,null,{"$f":"+IF(COUNTA(L178:L181)=0,\"Rispondi alla domanda\",IF(COUNTA(L178:L181)>1,\"Controlla Risposta\",\"ok\"))","v":"Rispondi alla domanda"}]
[null,null,null,"a) annuale o più "]
[null,null,null,"b) semestrale/trimestrale"]
[null,null,null,"c) mensile"]
[null,null,null,"d) settimanale/giornaliera"]
[null,null,null,null,null,null,null,null,null,null,null,null,{"$f":"IF(L182>1,\"n° ERR\",\" \")","v":" "}]
[null,null,null,"Qual è il volume medio delle operazioni finanziarie da Lei effettuate?",null,null,null,null,null,null,null,null,{"$f":"+IF(COUNTA(L184:L187)=0,\"Rispondi alla domanda\",IF(COUNTA(L184:L187)>1,\"Controlla Risposta\",\"ok\"))","v":"Rispondi alla domanda"}]
[null,null,null,"a) inferiore a 10.000 Euro"]
[null,null,null,"b) tra 10.000 e 30.000 Euro"]
[null,null,null,"c) tra 30.000 e 50.000 Euro"]
[null,null,null,"d) superiore a 50.000 Euro"]
[]
[null,null,null,"In quale periodo ha realizzato le suddette operazioni?",null,null,null,null,null,null,null,null,{"$f":"+IF(COUNTA(L190:L193)=0,\"Rispondi alla domanda\",IF(COUNTA(L190:L193)>1,\"Controlla Risposta\",\"ok\"))","v":"Rispondi alla domanda"}]
[null,null,null,"Più di 3 anni fa"]
[null,null,null,"Negli ultimi tre anni"]
[null,null,null,"Negli ultimi due anni"]
[null,null,null,"Nell'ultimo anno"]
[]
[]
[null,null,"c) titoli di stato e obbligazioni ordinarie in valuta non euro"]
[null,null,null,"Qual è la frequenza normale delle operazioni finanziarie da Lei effettuate?",null,null,null,null,null,null,null,null,{"$f":"+IF(COUNTA(L198:L201)=0,\"Rispondi alla domanda\",IF(COUNTA(L198:L201)>1,\"Controlla Risposta\",\"ok\"))","v":"Rispondi alla domanda"}]
[null,null,null,"a) annuale o più "]
[null,null,null,"b) semestrale/trimestrale"]
[null,null,null,"c) mensile"]
[null,null,null,"d) settimanale/giornaliera"]
[null,null,null,null,null,null,null,null,null,null,null,null,{"$f":"IF(L202>1,\"n° ERR\",\" \")","v":" "}]
[null,null,null,"Qual è il volume medio delle operazioni finanziarie da Lei effettuate?",null,null,null,null,null,null,null,null,{"$f":"+IF(COUNTA(L204:L207)=0,\"Rispondi alla domanda\",IF(COUNTA(L204:L207)>1,\"Controlla Risposta\",\"ok\"))","v":"Rispondi alla domanda"}]
[null,null,null,"a) inferiore a 10.000 Euro"]
[null,null,null,"b) tra 10.000 e 30.000 Euro"]
[null,null,null,"c) tra 30.000 e 50.000 Euro"]
[null,null,null,"d) superiore a 50.000 Euro"]
[]
[null,null,null,"In quale periodo ha realizzato le suddette operazioni?",null,null,null,null,null,null,null,null,{"$f":"+IF(COUNTA(L210:L213)=0,\"Rispondi alla domanda\",IF(COUNTA(L210:L213)>1,\"Controlla Risposta\",\"ok\"))","v":"Rispondi alla domanda"}]
[null,null,null,"Più di 3 anni fa"]
[null,null,null,"Negli ultimi tre anni"]
[null,null,null,"Negli ultimi due anni"]
[null,null,null,"Nell'ultimo anno"]
[]
[]
[null,null,"d) fondi comuni, comparti sicav, ETF "]
[null,null,null,"Qual è la frequenza normale delle operazioni finanziarie da Lei effettuate?",null,null,null,null,null,null,null,null,{"$f":"+IF(COUNTA(L218:L221)=0,\"Rispondi alla domanda\",IF(COUNTA(L218:L221)>1,\"Controlla Risposta\",\"ok\"))","v":"Rispondi alla domanda"}]
[null,null,null,"a) annuale o più "]
[null,null,null,"b) semestrale/trimestrale"]
[null,null,null,"c) mensile"]
[null,null,null,"d) settimanale/giornaliera"]
[null,null,null,null,null,null,null,null,null,null,null,null,{"$f":"IF(L222>1,\"n° ERR\",\" \")","v":" "}]
[null,null,null,"Qual è il volume medio delle operazioni finanziarie da Lei effettuate?",null,null,null,null,null,null,null,null,{"$f":"+IF(COUNTA(L224:L227)=0,\"Rispondi alla domanda\",IF(COUNTA(L224:L227)>1,\"Controlla Risposta\",\"ok\"))","v":"Rispondi alla domanda"}]
[null,null,null,"a) inferiore a 10.000 Euro"]
[null,null,null,"b) tra 10.000 e 30.000 Euro"]
[null,null,null,"c) tra 30.000 e 50.000 Euro"]
[null,null,null,"d) superiore a 50.000 Euro"]
[]
[null,null,null,"In quale periodo ha realizzato le suddette operazioni?",null,null,null,null,null,null,null,null,{"$f":"+IF(COUNTA(L230:L233)=0,\"Rispondi alla domanda\",IF(COUNTA(L230:L233)>1,\"Controlla Risposta\",\"ok\"))","v":"Rispondi alla domanda"}]
[null,null,null,"Più di 3 anni fa"]
[null,null,null,"Negli ultimi tre anni"]
[null,null,null,"Negli ultimi due anni"]
[null,null,null,"Nell'ultimo anno"]
[]
[]
[null,null,"e) polizze index linked; polizze unit linked"]
[null,null,null,"Qual è la frequenza normale delle operazioni finanziarie da Lei effettuate?",null,null,null,null,null,null,null,null,{"$f":"+IF(COUNTA(L238:L241)=0,\"Rispondi alla domanda\",IF(COUNTA(L238:L241)>1,\"Controlla Risposta\",\"ok\"))","v":"Rispondi alla domanda"}]
[null,null,null,"a) annuale o più "]
[null,null,null,"b) semestrale/trimestrale"]
[null,null,null,"c) mensile"]
[null,null,null,"d) settimanale/giornaliera"]
[null,null,null,null,null,null,null,null,null,null,null,null,{"$f":"IF(L242>1,\"n° ERR\",\" \")","v":" "}]
[null,null,null,"Qual è il volume medio delle operazioni finanziarie da Lei effettuate?",null,null,null,null,null,null,null,null,{"$f":"+IF(COUNTA(L244:L247)=0,\"Rispondi alla domanda\",IF(COUNTA(L244:L247)>1,\"Controlla Risposta\",\"ok\"))","v":"Rispondi alla domanda"}]
[null,null,null,"a) inferiore a 10.000 Euro"]
[null,null,null,"b) tra 10.000 e 30.000 Euro"]
[null,null,null,"c) tra 30.000 e 50.000 Euro"]
[null,null,null,"d) superiore a 50.000 Euro"]
[]
[null,null,null,"In quale periodo ha realizzato le suddette operazioni?",null,null,null,null,null,null,null,null,{"$f":"+IF(COUNTA(L250:L253)=0,\"Rispondi alla domanda\",IF(COUNTA(L250:L253)>1,\"Controlla Risposta\",\"ok\"))","v":"Rispondi alla domanda"}]
[null,null,null,"Più di 3 anni fa"]
[null,null,null,"Negli ultimi tre anni"]
[null,null,null,"Negli ultimi due anni"]
[null,null,null,"Nell'ultimo anno"]
[]
[]
[null,null,"f) azioni ordinarie, di risparmio, privilegiate"]
[null,null,null,"Qual è la frequenza normale delle operazioni finanziarie da Lei effettuate?",null,null,null,null,null,null,null,null,{"$f":"+IF(COUNTA(L258:L261)=0,\"Rispondi alla domanda\",IF(COUNTA(L258:L261)>1,\"Controlla Risposta\",\"ok\"))","v":"Rispondi alla domanda"}]
[null,null,null,"a) annuale o più "]
[null,null,null,"b) semestrale/trimestrale"]
[null,null,null,"c) mensile"]
[null,null,null,"d) settimanale/giornaliera"]
[null,null,null,null,null,null,null,null,null,null,null,null,{"$f":"IF(L262>1,\"n° ERR\",\" \")","v":" "}]
[null,null,null,"Qual è il volume medio delle operazioni finanziarie da Lei effettuate?",null,null,null,null,null,null,null,null,{"$f":"+IF(COUNTA(L264:L267)=0,\"Rispondi alla domanda\",IF(COUNTA(L264:L267)>1,\"Controlla Risposta\",\"ok\"))","v":"Rispondi alla domanda"}]
[null,null,null,"a) inferiore a 10.000 Euro"]
[null,null,null,"b) tra 10.000 e 30.000 Euro"]
[null,null,null,"c) tra 30.000 e 50.000 Euro"]
[null,null,null,"d) superiore a 50.000 Euro"]
[]
[null,null,null,"In quale periodo ha realizzato le suddette operazioni?",null,null,null,null,null,null,null,null,{"$f":"+IF(COUNTA(L270:L273)=0,\"Rispondi alla domanda\",IF(COUNTA(L270:L273)>1,\"Controlla Risposta\",\"ok\"))","v":"Rispondi alla domanda"}]
[null,null,null,"Più di 3 anni fa"]
[null,null,null,"Negli ultimi tre anni"]
[null,null,null,"Negli ultimi due anni"]
[null,null,null,"Nell'ultimo anno"]
[]
[]
[null,null,"g) certificates non a leva; obbligazioni strutturate; obbligazioni subordinate"]
[null,null,null,"Qual è la frequenza normale delle operazioni finanziarie da Lei effettuate?",null,null,null,null,null,null,null,null,{"$f":"+IF(COUNTA(L278:L281)=0,\"Rispondi alla domanda\",IF(COUNTA(L278:L281)>1,\"Controlla Risposta\",\"ok\"))","v":"Rispondi alla domanda"}]
[null,null,null,"a) annuale o più "]
[null,null,null,"b) semestrale/trimestrale"]
[null,null,null,"c) mensile"]
[null,null,null,"d) settimanale/giornaliera"]
[null,null,null,null,null,null,null,null,null,null,null,null,{"$f":"IF(L282>1,\"n° ERR\",\" \")","v":" "}]
[null,null,null,"Qual è il volume medio delle operazioni finanziarie da Lei effettuate?",null,null,null,null,null,null,null,null,{"$f":"+IF(COUNTA(L284:L287)=0,\"Rispondi alla domanda\",IF(COUNTA(L284:L287)>1,\"Controlla Risposta\",\"ok\"))","v":"Rispondi alla domanda"}]
[null,null,null,"a) inferiore a 10.000 Euro"]
[null,null,null,"b) tra 10.000 e 30.000 Euro"]
[null,null,null,"c) tra 30.000 e 50.000 Euro"]
[null,null,null,"d) superiore a 50.000 Euro"]
[]
[null,null,null,"In quale periodo ha realizzato le suddette operazioni?",null,null,null,null,null,null,null,null,{"$f":"+IF(COUNTA(L290:L293)=0,\"Rispondi alla domanda\",IF(COUNTA(L290:L293)>1,\"Controlla Risposta\",\"ok\"))","v":"Rispondi alla domanda"}]
[null,null,null,"Più di 3 anni fa"]
[null,null,null,"Negli ultimi tre anni"]
[null,null,null,"Negli ultimi due anni"]
[null,null,null,"Nell'ultimo anno"]
[]
[]
[null,null,"h) ETC, ETN e certificates a leva"]
[null,null,null,"Qual è la frequenza normale delle operazioni finanziarie da Lei effettuate?",null,null,null,null,null,null,null,null,{"$f":"+IF(COUNTA(L298:L301)=0,\"Rispondi alla domanda\",IF(COUNTA(L298:L301)>1,\"Controlla Risposta\",\"ok\"))","v":"Rispondi alla domanda"}]
[null,null,null,"a) annuale o più "]
[null,null,null,"b) semestrale/trimestrale"]
[null,null,null,"c) mensile"]
[null,null,null,"d) settimanale/giornaliera"]
[null,null,null,null,null,null,null,null,null,null,null,null,{"$f":"IF(L302>1,\"n° ERR\",\" \")","v":" "}]
[null,null,null,"Qual è il volume medio delle operazioni finanziarie da Lei effettuate?",null,null,null,null,null,null,null,null,{"$f":"+IF(COUNTA(L304:L307)=0,\"Rispondi alla domanda\",IF(COUNTA(L304:L307)>1,\"Controlla Risposta\",\"ok\"))","v":"Rispondi alla domanda"}]
[null,null,null,"a) inferiore a 10.000 Euro"]
[null,null,null,"b) tra 10.000 e 30.000 Euro"]
[null,null,null,"c) tra 30.000 e 50.000 Euro"]
[null,null,null,"d) superiore a 50.000 Euro"]
[]
[null,null,null,"In quale periodo ha realizzato le suddette operazioni?",null,null,null,null,null,null,null,null,{"$f":"+IF(COUNTA(L310:L313)=0,\"Rispondi alla domanda\",IF(COUNTA(L310:L313)>1,\"Controlla Risposta\",\"ok\"))","v":"Rispondi alla domanda"}]
[null,null,null,"Più di 3 anni fa"]
[null,null,null,"Negli ultimi tre anni"]
[null,null,null,"Negli ultimi due anni"]
[null,null,null,"Nell'ultimo anno"]
[]
[]
[null,null,"i) strumenti derivati standardizzati, trading in marginazione"]
[null,null,null,"Qual è la frequenza normale delle operazioni finanziarie da Lei effettuate?",null,null,null,null,null,null,null,null,{"$f":"+IF(COUNTA(L318:L321)=0,\"Rispondi alla domanda\",IF(COUNTA(L318:L321)>1,\"Controlla Risposta\",\"ok\"))","v":"Rispondi alla domanda"}]
[null,null,null,"a) annuale o più "]
[null,null,null,"b) semestrale/trimestrale"]
[null,null,null,"c) mensile"]
[null,null,null,"d) settimanale/giornaliera"]
[null,null,null,null,null,null,null,null,null,null,null,null,{"$f":"IF(L322>1,\"n° ERR\",\" \")","v":" "}]
[null,null,null,"Qual è il volume medio delle operazioni finanziarie da Lei effettuate?",null,null,null,null,null,null,null,null,{"$f":"+IF(COUNTA(L324:L327)=0,\"Rispondi alla domanda\",IF(COUNTA(L324:L327)>1,\"Controlla Risposta\",\"ok\"))","v":"Rispondi alla domanda"}]
[null,null,null,"a) inferiore a 10.000 Euro"]
[null,null,null,"b) tra 10.000 e 30.000 Euro"]
[null,null,null,"c) tra 30.000 e 50.000 Euro"]
[null,null,null,"d) superiore a 50.000 Euro"]
[]
[null,null,null,"In quale periodo ha realizzato le suddette operazioni?",null,null,null,null,null,null,null,null,{"$f":"+IF(COUNTA(L330:L333)=0,\"Rispondi alla domanda\",IF(COUNTA(L330:L333)>1,\"Controlla Risposta\",\"ok\"))","v":"Rispondi alla domanda"}]
[null,null,null,"Più di 3 anni fa"]
[null,null,null,"Negli ultimi tre anni"]
[null,null,null,"Negli ultimi due anni"]
[null,null,null,"Nell'ultimo anno"]
[]
[]
[null,null,"l) fondi hedge"]
[null,null,null,"Qual è la frequenza normale delle operazioni finanziarie da Lei effettuate?",null,null,null,null,null,null,null,null,{"$f":"+IF(COUNTA(L338:L341)=0,\"Rispondi alla domanda\",IF(COUNTA(L338:L341)>1,\"Controlla Risposta\",\"ok\"))","v":"Rispondi alla domanda"}]
[null,null,null,"a) annuale o più "]
[null,null,null,"b) semestrale/trimestrale"]
[null,null,null,"c) mensile"]
[null,null,null,"d) settimanale/giornaliera"]
[null,null,null,null,null,null,null,null,null,null,null,null,{"$f":"IF(L342>1,\"n° ERR\",\" \")","v":" "}]
[null,null,null,"Qual è il volume medio delle operazioni finanziarie da Lei effettuate?",null,null,null,null,null,null,null,null,{"$f":"+IF(COUNTA(L344:L347)=0,\"Rispondi alla domanda\",IF(COUNTA(L344:L347)>1,\"Controlla Risposta\",\"ok\"))","v":"Rispondi alla domanda"}]
[null,null,null,"a) inferiore a 10.000 Euro"]
[null,null,null,"b) tra 10.000 e 30.000 Euro"]
[null,null,null,"c) tra 30.000 e 50.000 Euro"]
[null,null,null,"d) superiore a 50.000 Euro"]
[]
[null,null,null,"In quale periodo ha realizzato le suddette operazioni?",null,null,null,null,null,null,null,null,{"$f":"+IF(COUNTA(L350:L353)=0,\"Rispondi alla domanda\",IF(COUNTA(L350:L353)>1,\"Controlla Risposta\",\"ok\"))","v":"Rispondi alla domanda"}]
[null,null,null,"Più di 3 anni fa"]
[null,null,null,"Negli ultimi tre anni"]
[null,null,null,"Negli ultimi due anni"]
[null,null,null,"Nell'ultimo anno"]
[]
[]
[null,"A.6)","QUAL E' LA SUA PRINCIPALE FONTE DI INFORMAZIONE FINANZIARIA?",null,null,null,null,null,null,null,null,null,{"$f":"+IF(COUNTA(L357:L361)=0,\"Rispondi alla domanda\",IF(COUNTA(L357:L361)>1,\"Controlla Risposta\",\"ok\"))","v":"Rispondi alla domanda"}]
[null,null,"a) amici e conoscenti"]
[null,null,"b) stampa generica"]
[null,null,"c) banche, consulenti abilitati all’offerta fuori sede, agenti assicurativi"]
[null,null,"d) consulenti indipendenti"]
[null,null,"e) internet e Stampa specializzata"]
[null,null,null,null,null,null,null,null,null,null,null,null,{"$f":"IF(L362>1,\"n° ERR\",\" \")","v":" "}]
[]
[null,"B)","SITUAZIONE FINANZIARIA E CAPACITA' DI SOPPORTARE LE PERDITE"]
[]
[null,"B.1)","A QUANTO AMMONTA IL PATRIMONIO COMPLESSIVO, INCLUSI GLI IMMOBILI, IL VALORE DI REALIZZO DELLE ATTIVITA’ ECONOMICHE E IL PATRIMONIO FINANZIARIO?",null,null,null,null,null,null,null,null,null,{"$f":"+IF(COUNTA(L367:L369)=0,\"Rispondi alla domanda\",IF(COUNTA(L367:L369)>1,\"Controlla Risposta\",\"ok\"))","v":"Rispondi alla domanda"}]
[null,null,"a) dispongo di un patrimonio complessivo fino a 300.000 euro"]
[null,null,"b) dispongo di un patrimonio complessivo compreso tra 300.000 e 1.000.000 di euro"]
[null,null,"c) dispongo di un patrimonio complessivo superiore a 1.000.000 di euro"]
[]
[null,"B.2)","QUAL’E’ LA FONTE DEL PATRIMONIO COMPLESSIVO? ",null,null,null,null,null,null,null,null,null,{"$f":"+IF(COUNTA(L372:L375)=0,\"Rispondi alla domanda\",IF(COUNTA(L372:L375)>1,\"Controlla Risposta\",\"ok\"))","v":"Rispondi alla domanda"}]
[null,null,"a) prevalentemente ereditaria o da donazioni"]
[null,null,"b) in parte ereditaria o da donazioni, in parte frutto della propria attività"]
[null,null,"c) prevalentemente frutto della propria attività"]
[null,null,"d) _______________________________________________________________________"]
[]
[null,"B.3)","QUANTO RAPPRESENTA, IN TERMINI PERCENTUALI, IL PESO DEGLI INVESTIMENTI OGGETTO DELLA CONSULENZA, RISPETTO AL SUO PATRIMONIO COMPLESSIVO? ",null,null,null,null,null,null,null,null,null,{"$f":"+IF(COUNTA(L378:L381)=0,\"Rispondi alla domanda\",IF(COUNTA(L378:L381)>1,\"Controlla Risposta\",\"ok\"))","v":"Rispondi alla domanda"}]
[null,null,"a) oltre il 90%"]
[null,null,"b) dal 50% al 90%"]
[null,null,"c) dal 20% al 50%"]
[null,null,"d) meno del 20%"]
[]
[null,"B.4)","SI ATTENDONO SIGNIFICATIVE ENTRATE FUTURE PER VIA EREDITARIA?",null,null,null,null,null,null,null,null,null,{"$f":"+IF(COUNTA(L384:L386)=0,\"Rispondi alla domanda\",IF(COUNTA(L384:L386)>1,\"Controlla Risposta\",\"ok\"))","v":"Rispondi alla domanda"}]
[null,null,"a) no, le aspettative ereditarie sono nulle o non importanti"]
[null,null,"b) si, le aspettative ereditarie sono importanti ma lontane"]
[null,null,"c) si, le aspettative sono importanti e probabilmente vicine"]
[]
[null,"B.5)","L’ATTUALE TENORE DI VITA DIPENDE DALL’UTILIZZO DI FLUSSI GENERATI DAGLI INVESTIMENTI FINANZIARI?",null,null,null,null,null,null,null,null,null,{"$f":"+IF(COUNTA(L389:L391)=0,\"Rispondi alla domanda\",IF(COUNTA(L389:L391)>1,\"Controlla Risposta\",\"ok\"))","v":"Rispondi alla domanda"}]
[null,null,"a) sì, utilizzo tutti i redditi derivanti dai miei investimenti per mantenere il mio tenore di vita"]
[null,null,"b) si, utilizzo circa il 50% dei redditi derivanti dai miei investimenti per mantenere inalterato il mio di vita"]
[null,null,"c) no, non utilizzo questi redditi per mantenere costante il mio tenore di vita"]
[]
[null,"B.6)","QUAL’E’ IL REDDITO NETTO SU BASE ANNUA, INCLUSE LE RENDITE IMMOBILIARI, ASSICURATIVE O SIMILARI (ESCLUSI I RENDIMENTI FINANZIARI)? ",null,null,null,null,null,null,null,null,null,{"$f":"+IF(COUNTA(L394:L397)=0,\"Rispondi alla domanda\",IF(COUNTA(L394:L397)>1,\"Controlla Risposta\",\"ok\"))","v":"Rispondi alla domanda"}]
[null,null,"a) fino a 20.000 Euro"]
[null,null,"b) da 20.000 a 50.000 Euro"]
[null,null,"c) da 50.000 a 100.000 Euro"]
[null,null,"d) oltre 100.000"]
[]
[null,"B.7)","NEI PROSSIMI ANNI COSA PENSA POSSA ACCADERE AL SUO REDDITO?",null,null,null,null,null,null,null,null,null,{"$f":"+IF(COUNTA(L400:L404)=0,\"Rispondi alla domanda\",IF(COUNTA(L400:L404)>1,\"Controlla Risposta\",\"ok\"))","v":"Rispondi alla domanda"}]
[null,null,"a) diminuirà sensibilmente"]
[null,null,"b) diminuirà leggermente"]
[null,null,"c) rimarrà invariato"]
[null,null,"d) aumenterà leggermente"]
[null,null,"e) aumenterà notevolmente"]
[]
[null,"B.8)","A QUANTO AMMONTA IL RISPARMIO SU BASE ANNUA? ",null,null,null,null,null,null,null,null,null,{"$f":"+IF(COUNTA(L407:L410)=0,\"Rispondi alla domanda\",IF(COUNTA(L407:L410)>1,\"Controlla Risposta\",\"ok\"))","v":"Rispondi alla domanda"}]
[null,null,"a) fino a 10.000 Euro"]
[null,null,"b) da 10.000 a 30.000 Euro"]
[null,null,"c) da 30.000 a 60.000 Euro"]
[null,null,"d) oltre 60.000"]
[]
[null,"B.9)","A QUANTO AMMONTANO I SUEI IMPEGNI FINANZIARI FUTURI?",null,null,null,null,null,null,null,null,null,{"$f":"+IF(COUNTA(L413:L416)=0,\"Rispondi alla domanda\",IF(COUNTA(L413:L416)>1,\"Controlla Risposta\",\"ok\"))","v":"Rispondi alla domanda"}]
[null,null,"a) oltre il triplo del mio reddito annuo"]
[null,null,"b) circa il doppio del mio reddito annuo"]
[null,null,"c) circa il valore del mio reddito annuo"]
[null,null,"d) non ho impegni finanziari"]
[]
[null,"B.10)","NEL CORSO DEI PROSSIMI ANNI, COSA PENSA CHE POTRA’ ACCADERE ALLA SUA QUOTA DI RISPARMIO ANNUO?",null,null,null,null,null,null,null,null,null,{"$f":"+IF(COUNTA(L419:L423)=0,\"Rispondi alla domanda\",IF(COUNTA(L419:L423)>1,\"Controlla Risposta\",\"ok\"))","v":"Rispondi alla domanda"}]
[null,null,"a) diminuirà sensibilmente"]
[null,null,"b) diminuirà leggermente"]
[null,null,"c) rimarrà invariato"]
[null,null,"d) aumenterà leggermente"]
[null,null,"e) aumenterà notevolmente"]
[]
[]
[null,"C)","OBIETTIVI FINANZIARI"]
[]
[null,"C.1) ","QUALI SONO LE SUE ASPETTATIVE DI RENDIMENTO PER IL SUO PORTAFOGLIO FINANZIARIO? ",null,null,null,null,null,null,null,null,null,{"$f":"+IF(COUNTA(L429:L432)=0,\"Rispondi alla domanda\",IF(COUNTA(L429:L432)>1,\"Controlla Risposta\",\"ok\"))","v":"Rispondi alla domanda"}]
[null,null,"a) preservare il capitale cercando di recuperare l’inflazione"]
[null,null,"b) il rendimento deve tenere almeno il passo con l’inflazione, con una volatilità medio/bassa"]
[null,null,"c) il rendimento deve essere superiore all’inflazione, accettando una discreta volatilità"]
[null,null,"d) il rendimento deve essere superiore in modo significativo all’inflazione, anche se questo comporta una volatilità elevata"]
[]
[null,"C.2) ","HA IN PROGRAMMA DI DOVER UTILIZZARE NEI PROSSIMI ANNI UNA PARTE DEL SUO PATRIMONIO PER OBIETTIVI ",null,null,null,null,null,null,null,null,null,"Risposta multipla"]
[null,null,"a) integrazione pensionistica"]
[null,null,"b) acquisto / ristrutturazione di immobili"]
[null,null,"c) esigenze economiche per i figli o altri familiari"]
[null,null,"d) esigenze di salute"]
[null,null,"e) esigenze imprenditoriali"]
[null,null,"f) acquisto beni mobili"]
[null,null,"g) viaggi"]
[null,null,"h) altro ___________________________________________________________"]
[]
[]
[null,"D)","TOLLERANZA AL RISCHIO"]
[null,"D.1) ","FATTO IPOTETICAMENTE 100.000 EURO IL PATRIMONIO FINANZIARIO E TENENDO CONTO DELLE INEVITABILI OSCILLAZIONI NEGATIVE, QUANT’E’ LA PERDITA MASSIMA CHE E’ DISPOSTO AD ACCETTARE NELL’ARCO DI 12 MESI (V.A.R. SU 252 GG. LAVORATIVI CON CONFIDENZA AL 99%) ",null,null,null,null,null,null,null,null,null,{"$f":"+IF(COUNTA(L447:L450)=0,\"Rispondi alla domanda\",IF(COUNTA(L447:L450)>1,\"Controlla Risposta\",\"ok\"))","v":"Rispondi alla domanda"}]
[null,null,"a) inferiore al 2%, ovvero portafoglio finale di 98.000 euro"]
[null,null,"b) dal 2% al 7%, ovvero portafoglio finale da 93.000 a 98.000 euro"]
[null,null,"c) dal 7% al 12%, ovvero portafoglio finale da 88.000 a 93.000 euro"]
[null,null,"d) superiore al 12%, ovvero portafoglio finale anche inferiore a 88.000 euro"]
[]
[null,"D.2) ","NEL CASO SI FOSSE CONCRETIZZATA, NELL’ARCO DI POCO TEMPO, LA PERDITA MASSIMA DA LEI INDICATA NELLE DOMANDE SOPRA INDICATE, COSA FAREBBE? ",null,null,null,null,null,null,null,null,null,{"$f":"+IF(COUNTA(L453:L457)=0,\"Rispondi alla domanda\",IF(COUNTA(L453:L457)>1,\"Controlla Risposta\",\"ok\"))","v":"Rispondi alla domanda"}]
[null,null,"a) disinvesto il capitale"]
[null,null,"b) sposto immediatamente il capitale su investimenti più conservativi per non avere altre perdite"]
[null,null,"c) seguo la situazione, se continua a peggiorare sposto parte del capitale su investimenti più conservativi"]
[null,null,"d) mi faccio consigliare dal consulente finanziario per verificare se la mia asset allocation è corretta e accetto la volatilità dei mercati"]
[null,null,"e) prendo in considerazione di aumentare l’investimento, perché forse si tratta di un’opportunità di acquisto a basso prezzo"]
[]
[null,"D.3)","NEL CASO SI FOSSE CONCRETIZZATA, NELL’ARCO DI POCO TEMPO, LA PERDITA MASSIMA DA LEI INDICATA NELLA DOMANDA PRECEDENTE:",null,null,null,null,null,null,null,null,null,{"$f":"+IF(COUNTA(L460:L463)=0,\"Rispondi alla domanda\",IF(COUNTA(L460:L463)>1,\"Controlla Risposta\",\"ok\"))","v":"Rispondi alla domanda"}]
[null,null,"a) di forte preoccupazione "]
[null,null,"b) di preoccupazione"]
[null,null,"c) di leggera preoccupazione"]
[null,null,"d) di consapevole accettazione"]
[]
[null,"D.4)","QUANDO E’ D’ACCORDO CON QUESTA AFFERMAZIONE? \n“Mi considero paziente con i miei investimenti finanziari. Sono disponibile ad accettare periodi nei quali il rendimento del portafoglio è negativo”:",null,null,null,null,null,null,null,null,null,{"$f":"+IF(COUNTA(L466:L469)=0,\"Rispondi alla domanda\",IF(COUNTA(L466:L469)>1,\"Controlla Risposta\",\"ok\"))","v":"Rispondi alla domanda"}]
[null,null,"a) totale disaccordo"]
[null,null,"b) disaccordo"]
[null,null,"c) concordo"]
[null,null,"d) concordo pienamente  "]
[null,null,null,null,null,null,null,null,null,null,null,null,{"$f":"IF(L470>1,\"n° ERR\",\" \")","v":" "}]
[null,"D.5)","PENSA IN FUTURO PER LA GESTIONE DEL SUO PATRIMONIO DI DOVER ASSUMERE PIU’ RISCHI RISPETTO AL PASSATO?",null,null,null,null,null,null,null,null,null,{"$f":"+IF(COUNTA(L472:L473)=0,\"Rispondi alla domanda\",IF(COUNTA(L472:L473)>1,\"Controlla Risposta\",\"ok\"))","v":"Rispondi alla domanda"}]
[null,null,"a) si"]
[null,null,"b) no"]
[]
[null,"D.6)","IMMAGINI DI PARTECIPARE A UNO SHOW TELEVISIVO. IL PRESENTATORE LE OFFRE UNA SERIE DI PROPOSTE. QUALE SCEGLIE? ",null,null,null,null,null,null,null,null,null,{"$f":"+IF(COUNTA(L476:L479)=0,\"Rispondi alla domanda\",IF(COUNTA(L476:L479)>1,\"Controlla Risposta\",\"ok\"))","v":"Rispondi alla domanda"}]
[null,null,"a) una vincita di 1.000 euro in contanti subito"]
[null,null,"b) una vincita di 5.000 euro con il 50% di possibilità"]
[null,null,"c) una vincita di 15.000 euro con il 25% di possibilità"]
[null,null,"d) una vincita di 100.000 euro con il 5% di possibilità"]
[]
[null,"D.7)","IMMAGINI CHE UN LONTANO ZIO LE ABBIA LASCIATO IN EREDITA’ UN PATRIMONIO IMPORTANTE MA ABBIA ESPRESSO NEL TESTAMENTO LA VOLONTA’ DI INVESTIRE TUTTO L’IMPORTO IN UNA DI QUESTE ALTERNATIVE. QUALE SCEGLIE? ",null,null,null,null,null,null,null,null,null,{"$f":"+IF(COUNTA(L482:L485)=0,\"Rispondi alla domanda\",IF(COUNTA(L482:L485)>1,\"Controlla Risposta\",\"ok\"))","v":"Rispondi alla domanda"}]
[null,null,"a)  un deposito bancario o un fondo monetario"]
[null,null,"b) un fondo comune bilanciato (che investe sia in obbligazioni che in azioni)"]
[null,null,"c) un portafoglio di 15 azioni"]
[null,null,"d) beni come oro, gioielli, quadri, case"]
[]
[null,"E)","ORIZZONTE TEMPORALE D'INVESTIMENTO"]
[null,"E.1)","QUAL’E’ L’ORIZZONTE TEMPORALE PRINCIPALE CHE SI PONE? ",null,null,null,null,null,null,null,null,null,{"$f":"+IF(COUNTA(L489:L492)=0,\"Rispondi alla domanda\",IF(COUNTA(L489:L492)>1,\"Controlla Risposta\",\"ok\"))","v":"Rispondi alla domanda"}]
[null,null,"a) breve termine; minore di 1 anno"]
[null,null,"b) breve/medio termine; minore di 3 anni"]
[null,null,"c) medio termine; minore  di 5 anni"]
[null,null,"d) lungo termine; oltre 5 anni"]
[]
[]
[null,null,"RITIENE CHE VI SIANO INFORMAZIONI DA COMUNICARE CHE NON SONO STATE AFFRONTATE DAL QUESTIONARIO? LE INDICHI DI SEGUITO"]
[]
[]
[]
[]
[]
[]
[]
[null,null,"FACOLTATIVE (non contribuiranno alla formazione del punteggio):"]
[]
[null,null,"COME DEFINIREBBE LA SUA PERSONALITA’? "]
[null,null,"a) mi aspetto sempre il peggio. Sono un pessimista"]
[null,null,"b) mi preoccupo facilmente. Sono ansioso"]
[null,null,"c) sono prudente ma aperto a considerare nuove idee"]
[null,null,"d) posso prendere una decisione valutando i pro e i contro. Sono obiettivo"]
[null,null,"e) le cose alla fine si aggiustano sempre. Sono ottimista"]
[]
[null,null,"QUANDO CONTROLLA GLI INVESTIMENTI NEL CORSO DEL TEMPO, SU COSA TENDE A CONCENTRARSI? "]
[null,null,"a) sugli investimenti che stanno avendo un risultato negativo"]
[null,null,"b) sugli investimenti che stanno avendo un risultato molto positivo"]
[null,null,"c) sui recenti rendimenti del portafoglio complessivo"]
[null,null,"d) sul rendimento a lungo termine del portafoglio complessivo"]
[]
[null,null,"QUALI DI QUESTE COPERTURE ASSICURATIVE RELATIVE ALLA TUTELA DELLA PERSONA POSSIEDE?"]
[null,null,"rischio morte"]
[null,null,"rischio invalidità permanente da infortunio"]
[null,null,"rischio invalidità permanente da malattia"]
[null,null,"coperture sanitarie"]
[]
[null,null,"I SUOI FAMILIARI POSSIEDONO SIMILI COPERURE ASSICURATIVE?"]
[null,null,"si",null,null,null,null,null,null,null,null,null,{"$f":"IF(L525>1,\"n° ERR\",\" \")","v":" "}]
[null,null,"no",null,null,null,null,null,null,null,null,null,{"$f":"IF(L526>1,\"n° ERR\",\" \")","v":" "}]
[null,null,null,null,null,null,null,null,null,null,null,null,{"$f":"IF(L527>1,\"n° ERR\",\" \")","v":" "}]
[null,null,"QUALI DI QUESTE COPERTURE ASSICURATIVE RELATIVE ALLA TUTELA DEL PATRIMONIO POSSIEDE?"]
[null,null,"responsabilità civile verso terzi"]
[null,null,"protezione degli immobili"]
[null,null,"protezione del rischio professionale"]
[]
[null,null,"QUALI DI QUESTI PRODOTTI PENSIONISTICI POSSIEDE?"]
[null,null,"fondo pensione di categoria"]
[null,null,"fondo pensione aperto"]
[null,null,"piano idividuale di previdenza (PIP) e/o polizze vita"]
[]
[]
[]
["Risultati del test di adeguatezza"]
[]
[null,null,null,null,null,null,null,null,null,{"$f":"IF(L533>0,1,0)","v":0}]
[]
[]
["SEZIONE 1: CONOSCENZA ED ESPERIENZA"]
[]
[null,null,null,null,{"$f":"+calcolo!AB502","v":0},{"$f":"+calcolo!AC502","v":0},{"$f":"+calcolo!AD502","v":0},{"$f":"+calcolo!AE502","v":0}]
[null,null,null,null,"scarsa","sufficiente","buona","ottima"]
[]
["SEZIONE 2: SITUAZIONE FINANZIARIA E CAPACITA' DI SOPPORTARE LE PERDITE"]
[]
[null,null,null,null,{"$f":"+calcolo!AB509","v":0},{"$f":"+calcolo!AC509","v":0},{"$f":"+calcolo!AD509","v":0},{"$f":"+calcolo!AE509","v":0}]
[null,null,null,null,"Difficile","Sufficiente","Buona","Brillante"]
[]
["SEZIONE 3: OBIETTIVI TOLLERANZA AL RISCHIO ED ORIZZONTE TEMPORALE"]
[]
[null,null,null,null,{"$f":"+calcolo!AB514","v":0},{"$f":"+calcolo!AC514","v":0},{"$f":"+calcolo!AD514","v":0},{"$f":"+calcolo!AE514","v":0}]
[null,null,null,null,{"$f":"+calcolo!AB515","v":"protezione"},{"$f":"+calcolo!AC515","v":"inflazione"},{"$f":"+calcolo!AD515","v":"crescita"},{"$f":"+calcolo!AE515","v":"aggressivo"}]
[]
[]
["SEZIONE 4: ORIZZONTE TEMPORALE D'INVESTIMENTO"]
[]
[null,null,null,null,{"$f":"+calcolo!AB526","v":0},{"$f":"+calcolo!AC526","v":0},{"$f":"+calcolo!AD526","v":0},{"$f":"+calcolo!AE526","v":0}]
[null,null,null,null,{"$f":"+calcolo!AB527","v":"< 1 ANNO"},{"$f":"+calcolo!AC527","v":"< 3 ANNI"},{"$f":"+calcolo!AD527","v":"< 5 ANNI"},{"$f":"+calcolo!AE527","v":"> 5 ANNI"}]
[]
["RISULTATO COMPLESSIVO"]
[]
[null,null,null,null,"var basso ","var medio basso","var medio alto","var alto"]
[null,null,null,null,{"$f":"+calcolo!AB535","v":"*"},{"$f":"+calcolo!AC535","v":""},{"$f":"+calcolo!AD535","v":""},{"$f":"+calcolo!AE535","v":""}]

{"sheet":"calcolo","index":2,"n_rows":542,"n_cols":34,"rows_kept":542,"cut":false,"hidden":true,"merged":[[36,2,36,9],[35,2,35,9],[22,2,22,9],[39,2,39,9],[54,2,54,9],[53,2,53,9],[49,2,49,9],[45,2,45,9],[44,2,44,9],[43,2,43,9],[42,2,42,9],[41,2,41,9],[37,2,37,9],[61,2,61,9],[60,2,60,9],[59,2,59,9],[57,2,57,9],[56,2,56,9],[55,2,55,9],[64,3,64,9],[65,3,65,9],[66,3,66,9],[72,3,72,9],[63,2,63,9],[126,2,126,9],[113,2,113,9],[105,2,105,9],[107,2,107,9],[115,2,115,9],[128,2,128,9],[141,2,141,9],[83,3,83,9],[84,3,84,9],[85,3,85,9],[89,2,89,9],[76,2,76,9],[77,3,77,9],[78,3,78,9],[79,3,79,9],[80,3,80,9],[82,3,82,9],[74,2,74,9],[67,3,67,9],[69,3,69,9],[70,3,70,9],[71,3,71,9],[147,2,147,9],[162,2,162,9],[202,3,202,10],[200,3,200,10],[199,3,199,10],[198,3,198,10],[197,3,197,10],[196,3,196,10],[195,2,195,9],[192,3,192,10],[184,3,184,10],[183,3,183,10],[182,3,182,10],[149,2,149,9],[186,3,186,10],[185,3,185,10],[180,3,180,10],[373,2,373,9],[396,2,396,9],[352,3,352,10],[371,2,371,9],[356,2,356,9],[343,3,343,10],[351,3,351,10],[174,2,174,9],[173,2,173,9],[249,3,249,10],[250,3,250,10],[251,3,251,10],[265,3,265,10],[266,3,266,10],[350,3,350,10],[349,3,349,10],[228,3,228,10],[219,3,219,10],[220,3,220,10],[366,2,366,9],[235,2,235,9],[217,3,217,10],[218,3,218,10],[215,2,215,9],[494,22,494,25],[520,2,520,9],[505,2,505,9],[506,2,506,9],[13,2,13,9],[14,2,14,9],[15,2,15,9],[16,2,16,9],[17,2,17,9],[18,2,18,9],[504,2,504,9],[512,2,512,9],[513,2,513,9],[514,2,514,9],[515,2,515,9],[507,2,507,9],[508,2,508,9],[509,2,509,9],[511,2,511,9],[399,2,399,9],[255,2,255,9],[403,2,403,9],[390,2,390,9],[385,2,385,9],[494,17,494,20],[30,2,30,9],[31,2,31,9],[32,2,32,9],[33,2,33,9],[429,2,429,9],[176,3,176,10],[46,2,46,9],[52,2,52,9],[47,2,47,9],[50,2,50,9],[51,2,51,9],[368,2,368,9],[387,2,387,9],[160,2,160,9],[295,2,295,9],[402,2,402,9],[401,2,401,9],[337,3,337,10],[398,2,398,9],[395,2,395,9],[393,2,393,9],[392,2,392,9],[490,2,490,9],[487,22,487,25],[427,22,427,25],[444,22,444,25],[486,22,486,25],[262,22,262,25],[398,22,398,25],[215,31,215,38],[235,31,235,38],[255,31,255,38],[335,31,335,38],[392,27,392,34],[391,27,391,34],[390,27,390,34],[356,26,356,33],[357,26,357,33],[295,31,295,38],[315,31,315,38],[275,31,275,38],[242,22,242,25],[216,22,216,25],[276,22,276,25],[348,22,348,25],[282,22,282,25],[288,22,288,25],[348,17,348,20],[297,3,297,10],[405,17,405,20],[445,27,445,34],[358,26,358,33],[359,26,359,33],[360,26,360,33],[382,22,382,25],[370,22,370,25],[365,22,365,25],[392,22,392,25],[405,22,405,25],[398,27,398,34],[411,22,411,25],[387,22,387,25],[376,22,376,25],[322,17,322,20],[322,22,322,25],[328,17,328,20],[328,22,328,25],[342,22,342,25],[342,17,342,20],[370,17,370,20],[433,17,433,20],[296,17,296,20],[296,22,296,25],[302,17,302,20],[302,22,302,25],[308,17,308,20],[308,22,308,25],[316,17,316,20],[316,22,316,25],[336,17,336,20],[336,22,336,25],[411,17,411,20],[480,22,480,25],[464,22,464,25],[464,17,464,20],[458,22,458,25],[268,22,268,25],[502,2,502,9],[456,2,456,9],[449,2,449,9],[446,2,446,9],[447,2,447,9],[482,2,482,9],[481,2,481,9],[480,2,480,9],[478,2,478,9],[477,2,477,9],[476,2,476,9],[468,2,468,9],[464,2,464,9],[462,2,462,9],[461,2,461,9],[458,2,458,9],[288,17,288,20],[459,2,459,9],[282,17,282,20],[474,22,474,25],[433,22,433,25],[376,17,376,20],[236,17,236,20],[236,22,236,25],[387,17,387,20],[363,17,363,20],[355,22,355,25],[363,22,363,25],[365,17,365,20],[382,17,382,20],[417,17,417,20],[417,22,417,25],[451,22,451,25],[451,17,451,20],[445,17,445,20],[445,22,445,25],[458,17,458,20],[470,22,470,25],[425,22,425,25],[470,17,470,20],[256,22,256,25],[392,17,392,20],[82,22,82,25],[20,17,20,20],[139,2,139,9],[357,2,357,9],[355,2,355,9],[355,17,355,20],[358,2,358,9],[348,3,348,10],[346,3,346,10],[345,3,345,10],[258,3,258,10],[259,3,259,10],[320,3,320,10],[319,3,319,10],[338,3,338,10],[328,3,328,10],[342,3,342,10],[340,3,340,10],[339,3,339,10],[271,3,271,10],[262,17,262,20],[268,17,268,20],[298,3,298,10],[299,3,299,10],[0,16,0,20],[0,22,0,25],[23,2,23,9],[24,2,24,9],[25,2,25,9],[26,2,26,9],[27,2,27,9],[28,2,28,9],[8,2,8,9],[9,2,9,9],[10,2,10,9],[11,2,11,9],[3,2,3,10],[4,2,4,10],[2,2,2,10],[20,22,20,25],[7,2,7,9],[5,2,5,10],[21,2,21,9],[20,2,20,9],[487,17,487,20],[427,2,427,9],[428,2,428,9],[432,2,432,9],[431,2,431,9],[425,17,425,20],[430,2,430,9],[425,2,425,9],[442,2,442,9],[487,2,487,9],[427,17,427,20],[455,2,455,9],[454,2,454,9],[453,2,453,9],[451,2,451,9],[474,17,474,20],[460,2,460,9],[398,17,398,20],[444,2,444,9],[444,17,444,20],[486,2,486,9],[486,17,486,20],[480,17,480,20],[483,2,483,9],[535,2,535,9],[517,2,517,9],[527,2,527,9],[422,2,422,9],[433,2,433,9],[407,2,407,9],[488,2,488,9],[445,2,445,9],[417,2,417,9],[415,2,415,9],[414,2,414,9],[413,2,413,9],[412,2,412,9],[411,2,411,9],[409,2,409,9],[408,2,408,9],[406,2,406,9],[378,2,378,9],[379,2,379,9],[380,2,380,9],[540,2,540,9],[533,2,533,9],[521,2,521,9],[530,2,530,9],[528,2,528,9],[529,2,529,9],[470,2,470,9],[523,2,523,9],[524,2,524,9],[525,2,525,9],[526,2,526,9],[471,2,471,9],[472,2,472,9],[474,2,474,9],[534,2,534,9],[532,2,532,9],[484,2,484,9],[494,2,494,9],[475,2,475,9],[491,2,491,9],[236,3,236,10],[176,17,176,20],[216,17,216,20],[242,17,242,20],[418,2,418,9],[400,2,400,9],[489,2,489,9],[344,3,344,10],[359,2,359,9],[384,2,384,9],[382,2,382,9],[377,2,377,9],[376,2,376,9],[375,2,375,9],[360,2,360,9],[363,2,363,9],[374,2,374,9],[389,2,389,9],[388,2,388,9],[372,2,372,9],[370,2,370,9],[367,2,367,9],[365,2,365,9],[383,2,383,9],[173,22,173,25],[173,17,173,20],[248,17,248,20],[248,22,248,25],[196,22,196,25],[188,17,188,20],[188,22,188,25],[208,17,208,20],[222,22,222,25],[228,22,228,25],[228,17,228,20],[202,17,202,20],[202,22,202,25],[196,17,196,20],[222,17,222,20],[176,22,176,25],[182,17,182,20],[182,22,182,25],[208,22,208,25],[82,17,82,20],[519,2,519,9],[394,2,394,9],[419,2,419,9],[420,2,420,9],[421,2,421,9],[434,2,434,9],[435,2,435,9],[436,2,436,9],[437,2,437,9],[438,2,438,9],[439,2,439,9],[440,2,440,9],[441,2,441,9],[518,2,518,9],[465,2,465,9],[466,2,466,9],[467,2,467,9],[452,2,452,9],[448,2,448,9],[405,2,405,9],[231,3,231,10],[230,3,230,10],[229,3,229,10],[35,22,35,25],[77,17,77,20],[77,22,77,25],[59,22,59,25],[64,17,64,20],[64,22,64,25],[53,22,53,25],[41,17,41,20],[41,22,41,25],[49,17,49,20],[49,22,49,25],[53,17,53,20],[69,17,69,20],[69,22,69,25],[59,17,59,20],[35,17,35,20],[39,17,39,20],[39,22,39,25],[87,2,87,9],[206,3,206,10],[175,2,175,9],[222,3,222,10],[223,3,223,10],[224,3,224,10],[225,3,225,10],[226,3,226,10],[210,3,210,10],[209,3,209,10],[208,3,208,10],[205,3,205,10],[204,3,204,10],[212,3,212,10],[216,3,216,10],[211,3,211,10],[203,3,203,10],[177,3,177,10],[178,3,178,10],[179,3,179,10],[191,3,191,10],[190,3,190,10],[189,3,189,10],[188,3,188,10],[284,3,284,10],[285,3,285,10],[237,3,237,10],[238,3,238,10],[280,3,280,10],[282,3,282,10],[283,3,283,10],[279,3,279,10],[278,3,278,10],[269,3,269,10],[277,3,277,10],[239,3,239,10],[260,3,260,10],[276,17,276,20],[240,3,240,10],[242,3,242,10],[243,3,243,10],[244,3,244,10],[245,3,245,10],[246,3,246,10],[248,3,248,10],[262,3,262,10],[263,3,263,10],[264,3,264,10],[270,3,270,10],[272,3,272,10],[276,3,276,10],[256,17,256,20],[252,3,252,10],[232,3,232,10],[256,3,256,10],[257,3,257,10],[275,2,275,9],[268,3,268,10],[331,3,331,10],[332,3,332,10],[336,3,336,10],[323,3,323,10],[322,3,322,10],[326,3,326,10],[325,3,325,10],[324,3,324,10],[335,2,335,9],[329,3,329,10],[330,3,330,10],[315,2,315,9],[300,3,300,10],[302,3,302,10],[311,3,311,10],[312,3,312,10],[316,3,316,10],[317,3,317,10],[318,3,318,10],[305,3,305,10],[306,3,306,10],[308,3,308,10],[309,3,309,10],[310,3,310,10],[286,3,286,10],[288,3,288,10],[289,3,289,10],[290,3,290,10],[291,3,291,10],[292,3,292,10],[296,3,296,10],[303,3,303,10],[304,3,304,10]]}
[null,"Questionario finanziario, valutazione di adeguatezza",null,null,null,null,null,null,null,null,null,null,null,null,null,null,"Indicatore adeguatezza"]
[null,"nome consulente"]
[null,1,"DATI ANAGRAFICI "]
[null,null,{"$f":"+'QUEST PROFILATURA CLIENTI'!C4:K4","v":"CFA SCF"}]
[null,null,{"$f":"+'QUEST PROFILATURA CLIENTI'!C5:K5","v":"xx/xx/xxxx"}]
[null,null,{"$f":"+'QUEST PROFILATURA CLIENTI'!C6:K6","v":"codice fiscale"}]
[]
[null,2,"TITOLARITA' DEL PATRIMONIO OGGETTO DI CONSULENZA"]
[null,null,"il patrimonio finanziario è di mia esclusiva proprietà ",null,null,null,null,null,null,null,null,{"$f":"+IF('QUEST PROFILATURA CLIENTI'!L9=\"\",0,1)","v":0},1]
[null,null,"il patrimonio finanziario è di mia proprietà e del mio coniuge",null,null,null,null,null,null,null,null,{"$f":"+IF('QUEST PROFILATURA CLIENTI'!L10=\"\",0,1)","v":0},2]
[null,null,"sono comproprietario del patrimonio finanziario con uno o più familiari",null,null,null,null,null,null,null,null,{"$f":"+IF('QUEST PROFILATURA CLIENTI'!L11=\"\",0,1)","v":0},3]
[null,null,"il patrimonio finanziario appartiene ad uno o più familiari cui presto assistenza nella gestione",null,null,null,null,null,null,null,null,{"$f":"+IF('QUEST PROFILATURA CLIENTI'!L12=\"\",0,1)","v":0},4]
[null,null,null,null,null,null,null,null,null,null,null,{"$f":"+IF('QUEST PROFILATURA CLIENTI'!L13=\"\",0,1)","v":0}]
[null,3,"INFORMAZIONI RIGUARDO AL/AI SOGGETTO/I CUI APPARTIENE IL PATRIMONIO FINANZIARIO, AL/AI SOGGETTO/I CHE INTRATTENGONO IL RAPPORTO DI CONSULENZA (art 109-septies punto 7)",null,null,null,null,null,null,null,null,{"$f":"+IF('QUEST PROFILATURA CLIENTI'!L14=\"\",0,1)","v":0}]
[null,null,null,null,null,null,null,null,null,null,null,{"$f":"+IF('QUEST PROFILATURA CLIENTI'!L15=\"\",0,1)","v":0}]
[null,null,null,null,null,null,null,null,null,null,null,{"$f":"+IF('QUEST PROFILATURA CLIENTI'!L16=\"\",0,1)","v":0}]
[null,null,null,null,null,null,null,null,null,null,null,{"$f":"+IF('QUEST PROFILATURA CLIENTI'!L17=\"\",0,1)","v":0}]
[null,null,null,null,null,null,null,null,null,null,null,{"$f":"+IF('QUEST PROFILATURA CLIENTI'!L18=\"\",0,1)","v":0}]
[null,null,null,null,null,null,null,null,null,null,null,{"$f":"+IF('QUEST PROFILATURA CLIENTI'!L19=\"\",0,1)","v":0}]
[null,null,null,null,null,null,null,null,null,null,null,{"$f":"+IF('QUEST PROFILATURA CLIENTI'!L20=\"\",0,1)","v":0}]
[null,4,"STATO CIVILE",null,null,null,null,null,null,null,null,{"$f":"+IF('QUEST PROFILATURA CLIENTI'!L21=\"\",0,1)","v":0}]
[null,null,"Coniugato in regime non conosciuto",null,null,null,null,null,null,null,null,{"$f":"+IF('QUEST PROFILATURA CLIENTI'!L22=\"\",0,1)","v":0},1]
[null,null,"Vedova/o",null,null,null,null,null,null,null,null,{"$f":"+IF('QUEST PROFILATURA CLIENTI'!L23=\"\",0,1)","v":0},2]
[null,null,"Non coniugato",null,null,null,null,null,null,null,null,{"$f":"+IF('QUEST PROFILATURA CLIENTI'!L24=\"\",0,1)","v":0},3]
[null,null,"Coniugato in regime di comunione legale",null,null,null,null,null,null,null,null,{"$f":"+IF('QUEST PROFILATURA CLIENTI'!L25=\"\",0,1)","v":0},4]
[null,null,"Coniugato in regime di comunione convenzionale",null,null,null,null,null,null,null,null,{"$f":"+IF('QUEST PROFILATURA CLIENTI'!L26=\"\",0,1)","v":0},5]
[null,null,"Coniugato in regime di separazione dei beni",null,null,null,null,null,null,null,null,{"$f":"+IF('QUEST PROFILATURA CLIENTI'!L27=\"\",0,1)","v":0},6]
[null,null,"Separato/divorziato",null,null,null,null,null,null,null,null,{"$f":"+IF('QUEST PROFILATURA CLIENTI'!L28=\"\",0,1)","v":0},7]
[null,null,"Altro",null,null,null,null,null,null,null,null,{"$f":"+IF('QUEST PROFILATURA CLIENTI'!L29=\"\",0,1)","v":0},8]
[null,null,null,null,null,null,null,null,null,null,null,{"$f":"+IF('QUEST PROFILATURA CLIENTI'!L30=\"\",0,1)","v":0}]
[null,5,"COMPOSIZIONE DELLA FAMIGLIA",null,null,null,null,null,null,null,null,{"$f":"+IF('QUEST PROFILATURA CLIENTI'!L31=\"\",0,1)","v":0}]
[null,null,"Numero Componenti nucleo familiare",null,null,null,null,null,null,null,null,{"$f":"+IF('QUEST PROFILATURA CLIENTI'!L32=\"\",0,1)","v":0},1]
[null,null,"Numero Percettori di reddito",null,null,null,null,null,null,null,null,{"$f":"+IF('QUEST PROFILATURA CLIENTI'!L33=\"\",0,1)","v":0},2]
[null,null,"Numero di Persone a carico",null,null,null,null,null,null,null,null,{"$f":"+IF('QUEST PROFILATURA CLIENTI'!L34=\"\",0,1)","v":0},3]
[null,null,null,null,null,null,null,null,null,null,null,{"$f":"+IF('QUEST PROFILATURA CLIENTI'!L35=\"\",0,1)","v":0},null,null,null,null,"Pesi",1,2,3,4]
[null,6,"ABITAZIONE PRINCIPALE",null,null,null,null,null,null,null,null,{"$f":"+IF('QUEST PROFILATURA CLIENTI'!L36=\"\",0,1)","v":0},null,null,null,null,1,"Abitazione",null,null,null,null,"Abitazione"]
[null,null,"a) in affitto",null,null,null,null,null,null,null,null,{"$f":"+IF('QUEST PROFILATURA CLIENTI'!L37=\"\",0,1)","v":0},1,null,null,{"$f":"SUM(R37:U37)","v":200},1,90,67,33,10,null,{"$f":"$L37*($Q$36*($Q37*R37/100))","v":0},0,0,0]
[null,null,"b) casa di proprietà",null,null,null,null,null,null,null,null,{"$f":"+IF('QUEST PROFILATURA CLIENTI'!L38=\"\",0,1)","v":0},2,null,null,{"$f":"SUM(R38:U38)","v":199.6},1,10,33,66.599999999999994,90,null,0,0,0,0]
[null,null,null,null,null,null,null,null,null,null,null,{"$f":"+IF('QUEST PROFILATURA CLIENTI'!L39=\"\",0,1)","v":0}]
[null,"A)","CONOSCENZA ed ESPERIENZA",null,null,null,null,null,null,null,null,{"$f":"+IF('QUEST PROFILATURA CLIENTI'!L40=\"\",0,1)","v":0},null,null,null,null,null,"ESPERIENZA E CONOSCENZA",null,null,null,null,"ESPERIENZA E CONOSCENZA"]
[null,null,null,null,null,null,null,null,null,null,null,{"$f":"+IF('QUEST PROFILATURA CLIENTI'!L41=\"\",0,1)","v":0}]
[null,"A.1)","ATTIVITA' PROFESSIONALE",null,null,null,null,null,null,null,null,{"$f":"+IF('QUEST PROFILATURA CLIENTI'!L42=\"\",0,1)","v":0},null,null,null,null,0.5,"Attività professionale",null,null,null,null,"Attività professionale"]
[null,null,"a) non occupato",null,null,null,null,null,null,null,null,{"$f":"+IF('QUEST PROFILATURA CLIENTI'!L43=\"\",0,1)","v":0},1,null,null,{"$f":"SUM(R43:U43)","v":200},1.5,90,70,30,10,null,{"$f":"$L43*($Q$42*($Q43*R43/100))","v":0},{"$f":"$L43*($Q$42*($Q43*S43/100))","v":0},{"$f":"$L43*($Q$42*($Q43*T43/100))","v":0},{"$f":"$L43*($Q$42*($Q43*U43/100))","v":0}]
[null,null,"b) occupato con contratto temporaneo",null,null,null,null,null,null,null,null,{"$f":"+IF('QUEST PROFILATURA CLIENTI'!L44=\"\",0,1)","v":0},2,null,null,{"$f":"SUM(R44:U44)","v":200},1,65,55,45,35,null,{"$f":"$L44*($Q$42*($Q44*R44/100))","v":0},{"$f":"$L44*($Q$42*($Q44*S44/100))","v":0},0,0]
[null,null,"c) pensionato",null,null,null,null,null,null,null,null,{"$f":"+IF('QUEST PROFILATURA CLIENTI'!L45=\"\",0,1)","v":0},3,null,null,200,1,70,55,45,30,null,0,0,0,0]
[null,null,"d) occupato con contratto a tempo indeterminato",null,null,null,null,null,null,null,null,{"$f":"+IF('QUEST PROFILATURA CLIENTI'!L46=\"\",0,1)","v":0},4,null,null,200,1,30,40,60,70,null,0,0,0,0]
[null,null,"e) autonomo / professionista",null,null,null,null,null,null,null,null,{"$f":"+IF('QUEST PROFILATURA CLIENTI'!L47=\"\",0,1)","v":0},5,null,null,199.6,1.6,10,33,66.599999999999994,90,null,0,0,0,0]
[null,null,"f) imprenditore",null,null,null,null,null,null,null,null,{"$f":"+IF('QUEST PROFILATURA CLIENTI'!L48=\"\",0,1)","v":0},6,null,null,200,1.5,0,30,70,100,null,0,0,0,0]
[null,null,null,null,null,null,null,null,null,null,null,{"$f":"+IF('QUEST PROFILATURA CLIENTI'!L49=\"\",0,1)","v":0}]
[null,"A.2)","LAVORA O HA MAI LAVORATO NEL SETTORE DELLA FINANZA O IN AZIENDE CON COMPITI CHE PRESUPPONGONO COMPETENZE SPECIFICHE INERENTI IL CAMPO FINANZIARIO?",null,null,null,null,null,null,null,null,{"$f":"+IF('QUEST PROFILATURA CLIENTI'!L50=\"\",0,1)","v":0},null,null,null,null,1,"Lavoro in ambito finanza",null,null,null,null,"Lavoro in ambito finanza"]
[null,null,"a) no",null,null,null,null,null,null,null,null,{"$f":"+IF('QUEST PROFILATURA CLIENTI'!L51=\"\",0,1)","v":0},1,null,null,{"$f":"SUM(R51:U51)","v":200},1,50,50,50,50,null,{"$f":"$L51*($Q$50*($Q51*R51/100))","v":0},{"$f":"$L51*($Q$50*($Q51*S51/100))","v":0},0,0]
[null,null,"b) sì",null,null,null,null,null,null,null,null,{"$f":"+IF('QUEST PROFILATURA CLIENTI'!L52=\"\",0,1)","v":0},2,null,null,{"$f":"SUM(R52:U52)","v":200},3,5,10,45,140,null,{"$f":"$L52*($Q$50*($Q52*R52/100))","v":0},0,0,0]
[null,null,null,null,null,null,null,null,null,null,null,{"$f":"+IF('QUEST PROFILATURA CLIENTI'!L53=\"\",0,1)","v":0}]
[null,"A.3)","TITOLO DI STUDIO",null,null,null,null,null,null,null,null,{"$f":"+IF('QUEST PROFILATURA CLIENTI'!L54=\"\",0,1)","v":0},null,null,null,null,0.5,"Titolo di studio",null,null,null,null,"Titolo di studio"]
[null,null,"b) licenza elementare",null,null,null,null,null,null,null,null,{"$f":"+IF('QUEST PROFILATURA CLIENTI'!L55=\"\",0,1)","v":0},1,null,null,{"$f":"SUM(R55:U55)","v":200},1,90,60,30,20,null,{"$f":"$L55*($Q$54*($Q55*R55/100))","v":0},{"$f":"$L55*($Q$54*($Q55*S55/100))","v":0},0,0]
[null,null,"c) licenza media",null,null,null,null,null,null,null,null,{"$f":"+IF('QUEST PROFILATURA CLIENTI'!L56=\"\",0,1)","v":0},2,null,null,{"$f":"SUM(R56:U56)","v":200},1,80,50,40,30,null,{"$f":"$L56*($Q$54*($Q56*R56/100))","v":0},0,0,0]
[null,null,"d) diploma scuola superiore",null,null,null,null,null,null,null,null,{"$f":"+IF('QUEST PROFILATURA CLIENTI'!L57=\"\",0,1)","v":0},3,null,null,{"$f":"SUM(R57:U57)","v":200},1,40,50,50,60,null,{"$f":"$L57*($Q$54*($Q57*R57/100))","v":0},0,0,0]
[null,null,"e) laurea",null,null,null,null,null,null,null,null,{"$f":"+IF('QUEST PROFILATURA CLIENTI'!L58=\"\",0,1)","v":0},4,null,null,{"$f":"SUM(R58:U58)","v":200},1,30,50,50,70,null,{"$f":"$L58*($Q$54*($Q58*R58/100))","v":0},0,0,0]
[null,null,null,null,null,null,null,null,null,null,null,{"$f":"+IF('QUEST PROFILATURA CLIENTI'!L59=\"\",0,1)","v":0}]
[null,"A.4)","DI QUALI STRUMENTI HA CONOSCENZA?",null,null,null,null,null,null,null,null,{"$f":"+IF('QUEST PROFILATURA CLIENTI'!L60=\"\",0,1)","v":0},null,null,null,null,1,"Strumenti che ha conoscenza",null,null,null,null,"Strumenti che ha conoscenza"]
[null,null,"a) nessuno",null,null,null,null,null,null,null,null,{"$f":"+IF('QUEST PROFILATURA CLIENTI'!L61=\"\",0,1)","v":0},null,null,{"$f":"+L61","v":0},{"$f":"SUM(R61:U61)","v":200},3,130,70,0,0,null,{"$f":"$L61*($Q$60*($Q61*R61/100))","v":0},{"$f":"$L61*($Q$60*($Q61*S61/100))","v":0},{"$f":"$L61*($Q$60*($Q61*T61/100))","v":0},{"$f":"$L61*($Q$60*($Q61*U61/100))","v":0},null,{"$f":"++L175","v":0},{"$f":"+AB61","v":0}]
[null,null,"b) titoli di stato; obbligazioni (plain vanilla o semplici) area euro e valuta euro ",null,null,null,null,null,null,null,null,{"$f":"+IF('QUEST PROFILATURA CLIENTI'!L62=\"\",0,1)","v":0},{"$f":"+IF(OR(M65=\"ok\",M70=\"ok\"),1,0)","v":0},1,{"$f":"+IF(OR($O$61=1,L62=0),0,MAX($O$61:O61)+L62)","v":0},200,1,110,70,20,0,null,{"$f":"$M62*($Q$60*($Q62*R62/100))","v":0},{"$f":"$M62*($Q$60*($Q62*S62/100))","v":0},0,0,null,{"$f":"++L176","v":0},{"$f":"+IF(OR($AB$61=1,AB62=0),0,MAX($AC$61:AC61)+AB62)","v":0}]
[null,null,null,null,null,null,null,null,null,null,null,{"$f":"+IF('QUEST PROFILATURA CLIENTI'!L63=\"\",0,1)","v":0}]
[null,null,"Rispondi ad almeno una di queste domande:",null,null,null,null,null,null,null,null,{"$f":"+IF('QUEST PROFILATURA CLIENTI'!L64=\"\",0,1)","v":0}]
[null,null,null,{"$f":"+VLOOKUP(\"57p1\",'Domande Controllo'!C:H,2,0)","v":"All'aumentare dei tassi di mercato sulla stessa scadenza di un'obbligazione, il prezzo dell'obbligazione"},null,null,null,null,null,null,null,{"$f":"+IF('QUEST PROFILATURA CLIENTI'!L65=\"\",0,1)","v":0},{"$f":"+'QUEST PROFILATURA CLIENTI'!M65","v":"Rispondi alla domanda"}]
[null,null,null,{"$f":"+VLOOKUP(\"57p1\",'Domande Controllo'!C:H,3,0)","v":"a) aumenta"},null,null,null,null,null,null,null,{"$f":"+IF('QUEST PROFILATURA CLIENTI'!L66=\"\",0,1)","v":0}]
[null,null,null,{"$f":"+VLOOKUP(\"57p1\",'Domande Controllo'!C:H,4,0)","v":"b) diminuisce"},null,null,null,null,null,null,null,{"$f":"+IF('QUEST PROFILATURA CLIENTI'!L67=\"\",0,1)","v":0}]
[null,null,null,{"$f":"+VLOOKUP(\"57p1\",'Domande Controllo'!C:H,5,0)","v":"c) le due cose non sono collegate"},null,null,null,null,null,null,null,{"$f":"+IF('QUEST PROFILATURA CLIENTI'!L68=\"\",0,1)","v":0}]
[null,null,null,null,null,null,null,null,null,null,null,{"$f":"+IF('QUEST PROFILATURA CLIENTI'!L69=\"\",0,1)","v":0}]
[null,null,null,{"$f":"+VLOOKUP(\"57p2\",'Domande Controllo'!C:H,2,0)","v":"Investire denaro in un Titolo di Stato decennale in scadenza tra 6 mesi è da considerarsi un investimento"},null,null,null,null,null,null,null,{"$f":"+IF('QUEST PROFILATURA CLIENTI'!L70=\"\",0,1)","v":0},{"$f":"+'QUEST PROFILATURA CLIENTI'!M70","v":"Rispondi alla domanda"}]
[null,null,null,{"$f":"+VLOOKUP(\"57p2\",'Domande Controllo'!C:H,3,0)","v":"a) a medio rischio"},null,null,null,null,null,null,null,{"$f":"+IF('QUEST PROFILATURA CLIENTI'!L71=\"\",0,1)","v":0}]
[null,null,null,{"$f":"+VLOOKUP(\"57p2\",'Domande Controllo'!C:H,4,0)","v":"b) a basso rischio"},null,null,null,null,null,null,null,{"$f":"+IF('QUEST PROFILATURA CLIENTI'!L72=\"\",0,1)","v":0}]
[null,null,null,{"$f":"+VLOOKUP(\"57p2\",'Domande Controllo'!C:H,5,0)","v":"c) ad alto rischio"},null,null,null,null,null,null,null,{"$f":"+IF('QUEST PROFILATURA CLIENTI'!L73=\"\",0,1)","v":0}]
[null,null,null,null,null,null,null,null,null,null,null,{"$f":"+IF('QUEST PROFILATURA CLIENTI'!L74=\"\",0,1)","v":0}]
[null,null,"c) titoli di stato e obbligazioni ordinarie in valuta non euro",null,null,null,null,null,null,null,null,{"$f":"+IF('QUEST PROFILATURA CLIENTI'!L75=\"\",0,1)","v":0},{"$f":"+IF(OR(M78=\"ok\",M83=\"ok\"),1,0)","v":0},2,{"$f":"+IF(OR($O$61=1,L75=0),0,MAX($O$61:O62)+L75)","v":0},200,1,80,80,40,0,null,{"$f":"$M75*($Q$60*($Q75*R75/100))","v":0},{"$f":"$M75*($Q$60*($Q75*S75/100))","v":0},0,0,null,{"$f":"+L196","v":0},{"$f":"+IF(OR($AB$61=1,AB75=0),0,MAX($AC$61:AC62)+AB75)","v":0}]
[null,null,null,null,null,null,null,null,null,null,null,{"$f":"+IF('QUEST PROFILATURA CLIENTI'!L76=\"\",0,1)","v":0}]
[null,null,"Rispondi ad almeno una di queste domande:",null,null,null,null,null,null,null,null,{"$f":"+IF('QUEST PROFILATURA CLIENTI'!L77=\"\",0,1)","v":0}]
[null,null,null,{"$f":"+VLOOKUP(\"58p1\",'Domande Controllo'!C:H,2,0)","v":"Il rendimento di una obbligazione in valuta estera"},null,null,null,null,null,null,null,{"$f":"+IF('QUEST PROFILATURA CLIENTI'!L78=\"\",0,1)","v":0},{"$f":"+'QUEST PROFILATURA CLIENTI'!M78","v":"Rispondi alla domanda"}]
[null,null,null,{"$f":"+VLOOKUP(\"58p1\",'Domande Controllo'!C:H,3,0)","v":"a) dipende dai tassi di interesse e dall’andamento del cambio della valuta"},null,null,null,null,null,null,null,{"$f":"+IF('QUEST PROFILATURA CLIENTI'!L79=\"\",0,1)","v":0}]
[null,null,null,{"$f":"+VLOOKUP(\"58p1\",'Domande Controllo'!C:H,4,0)","v":"b) dipende solo dal tasso di interesse"},null,null,null,null,null,null,null,{"$f":"+IF('QUEST PROFILATURA CLIENTI'!L80=\"\",0,1)","v":0}]
[null,null,null,{"$f":"+VLOOKUP(\"58p1\",'Domande Controllo'!C:H,5,0)","v":"c) non dipende dall’andamento della valuta"},null,null,null,null,null,null,null,{"$f":"+IF('QUEST PROFILATURA CLIENTI'!L81=\"\",0,1)","v":0}]
[null,null,null,null,null,null,null,null,null,null,null,{"$f":"+IF('QUEST PROFILATURA CLIENTI'!L82=\"\",0,1)","v":0}]
[null,null,null,{"$f":"+VLOOKUP(\"58p2\",'Domande Controllo'!C:H,2,0)","v":"Il rating di un'obbligazione è "},null,null,null,null,null,null,null,{"$f":"+IF('QUEST PROFILATURA CLIENTI'!L83=\"\",0,1)","v":0},{"$f":"+'QUEST PROFILATURA CLIENTI'!M83","v":"Rispondi alla domanda"}]
[null,null,null,{"$f":"+VLOOKUP(\"58p2\",'Domande Controllo'!C:H,3,0)","v":"a) un punteggio che misura la redditività del titolo rispetto alle altre obbligazioni simili"},null,null,null,null,null,null,null,{"$f":"+IF('QUEST PROFILATURA CLIENTI'!L84=\"\",0,1)","v":0}]
[null,null,null,{"$f":"+VLOOKUP(\"58p2\",'Domande Controllo'!C:H,4,0)","v":"b) un giudizio sulla capacità dell'emittente di rimborsare l'obbligazione"},null,null,null,null,null,null,null,{"$f":"+IF('QUEST PROFILATURA CLIENTI'!L85=\"\",0,1)","v":0}]
[null,null,null,{"$f":"+VLOOKUP(\"58p2\",'Domande Controllo'!C:H,5,0)","v":"c) non so"},null,null,null,null,null,null,null,{"$f":"+IF('QUEST PROFILATURA CLIENTI'!L86=\"\",0,1)","v":0}]
[null,null,null,null,null,null,null,null,null,null,null,{"$f":"+IF('QUEST PROFILATURA CLIENTI'!L87=\"\",0,1)","v":0}]
[null,null,"d) fondi comuni, comparti sicav, ETF ",null,null,null,null,null,null,null,null,{"$f":"+IF('QUEST PROFILATURA CLIENTI'!L88=\"\",0,1)","v":0},{"$f":"+IF(OR(M91=\"ok\",M96=\"ok\",M101=\"ok\"),1,0)","v":0},3,{"$f":"+IF(OR($O$61=1,L88=0),0,MAX($O$61:O75)+L88)","v":0},200,1,20,50,70,60,null,{"$f":"$M88*($Q$60*($Q88*R88/100))","v":0},{"$f":"$M88*($Q$60*($Q88*S88/100))","v":0},0,0,null,{"$f":"+L216","v":0},{"$f":"+IF(OR($AB$61=1,AB88=0),0,MAX($AC$61:AC75)+AB88)","v":0}]
[null,null,null,null,null,null,null,null,null,null,null,{"$f":"+IF('QUEST PROFILATURA CLIENTI'!L89=\"\",0,1)","v":0}]
[null,null,"Rispondi ad almeno una di queste domande:",null,null,null,null,null,null,null,null,{"$f":"+IF('QUEST PROFILATURA CLIENTI'!L90=\"\",0,1)","v":0}]
[null,null,null,{"$f":"+VLOOKUP(\"59p1\",'Domande Controllo'!C:H,2,0)","v":"Se fallisce la società che gestisce un fondo comune d'investimento"},null,null,null,null,null,null,null,{"$f":"+IF('QUEST PROFILATURA CLIENTI'!L91=\"\",0,1)","v":0},{"$f":"+'QUEST PROFILATURA CLIENTI'!M91","v":"Rispondi alla domanda"}]
[null,null,null,{"$f":"+VLOOKUP(\"59p1\",'Domande Controllo'!C:H,3,0)","v":"a) il sottoscrittore del fondo rischia di perdere tutti i soldi investiti"},null,null,null,null,null,null,null,{"$f":"+IF('QUEST PROFILATURA CLIENTI'!L92=\"\",0,1)","v":0}]
[null,null,null,{"$f":"+VLOOKUP(\"59p1\",'Domande Controllo'!C:H,4,0)","v":"b) il patrimonio del fondo è separato da quelli del gestore e quindi non rientra nella procedura fallimentare."},null,null,null,null,null,null,null,{"$f":"+IF('QUEST PROFILATURA CLIENTI'!L93=\"\",0,1)","v":0}]
[null,null,null,{"$f":"+VLOOKUP(\"59p1\",'Domande Controllo'!C:H,5,0)","v":"c) non so"},null,null,null,null,null,null,null,{"$f":"+IF('QUEST PROFILATURA CLIENTI'!L94=\"\",0,1)","v":0}]
[null,null,null,null,null,null,null,null,null,null,null,{"$f":"+IF('QUEST PROFILATURA CLIENTI'!L95=\"\",0,1)","v":0}]
[null,null,null,{"$f":"+VLOOKUP(\"59p2\",'Domande Controllo'!C:H,2,0)","v":"I costi di un fondo comune d'investimento"},null,null,null,null,null,null,null,{"$f":"+IF('QUEST PROFILATURA CLIENTI'!L96=\"\",0,1)","v":0},{"$f":"+'QUEST PROFILATURA CLIENTI'!M96","v":"Rispondi alla domanda"}]
[null,null,null,{"$f":"+VLOOKUP(\"59p2\",'Domande Controllo'!C:H,3,0)","v":"a) si pagano solo al momento dell'investimento oppure del disinvestimento"},null,null,null,null,null,null,null,{"$f":"+IF('QUEST PROFILATURA CLIENTI'!L97=\"\",0,1)","v":0}]
[null,null,null,{"$f":"+VLOOKUP(\"59p2\",'Domande Controllo'!C:H,4,0)","v":"b) oltre ai costi a carico dell'investitore vi sono una serie di costi a carico del fondo che indirettamente pagano i sottoscrittori poiché diminuiscono il valore della quota"},null,null,null,null,null,null,null,{"$f":"+IF('QUEST PROFILATURA CLIENTI'!L98=\"\",0,1)","v":0}]
[null,null,null,{"$f":"+VLOOKUP(\"59p2\",'Domande Controllo'!C:H,5,0)","v":"c) non ci sono costi nei fondi comuni"},null,null,null,null,null,null,null,{"$f":"+IF('QUEST PROFILATURA CLIENTI'!L99=\"\",0,1)","v":0}]
[null,null,null,null,null,null,null,null,null,null,null,{"$f":"+IF('QUEST PROFILATURA CLIENTI'!L100=\"\",0,1)","v":0}]
[null,null,null,{"$f":"+VLOOKUP(\"59p3\",'Domande Controllo'!C:H,2,0)","v":"Gli ETF (Exchanged Traded Funds) sono"},null,null,null,null,null,null,null,{"$f":"+IF('QUEST PROFILATURA CLIENTI'!L101=\"\",0,1)","v":0},{"$f":"+'QUEST PROFILATURA CLIENTI'!M101","v":"Rispondi alla domanda"}]
[null,null,null,{"$f":"+VLOOKUP(\"59p3\",'Domande Controllo'!C:H,3,0)","v":"a) fondi comuni quotati il cui prezzo è generalmente legato ad un indice di mercato"},null,null,null,null,null,null,null,{"$f":"+IF('QUEST PROFILATURA CLIENTI'!L102=\"\",0,1)","v":0}]
[null,null,null,{"$f":"+VLOOKUP(\"59p3\",'Domande Controllo'!C:H,4,0)","v":"b) una categoria di azioni di gestori di fondi comuni d'investimento"},null,null,null,null,null,null,null,{"$f":"+IF('QUEST PROFILATURA CLIENTI'!L103=\"\",0,1)","v":0}]
[null,null,null,{"$f":"+VLOOKUP(\"59p3\",'Domande Controllo'!C:H,5,0)","v":"c) non so"},null,null,null,null,null,null,null,{"$f":"+IF('QUEST PROFILATURA CLIENTI'!L104=\"\",0,1)","v":0}]
[null,null,null,null,null,null,null,null,null,null,null,{"$f":"+IF('QUEST PROFILATURA CLIENTI'!L105=\"\",0,1)","v":0}]
[null,null,"e) polizze index linked; polizze unit linked",null,null,null,null,null,null,null,null,{"$f":"+IF('QUEST PROFILATURA CLIENTI'!L106=\"\",0,1)","v":0},{"$f":"+IF(M109=\"ok\",1,0)","v":0},4,{"$f":"+IF(OR($O$61=1,L106=0),0,MAX($O$61:O88)+L106)","v":0},200,1,0,30,70,100,null,{"$f":"$M106*($Q$60*($Q106*R106/100))","v":0},{"$f":"$M106*($Q$60*($Q106*S106/100))","v":0},0,0,null,{"$f":"+L236","v":0},{"$f":"+IF(OR($AB$61=1,AB106=0),0,MAX($AC$61:AC88)+AB106)","v":0}]
[null,null,null,null,null,null,null,null,null,null,null,{"$f":"+IF('QUEST PROFILATURA CLIENTI'!L107=\"\",0,1)","v":0}]
[null,null,"Rispondi ad almeno una di queste domande:",null,null,null,null,null,null,null,null,{"$f":"+IF('QUEST PROFILATURA CLIENTI'!L108=\"\",0,1)","v":0}]
[null,null,null,{"$f":"+VLOOKUP(\"60p1\",'Domande Controllo'!C:H,2,0)","v":"Il valore di riscatto di una polizza index linked o unit linked"},null,null,null,null,null,null,null,{"$f":"+IF('QUEST PROFILATURA CLIENTI'!L109=\"\",0,1)","v":0},{"$f":"+'QUEST PROFILATURA CLIENTI'!M109","v":"Rispondi alla domanda"}]
[null,null,null,{"$f":"+VLOOKUP(\"60p1\",'Domande Controllo'!C:H,3,0)","v":"a) è sempre garantito almeno pari al valore di sottoscrizione "},null,null,null,null,null,null,null,{"$f":"+IF('QUEST PROFILATURA CLIENTI'!L110=\"\",0,1)","v":0}]
[null,null,null,{"$f":"+VLOOKUP(\"60p1\",'Domande Controllo'!C:H,4,0)","v":"b) può essere inferiore al valore di sottoscrizione solo se si riscatta in anticipo"},null,null,null,null,null,null,null,{"$f":"+IF('QUEST PROFILATURA CLIENTI'!L111=\"\",0,1)","v":0}]
[null,null,null,{"$f":"+VLOOKUP(\"60p1\",'Domande Controllo'!C:H,5,0)","v":"c) dipende dalle condizioni della polizza e dall’andamento dell’indice o del fondo sottostante"},null,null,null,null,null,null,null,{"$f":"+IF('QUEST PROFILATURA CLIENTI'!L112=\"\",0,1)","v":0}]
[null,null,null,null,null,null,null,null,null,null,null,{"$f":"+IF('QUEST PROFILATURA CLIENTI'!L113=\"\",0,1)","v":0}]
[null,null,"f) azioni ordinarie, di risparmio, privilegiate",null,null,null,null,null,null,null,null,{"$f":"+IF('QUEST PROFILATURA CLIENTI'!L114=\"\",0,1)","v":0},{"$f":"+IF(OR(M117=\"ok\",M122=\"ok\"),1,0)","v":0},5,{"$f":"+IF(OR($O$61=1,L114=0),0,MAX($O$61:O106)+L114)","v":0},200,1,0,30,70,100,null,{"$f":"$M114*($Q$60*($Q114*R114/100))","v":0},{"$f":"$M114*($Q$60*($Q114*S114/100))","v":0},0,0,null,{"$f":"+L256","v":0},{"$f":"+IF(OR($AB$61=1,AB114=0),0,MAX($AC$61:AC106)+AB114)","v":0}]
[null,null,null,null,null,null,null,null,null,null,null,{"$f":"+IF('QUEST PROFILATURA CLIENTI'!L115=\"\",0,1)","v":0}]
[null,null,"Rispondi ad almeno una di queste domande:",null,null,null,null,null,null,null,null,{"$f":"+IF('QUEST PROFILATURA CLIENTI'!L116=\"\",0,1)","v":0}]
[null,null,null,{"$f":"+VLOOKUP(\"61p1\",'Domande Controllo'!C:H,2,0)","v":"Acquistando azioni di un'azienda quotata si diventa"},null,null,null,null,null,null,null,{"$f":"+IF('QUEST PROFILATURA CLIENTI'!L117=\"\",0,1)","v":0},{"$f":"+'QUEST PROFILATURA CLIENTI'!M117","v":"Rispondi alla domanda"}]
[null,null,null,{"$f":"+VLOOKUP(\"61p1\",'Domande Controllo'!C:H,3,0)","v":"a) creditori dell'azienda, che deve restituire almeno il capitale investito pagando i dividendi"},null,null,null,null,null,null,null,{"$f":"+IF('QUEST PROFILATURA CLIENTI'!L118=\"\",0,1)","v":0}]
[null,null,null,{"$f":"+VLOOKUP(\"61p1\",'Domande Controllo'!C:H,4,0)","v":"b) soci dell'azienda, esposti a perdere anche tutto il capitale investito"},null,null,null,null,null,null,null,{"$f":"+IF('QUEST PROFILATURA CLIENTI'!L119=\"\",0,1)","v":0}]
[null,null,null,{"$f":"+VLOOKUP(\"61p1\",'Domande Controllo'!C:H,5,0)","v":"c) soci dell’azienda ma con un capitale minimo garantito in proporzione al capitale sociale"},null,null,null,null,null,null,null,{"$f":"+IF('QUEST PROFILATURA CLIENTI'!L120=\"\",0,1)","v":0}]
[null,null,null,null,null,null,null,null,null,null,null,{"$f":"+IF('QUEST PROFILATURA CLIENTI'!L121=\"\",0,1)","v":0}]
[null,null,null,{"$f":"+VLOOKUP(\"61p2\",'Domande Controllo'!C:H,2,0)","v":"Cosa sono i dividendi"},null,null,null,null,null,null,null,{"$f":"+IF('QUEST PROFILATURA CLIENTI'!L122=\"\",0,1)","v":0},{"$f":"+'QUEST PROFILATURA CLIENTI'!M122","v":"Rispondi alla domanda"}]
[null,null,null,{"$f":"+VLOOKUP(\"61p2\",'Domande Controllo'!C:H,3,0)","v":"a) dei lotti di azioni destinati inizialmente agli investitori istituzioni e che verranno poi  suddivisi in lotti più piccoli per il mercato retail"},null,null,null,null,null,null,null,{"$f":"+IF('QUEST PROFILATURA CLIENTI'!L123=\"\",0,1)","v":0}]
[null,null,null,{"$f":"+VLOOKUP(\"61p2\",'Domande Controllo'!C:H,4,0)","v":"b) una parte degli utili dell'emittente che vengono distribuiti agli azionisti"},null,null,null,null,null,null,null,{"$f":"+IF('QUEST PROFILATURA CLIENTI'!L124=\"\",0,1)","v":0}]
[null,null,null,{"$f":"+VLOOKUP(\"61p2\",'Domande Controllo'!C:H,5,0)","v":"c) non so"},null,null,null,null,null,null,null,{"$f":"+IF('QUEST PROFILATURA CLIENTI'!L125=\"\",0,1)","v":0}]
[null,null,null,null,null,null,null,null,null,null,null,{"$f":"+IF('QUEST PROFILATURA CLIENTI'!L126=\"\",0,1)","v":0}]
[null,null,"g) certificates non a leva; obbligazioni strutturate; obbligazioni subordinate",null,null,null,null,null,null,null,null,{"$f":"+IF('QUEST PROFILATURA CLIENTI'!L127=\"\",0,1)","v":0},{"$f":"+IF(OR(M130=\"ok\",M135=\"ok\"),1,0)","v":0},6,{"$f":"+IF(OR($O$61=1,L127=0),0,MAX($O$61:O114)+L127)","v":0},200,1,0,20,80,100,null,{"$f":"$M127*($Q$60*($Q127*R127/100))","v":0},{"$f":"$M127*($Q$60*($Q127*S127/100))","v":0},0,0,null,{"$f":"+L276","v":0},{"$f":"+IF(OR($AB$61=1,AB127=0),0,MAX($AC$61:AC114)+AB127)","v":0}]
[null,null,null,null,null,null,null,null,null,null,null,{"$f":"+IF('QUEST PROFILATURA CLIENTI'!L128=\"\",0,1)","v":0}]
[null,null,"Rispondi ad almeno una di queste domande:",null,null,null,null,null,null,null,null,{"$f":"+IF('QUEST PROFILATURA CLIENTI'!L129=\"\",0,1)","v":0}]
[null,null,null,{"$f":"+VLOOKUP(\"62p1\",'Domande Controllo'!C:H,2,0)","v":"Investire denaro in un “Investment Certificate” rappresenta sempre"},null,null,null,null,null,null,null,{"$f":"+IF('QUEST PROFILATURA CLIENTI'!L130=\"\",0,1)","v":0},{"$f":"+'QUEST PROFILATURA CLIENTI'!M130","v":"Rispondi alla domanda"}]
[null,null,null,{"$f":"+VLOOKUP(\"62p1\",'Domande Controllo'!C:H,3,0)","v":"a) un investimento ad alto rischio perché al suo interno sono presenti “strumenti  derivati” "},null,null,null,null,null,null,null,{"$f":"+IF('QUEST PROFILATURA CLIENTI'!L131=\"\",0,1)","v":0}]
[null,null,null,{"$f":"+VLOOKUP(\"62p1\",'Domande Controllo'!C:H,4,0)","v":"b) un investimento con un livello di rischio che varia a seconda della tipologia del  certificato"},null,null,null,null,null,null,null,{"$f":"+IF('QUEST PROFILATURA CLIENTI'!L132=\"\",0,1)","v":0}]
[null,null,null,{"$f":"+VLOOKUP(\"62p1\",'Domande Controllo'!C:H,5,0)","v":"c) un investimento con rischi contenuti perché viene comunque garantito il rimborso di una percentuale prestabilita dell’importo investito"},null,null,null,null,null,null,null,{"$f":"+IF('QUEST PROFILATURA CLIENTI'!L133=\"\",0,1)","v":0}]
[null,null,null,null,null,null,null,null,null,null,null,{"$f":"+IF('QUEST PROFILATURA CLIENTI'!L134=\"\",0,1)","v":0}]
[null,null,null,{"$f":"+VLOOKUP(\"62p2\",'Domande Controllo'!C:H,2,0)","v":"Le obbligazioni subordinate sono"},null,null,null,null,null,null,null,{"$f":"+IF('QUEST PROFILATURA CLIENTI'!L135=\"\",0,1)","v":0},{"$f":"+'QUEST PROFILATURA CLIENTI'!M135","v":"Rispondi alla domanda"}]
[null,null,null,{"$f":"+VLOOKUP(\"62p2\",'Domande Controllo'!C:H,3,0)","v":"a) obbligazioni il cui rimborso è subordinato al comportamento di alcuni indici di  mercato"},null,null,null,null,null,null,null,{"$f":"+IF('QUEST PROFILATURA CLIENTI'!L136=\"\",0,1)","v":0}]
[null,null,null,{"$f":"+VLOOKUP(\"62p2\",'Domande Controllo'!C:H,4,0)","v":"b) obbligazioni legate al pagamento dei mutui ipotecari"},null,null,null,null,null,null,null,{"$f":"+IF('QUEST PROFILATURA CLIENTI'!L137=\"\",0,1)","v":0}]
[null,null,null,{"$f":"+VLOOKUP(\"62p2\",'Domande Controllo'!C:H,5,0)","v":"c) obbligazioni che garantiscono, in caso di fallimento dell’emittente, una minore  priorità nei diritti di credito rispetto alle obbligazioni senior"},null,null,null,null,null,null,null,{"$f":"+IF('QUEST PROFILATURA CLIENTI'!L138=\"\",0,1)","v":0}]
[null,null,null,null,null,null,null,null,null,null,null,{"$f":"+IF('QUEST PROFILATURA CLIENTI'!L139=\"\",0,1)","v":0}]
[null,null,"h) ETC, ETN e certificates a leva",null,null,null,null,null,null,null,null,{"$f":"+IF('QUEST PROFILATURA CLIENTI'!L140=\"\",0,1)","v":0},{"$f":"+IF(M143=\"ok\",1,0)","v":0},7,{"$f":"+IF(OR($O$61=1,L140=0),0,MAX($O$61:O127)+L140)","v":0},{"$f":"SUM(R140:U140)","v":200},1,0,0,80,120,null,{"$f":"$M140*($Q$60*($Q140*R140/100))","v":0},{"$f":"$M140*($Q$60*($Q140*S140/100))","v":0},0,0,null,{"$f":"+L296","v":0},{"$f":"+IF(OR($AB$61=1,AB140=0),0,MAX($AC$61:AC127)+AB140)","v":0}]
[null,null,null,null,null,null,null,null,null,null,null,{"$f":"+IF('QUEST PROFILATURA CLIENTI'!L141=\"\",0,1)","v":0}]
[null,null,"Rispondi ad almeno una di queste domande:",null,null,null,null,null,null,null,null,{"$f":"+IF('QUEST PROFILATURA CLIENTI'!L142=\"\",0,1)","v":0}]
[null,null,null,{"$f":"+VLOOKUP(\"63p1\",'Domande Controllo'!C:H,2,0)","v":"Per investimenti a leva si intende"},null,null,null,null,null,null,null,{"$f":"+IF('QUEST PROFILATURA CLIENTI'!L143=\"\",0,1)","v":0},{"$f":"+'QUEST PROFILATURA CLIENTI'!M143","v":"Rispondi alla domanda"}]
[null,null,null,{"$f":"+VLOOKUP(\"63p1\",'Domande Controllo'!C:H,3,0)","v":"a) un investimento il cui rendimento (in positivo o in negativo) è più che proporzionale al movimento di prezzo del sottostante"},null,null,null,null,null,null,null,{"$f":"+IF('QUEST PROFILATURA CLIENTI'!L144=\"\",0,1)","v":0}]
[null,null,null,{"$f":"+VLOOKUP(\"63p1\",'Domande Controllo'!C:H,4,0)","v":"b) un investimento che prevede più opzioni di rendimento che si possono attivare in base al verificarsi di determinati “eventi” finanziari (delle “leve”)"},null,null,null,null,null,null,null,{"$f":"+IF('QUEST PROFILATURA CLIENTI'!L145=\"\",0,1)","v":0}]
[null,null,null,{"$f":"+VLOOKUP(\"63p1\",'Domande Controllo'!C:H,5,0)","v":"c) non so"},null,null,null,null,null,null,null,{"$f":"+IF('QUEST PROFILATURA CLIENTI'!L146=\"\",0,1)","v":0}]
[null,null,null,null,null,null,null,null,null,null,null,{"$f":"+IF('QUEST PROFILATURA CLIENTI'!L147=\"\",0,1)","v":0}]
[null,null,"i) strumenti derivati standardizzati, trading in marginazione",null,null,null,null,null,null,null,null,{"$f":"+IF('QUEST PROFILATURA CLIENTI'!L148=\"\",0,1)","v":0},{"$f":"+IF(OR(M151=\"ok\",M156=\"ok\"),1,0)","v":0},8,{"$f":"+IF(OR($O$61=1,L148=0),0,MAX($O$61:O140)+L148)","v":0},{"$f":"SUM(R148:U148)","v":200},1,0,0,50,150,null,{"$f":"$M148*($Q$60*($Q148*R148/100))","v":0},{"$f":"$M148*($Q$60*($Q148*S148/100))","v":0},0,0,null,{"$f":"+L316","v":0},{"$f":"+IF(OR($AB$61=1,AB148=0),0,MAX($AC$61:AC140)+AB148)","v":0}]
[null,null,null,null,null,null,null,null,null,null,null,{"$f":"+IF('QUEST PROFILATURA CLIENTI'!L149=\"\",0,1)","v":0}]
[null,null,"Rispondi ad almeno una di queste domande:",null,null,null,null,null,null,null,null,{"$f":"+IF('QUEST PROFILATURA CLIENTI'!L150=\"\",0,1)","v":0}]
[null,null,null,{"$f":"+VLOOKUP(\"64p1\",'Domande Controllo'!C:H,2,0)","v":"Se ho una visione moderatamente negativa circa l’andamento futuro del prezzo di un titolo, la strategia più coerente con questa visione potrebbe essere"},null,null,null,null,null,null,null,{"$f":"+IF('QUEST PROFILATURA CLIENTI'!L151=\"\",0,1)","v":0},{"$f":"+'QUEST PROFILATURA CLIENTI'!M151","v":"Rispondi alla domanda"}]
[null,null,null,{"$f":"+VLOOKUP(\"64p1\",'Domande Controllo'!C:H,3,0)","v":"a) acquistare un’opzione PUT con lo strike molto inferiore al prezzo attuale"},null,null,null,null,null,null,null,{"$f":"+IF('QUEST PROFILATURA CLIENTI'!L152=\"\",0,1)","v":0}]
[null,null,null,{"$f":"+VLOOKUP(\"64p1\",'Domande Controllo'!C:H,4,0)","v":"b) vendere un’opzione CALL out-of-the-money"},null,null,null,null,null,null,null,{"$f":"+IF('QUEST PROFILATURA CLIENTI'!L153=\"\",0,1)","v":0}]
[null,null,null,{"$f":"+VLOOKUP(\"64p1\",'Domande Controllo'!C:H,5,0)","v":"c) non so"},null,null,null,null,null,null,null,{"$f":"+IF('QUEST PROFILATURA CLIENTI'!L154=\"\",0,1)","v":0}]
[null,null,null,null,null,null,null,null,null,null,null,{"$f":"+IF('QUEST PROFILATURA CLIENTI'!L155=\"\",0,1)","v":0}]
[null,null,null,{"$f":"+VLOOKUP(\"64p2\",'Domande Controllo'!C:H,2,0)","v":"Con il termine CONTANGO s’intende"},null,null,null,null,null,null,null,{"$f":"+IF('QUEST PROFILATURA CLIENTI'!L156=\"\",0,1)","v":0},{"$f":"+'QUEST PROFILATURA CLIENTI'!M156","v":"Rispondi alla domanda"}]
[null,null,null,{"$f":"+VLOOKUP(\"64p2\",'Domande Controllo'!C:H,3,0)","v":"a) un termine utilizzato nell’analisi finanziaria per indicare una fase nella quale il  prezzo SPOT è inferiore al prezzo di un Future"},null,null,null,null,null,null,null,{"$f":"+IF('QUEST PROFILATURA CLIENTI'!L157=\"\",0,1)","v":0}]
[null,null,null,{"$f":"+VLOOKUP(\"64p2\",'Domande Controllo'!C:H,4,0)","v":"b) un termine utilizzato nell’analisi finanziaria per indicare una fase nella quale il  prezzo SPOT è superiore al prezzo di un Future"},null,null,null,null,null,null,null,{"$f":"+IF('QUEST PROFILATURA CLIENTI'!L158=\"\",0,1)","v":0}]
[null,null,null,{"$f":"+VLOOKUP(\"64p2\",'Domande Controllo'!C:H,5,0)","v":"c) non so"},null,null,null,null,null,null,null,{"$f":"+IF('QUEST PROFILATURA CLIENTI'!L159=\"\",0,1)","v":0}]
[null,null,null,null,null,null,null,null,null,null,null,{"$f":"+IF('QUEST PROFILATURA CLIENTI'!L160=\"\",0,1)","v":0}]
[null,null,"l) fondi hedge",null,null,null,null,null,null,null,null,{"$f":"+IF('QUEST PROFILATURA CLIENTI'!L161=\"\",0,1)","v":0},{"$f":"+IF(OR(M164=\"ok\",M169=\"ok\"),1,0)","v":0},9,{"$f":"+IF(OR($O$61=1,L161=0),0,MAX($O$61:O148)+L161)","v":0},{"$f":"SUM(R161:U161)","v":200},1,0,0,30,170,null,{"$f":"$M161*($Q$60*($Q161*R161/100))","v":0},{"$f":"$M161*($Q$60*($Q161*S161/100))","v":0},0,0,null,{"$f":"+L336","v":0},{"$f":"+IF(OR($AB$61=1,AB161=0),0,MAX($AC$61:AC148)+AB161)","v":0}]
[null,null,null,null,null,null,null,null,null,null,null,{"$f":"+IF('QUEST PROFILATURA CLIENTI'!L162=\"\",0,1)","v":0}]
[null,null,"Rispondi ad almeno una di queste domande:",null,null,null,null,null,null,null,null,{"$f":"+IF('QUEST PROFILATURA CLIENTI'!L163=\"\",0,1)","v":0}]
[null,null,null,{"$f":"+VLOOKUP(\"65p1\",'Domande Controllo'!C:H,2,0)","v":"Quale fra queste frasi ritiene essere vera?"},null,null,null,null,null,null,null,{"$f":"+IF('QUEST PROFILATURA CLIENTI'!L164=\"\",0,1)","v":0},{"$f":"+'QUEST PROFILATURA CLIENTI'!M164","v":"Rispondi alla domanda"}]
[null,null,null,{"$f":"+VLOOKUP(\"65p1\",'Domande Controllo'!C:H,3,0)","v":"a) in Italia gli Hedge Fund si possono pubblicizzare liberamente come tutti gli altri fondi comune di investimento"},null,null,null,null,null,null,null,{"$f":"+IF('QUEST PROFILATURA CLIENTI'!L165=\"\",0,1)","v":0}]
[null,null,null,{"$f":"+VLOOKUP(\"65p1\",'Domande Controllo'!C:H,4,0)","v":"b) gli Hedge Fund sono fondi d’investimento speculativi destinati esclusivamente a profili di rischio molto elevati"},null,null,null,null,null,null,null,{"$f":"+IF('QUEST PROFILATURA CLIENTI'!L166=\"\",0,1)","v":0}]
[null,null,null,{"$f":"+VLOOKUP(\"65p1\",'Domande Controllo'!C:H,5,0)","v":"c) gli Hedge Fund sono una categoria di fondi d’investimento che comprende al loro interno profili di rischio / rendimento molto diversificati"},null,null,null,null,null,null,null,{"$f":"+IF('QUEST PROFILATURA CLIENTI'!L167=\"\",0,1)","v":0}]
[null,null,null,null,null,null,null,null,null,null,null,{"$f":"+IF('QUEST PROFILATURA CLIENTI'!L168=\"\",0,1)","v":0}]
[null,null,null,{"$f":"+VLOOKUP(\"65p2\",'Domande Controllo'!C:H,2,0)","v":"Quale di queste non è una tipologia di hedge fund?"},null,null,null,null,null,null,null,{"$f":"+IF('QUEST PROFILATURA CLIENTI'!L169=\"\",0,1)","v":0},{"$f":"+'QUEST PROFILATURA CLIENTI'!M169","v":"Rispondi alla domanda"}]
[null,null,null,{"$f":"+VLOOKUP(\"65p2\",'Domande Controllo'!C:H,3,0)","v":"a) Market neutral o relative value"},null,null,null,null,null,null,null,{"$f":"+IF('QUEST PROFILATURA CLIENTI'!L170=\"\",0,1)","v":0}]
[null,null,null,{"$f":"+VLOOKUP(\"65p2\",'Domande Controllo'!C:H,4,0)","v":"b) Global Macro"},null,null,null,null,null,null,null,{"$f":"+IF('QUEST PROFILATURA CLIENTI'!L171=\"\",0,1)","v":0}]
[null,null,null,{"$f":"+VLOOKUP(\"65p2\",'Domande Controllo'!C:H,5,0)","v":"c) Cash Colect "},null,null,null,null,null,null,null,{"$f":"+IF('QUEST PROFILATURA CLIENTI'!L172=\"\",0,1)","v":0}]
[null,null,null,null,null,null,null,null,null,null,null,{"$f":"+IF('QUEST PROFILATURA CLIENTI'!L173=\"\",0,1)","v":0}]
[null,"A.5)","IN QUALI STRUMENTI E PRODOTTI FINANZIARI HA REALIZZATO OPERAZIONI DI INVESTIMENTO? ",null,null,null,null,null,null,null,null,{"$f":"+IF('QUEST PROFILATURA CLIENTI'!L174=\"\",0,1)","v":0},null,null,null,null,1.2,"Strumenti che ha conoscenza",null,null,null,null,"Strumenti che ha conoscenza"]
[null,null,"a) nessuno",null,null,null,null,null,null,null,null,{"$f":"+IF('QUEST PROFILATURA CLIENTI'!L175=\"\",0,1)","v":0},null,null,null,{"$f":"SUM(R175:U175)","v":200},3,130,70,0,0,null,{"$f":"$L175*($Q$174*($Q175*R175/100))","v":0},{"$f":"$L175*($Q$174*($Q175*S175/100))","v":0},{"$f":"$L175*($Q$174*($Q175*T175/100))","v":0},{"$f":"$L175*($Q$174*($Q175*U175/100))","v":0}]
[null,null,"b) titoli di stato; obbligazioni (plain vanilla o semplici) area euro e valuta euro ",null,null,null,null,null,null,null,null,{"$f":"+IF('QUEST PROFILATURA CLIENTI'!L176=\"\",0,1)","v":0},null,null,1,{"$f":"SUM(R176:U176)","v":200},1,110,70,20,0,null,{"$f":"$L176*($Q$174*($Q176*R176/100))","v":0},0,0,0]
[null,null,null,"Qual è la frequenza normale delle operazioni finanziarie da Lei effettuate?",null,null,null,null,null,null,null,{"$f":"+IF('QUEST PROFILATURA CLIENTI'!L177=\"\",0,1)","v":0},null,null,null,null,2,"frequenza operazioni effettuate",null,null,null,null,"frequenza operazioni effettuate"]
[null,null,null,"a) annuale o più ",null,null,null,null,null,null,null,{"$f":"+IF('QUEST PROFILATURA CLIENTI'!L178=\"\",0,1)","v":0},null,null,null,{"$f":"SUM(R178:U178)","v":10},1,10,0,0,0,null,{"$f":"$L178*($Q$177*($Q178*R178/100))*$L$176","v":0},{"$f":"$L178*($Q$177*($Q178*S178/100))*$L$176","v":0},0,0]
[null,null,null,"b) semestrale/trimestrale",null,null,null,null,null,null,null,{"$f":"+IF('QUEST PROFILATURA CLIENTI'!L179=\"\",0,1)","v":0},null,null,null,{"$f":"SUM(R179:U179)","v":10},1,0,5,5,0,null,0,0,0,0]
[null,null,null,"c) mensile",null,null,null,null,null,null,null,{"$f":"+IF('QUEST PROFILATURA CLIENTI'!L180=\"\",0,1)","v":0},null,null,null,{"$f":"SUM(R180:U180)","v":10},3,0,0,5,5,null,0,0,0,0]
[null,null,null,"d) settimanale/giornaliera",null,null,null,null,null,null,null,{"$f":"+IF('QUEST PROFILATURA CLIENTI'!L181=\"\",0,1)","v":0},null,null,null,{"$f":"SUM(R181:U181)","v":10},5,0,0,0,10,null,0,0,0,0]
[null,null,null,null,null,null,null,null,null,null,null,{"$f":"+IF('QUEST PROFILATURA CLIENTI'!L182=\"\",0,1)","v":0}]
[null,null,null,"Qual è il volume medio delle operazioni finanziarie da Lei effettuate?",null,null,null,null,null,null,null,{"$f":"+IF('QUEST PROFILATURA CLIENTI'!L183=\"\",0,1)","v":0},null,null,null,null,1,"frequenza operazioni effettuate",null,null,null,null,"frequenza operazioni effettuate"]
[null,null,null,"a) inferiore a 10.000 Euro",null,null,null,null,null,null,null,{"$f":"+IF('QUEST PROFILATURA CLIENTI'!L184=\"\",0,1)","v":0},null,null,null,{"$f":"SUM(R184:U184)","v":10},1,10,0,0,0,null,{"$f":"$L184*($Q$183*($Q184*R184/100))*$L$176","v":0},{"$f":"$L184*($Q$183*($Q184*S184/100))*$L$176","v":0},0,0]
[null,null,null,"b) tra 10.000 e 30.000 Euro",null,null,null,null,null,null,null,{"$f":"+IF('QUEST PROFILATURA CLIENTI'!L185=\"\",0,1)","v":0},null,null,null,{"$f":"SUM(R185:U185)","v":10},1,0,5,5,0,null,{"$f":"$L185*($Q$183*($Q185*R185/100))*$L$176","v":0},0,0,0]
[null,null,null,"c) tra 30.000 e 50.000 Euro",null,null,null,null,null,null,null,{"$f":"+IF('QUEST PROFILATURA CLIENTI'!L186=\"\",0,1)","v":0},null,null,null,{"$f":"SUM(R186:U186)","v":10},1,0,5,5,0,null,{"$f":"$L186*($Q$183*($Q186*R186/100))*$L$176","v":0},0,0,0]
[null,null,null,"d) superiore a 50.000 Euro",null,null,null,null,null,null,null,{"$f":"+IF('QUEST PROFILATURA CLIENTI'!L187=\"\",0,1)","v":0},null,null,null,{"$f":"SUM(R187:U187)","v":10},1,0,0,0,10,null,{"$f":"$L187*($Q$183*($Q187*R187/100))*$L$176","v":0},0,0,0]
[null,null,null,null,null,null,null,null,null,null,null,{"$f":"+IF('QUEST PROFILATURA CLIENTI'!L188=\"\",0,1)","v":0}]
[null,null,null,"In quale periodo ha realizzato le suddette operazioni?",null,null,null,null,null,null,null,{"$f":"+IF('QUEST PROFILATURA CLIENTI'!L189=\"\",0,1)","v":0},null,null,null,null,2,"frequenza operazioni effettuate",null,null,null,null,"frequenza operazioni effettuate"]
[null,null,null,"Più di 3 anni fa",null,null,null,null,null,null,null,{"$f":"+IF('QUEST PROFILATURA CLIENTI'!L190=\"\",0,1)","v":0},null,null,null,{"$f":"SUM(R190:U190)","v":10},1,10,0,0,0,null,{"$f":"$L190*($Q$189*($Q190*R190/100))*$L$176","v":0},{"$f":"$L190*($Q$189*($Q190*S190/100))*$L$176","v":0},0,0]
[null,null,null,"Negli ultimi tre anni",null,null,null,null,null,null,null,{"$f":"+IF('QUEST PROFILATURA CLIENTI'!L191=\"\",0,1)","v":0},null,null,null,{"$f":"SUM(R191:U191)","v":10},1,0,5,5,0,null,{"$f":"$L191*($Q$189*($Q191*R191/100))*$L$176","v":0},0,0,0]
[null,null,null,"Negli ultimi due anni",null,null,null,null,null,null,null,{"$f":"+IF('QUEST PROFILATURA CLIENTI'!L192=\"\",0,1)","v":0},null,null,null,{"$f":"SUM(R192:U192)","v":10},1,0,5,5,0,null,{"$f":"$L192*($Q$189*($Q192*R192/100))*$L$176","v":0},0,0,0]
[null,null,null,"Nell'ultimo anno",null,null,null,null,null,null,null,{"$f":"+IF('QUEST PROFILATURA CLIENTI'!L193=\"\",0,1)","v":0},null,null,null,{"$f":"SUM(R193:U193)","v":10},1,0,0,0,10,null,{"$f":"$L193*($Q$189*($Q193*R193/100))*$L$176","v":0},0,0,0]
[null,null,null,null,null,null,null,null,null,null,null,{"$f":"+IF('QUEST PROFILATURA CLIENTI'!L194=\"\",0,1)","v":0}]
[null,null,null,null,null,null,null,null,null,null,null,{"$f":"+IF('QUEST PROFILATURA CLIENTI'!L195=\"\",0,1)","v":0}]
[null,null,"c) titoli di stato e obbligazioni ordinarie in valuta non euro",null,null,null,null,null,null,null,null,{"$f":"+IF('QUEST PROFILATURA CLIENTI'!L196=\"\",0,1)","v":0},null,null,2,200,1,80,80,40,0,null,{"$f":"$L196*($Q$174*($Q196*R196/100))","v":0},0,0,0]
[null,null,null,"Qual è la frequenza normale delle operazioni finanziarie da Lei effettuate?",null,null,null,null,null,null,null,{"$f":"+IF('QUEST PROFILATURA CLIENTI'!L197=\"\",0,1)","v":0},null,null,null,null,2,"frequenza operazioni effettuate",null,null,null,null,"frequenza operazioni effettuate"]
[null,null,null,"a) annuale o più ",null,null,null,null,null,null,null,{"$f":"+IF('QUEST PROFILATURA CLIENTI'!L198=\"\",0,1)","v":0},null,null,null,{"$f":"SUM(R198:U198)","v":10},1,10,0,0,0,null,{"$f":"$L198*($Q$197*($Q198*R198/100))*$L$196","v":0},{"$f":"$L198*($Q$197*($Q198*S198/100))*$L$196","v":0},0,0]
[null,null,null,"b) semestrale/trimestrale",null,null,null,null,null,null,null,{"$f":"+IF('QUEST PROFILATURA CLIENTI'!L199=\"\",0,1)","v":0},null,null,null,{"$f":"SUM(R199:U199)","v":10},1,0,5,5,0,null,{"$f":"$L199*($Q$197*($Q199*R199/100))*$L$196","v":0},0,0,0]
[null,null,null,"c) mensile",null,null,null,null,null,null,null,{"$f":"+IF('QUEST PROFILATURA CLIENTI'!L200=\"\",0,1)","v":0},null,null,null,{"$f":"SUM(R200:U200)","v":10},3,0,0,5,5,null,{"$f":"$L200*($Q$197*($Q200*R200/100))*$L$196","v":0},0,0,0]
[null,null,null,"d) settimanale/giornaliera",null,null,null,null,null,null,null,{"$f":"+IF('QUEST PROFILATURA CLIENTI'!L201=\"\",0,1)","v":0},null,null,null,{"$f":"SUM(R201:U201)","v":10},5,0,0,0,10,null,{"$f":"$L201*($Q$197*($Q201*R201/100))*$L$196","v":0},0,0,0]
[null,null,null,null,null,null,null,null,null,null,null,{"$f":"+IF('QUEST PROFILATURA CLIENTI'!L202=\"\",0,1)","v":0}]
[null,null,null,"Qual è il volume medio delle operazioni finanziarie da Lei effettuate?",null,null,null,null,null,null,null,{"$f":"+IF('QUEST PROFILATURA CLIENTI'!L203=\"\",0,1)","v":0},null,null,null,null,1,"frequenza operazioni effettuate",null,null,null,null,"frequenza operazioni effettuate"]
[null,null,null,"a) inferiore a 10.000 Euro",null,null,null,null,null,null,null,{"$f":"+IF('QUEST PROFILATURA CLIENTI'!L204=\"\",0,1)","v":0},null,null,null,{"$f":"SUM(R204:U204)","v":10},1,10,0,0,0,null,{"$f":"$L204*($Q$203*($Q204*R204/100))*$L$196","v":0},{"$f":"$L204*($Q$203*($Q204*S204/100))*$L$196","v":0},0,0]
[null,null,null,"b) tra 10.000 e 30.000 Euro",null,null,null,null,null,null,null,{"$f":"+IF('QUEST PROFILATURA CLIENTI'!L205=\"\",0,1)","v":0},null,null,null,{"$f":"SUM(R205:U205)","v":10},1,0,5,5,0,null,{"$f":"$L205*($Q$203*($Q205*R205/100))*$L$196","v":0},0,0,0]
[null,null,null,"c) tra 30.000 e 50.000 Euro",null,null,null,null,null,null,null,{"$f":"+IF('QUEST PROFILATURA CLIENTI'!L206=\"\",0,1)","v":0},null,null,null,{"$f":"SUM(R206:U206)","v":10},1,0,5,5,0,null,{"$f":"$L206*($Q$203*($Q206*R206/100))*$L$196","v":0},0,0,0]
[null,null,null,"d) superiore a 50.000 Euro",null,null,null,null,null,null,null,{"$f":"+IF('QUEST PROFILATURA CLIENTI'!L207=\"\",0,1)","v":0},null,null,null,{"$f":"SUM(R207:U207)","v":10},1,0,0,0,10,null,{"$f":"$L207*($Q$203*($Q207*R207/100))*$L$196","v":0},0,0,0]
[null,null,null,null,null,null,null,null,null,null,null,{"$f":"+IF('QUEST PROFILATURA CLIENTI'!L208=\"\",0,1)","v":0}]
[null,null,null,"In quale periodo ha realizzato le suddette operazioni?",null,null,null,null,null,null,null,{"$f":"+IF('QUEST PROFILATURA CLIENTI'!L209=\"\",0,1)","v":0},null,null,null,null,2,"frequenza operazioni effettuate",null,null,null,null,"frequenza operazioni effettuate"]
[null,null,null,"Più di 3 anni fa",null,null,null,null,null,null,null,{"$f":"+IF('QUEST PROFILATURA CLIENTI'!L210=\"\",0,1)","v":0},null,null,null,{"$f":"SUM(R210:U210)","v":10},1,10,0,0,0,null,{"$f":"$L210*($Q$209*($Q210*R210/100))*$L$196","v":0},{"$f":"$L210*($Q$209*($Q210*S210/100))*$L$196","v":0},0,0]
[null,null,null,"Negli ultimi tre anni",null,null,null,null,null,null,null,{"$f":"+IF('QUEST PROFILATURA CLIENTI'!L211=\"\",0,1)","v":0},null,null,null,{"$f":"SUM(R211:U211)","v":10},1,0,5,5,0,null,{"$f":"$L211*($Q$209*($Q211*R211/100))*$L$196","v":0},0,0,0]
[null,null,null,"Negli ultimi due anni",null,null,null,null,null,null,null,{"$f":"+IF('QUEST PROFILATURA CLIENTI'!L212=\"\",0,1)","v":0},null,null,null,{"$f":"SUM(R212:U212)","v":10},1,0,5,5,0,null,{"$f":"$L212*($Q$209*($Q212*R212/100))*$L$196","v":0},0,0,0]
[null,null,null,"Nell'ultimo anno",null,null,null,null,null,null,null,{"$f":"+IF('QUEST PROFILATURA CLIENTI'!L213=\"\",0,1)","v":0},null,null,null,{"$f":"SUM(R213:U213)","v":10},1,0,0,0,10,null,{"$f":"$L213*($Q$209*($Q213*R213/100))*$L$196","v":0},0,0,0]
[null,null,null,null,null,null,null,null,null,null,null,{"$f":"+IF('QUEST PROFILATURA CLIENTI'!L214=\"\",0,1)","v":0}]
[null,null,null,null,null,null,null,null,null,null,null,{"$f":"+IF('QUEST PROFILATURA CLIENTI'!L215=\"\",0,1)","v":0}]
[null,null,"d) fondi comuni, comparti sicav, ETF ",null,null,null,null,null,null,null,null,{"$f":"+IF('QUEST PROFILATURA CLIENTI'!L216=\"\",0,1)","v":0},null,null,3,200,1,20,45,60,75,null,{"$f":"$L216*($Q$174*($Q216*R216/100))","v":0},0,0,0]
[null,null,null,"Qual è la frequenza normale delle operazioni finanziarie da Lei effettuate?",null,null,null,null,null,null,null,{"$f":"+IF('QUEST PROFILATURA CLIENTI'!L217=\"\",0,1)","v":0},null,null,null,null,2,"frequenza operazioni effettuate",null,null,null,null,"frequenza operazioni effettuate"]
[null,null,null,"a) annuale o più ",null,null,null,null,null,null,null,{"$f":"+IF('QUEST PROFILATURA CLIENTI'!L218=\"\",0,1)","v":0},null,null,null,{"$f":"SUM(R218:U218)","v":10},1,10,0,0,0,null,{"$f":"$L218*($Q$217*($Q218*R218/100))*$L$216","v":0},{"$f":"$L218*($Q$217*($Q218*S218/100))*$L$216","v":0},0,0]
[null,null,null,"b) semestrale/trimestrale",null,null,null,null,null,null,null,{"$f":"+IF('QUEST PROFILATURA CLIENTI'!L219=\"\",0,1)","v":0},null,null,null,{"$f":"SUM(R219:U219)","v":10},1,0,5,5,0,null,{"$f":"$L219*($Q$217*($Q219*R219/100))*$L$216","v":0},{"$f":"$L219*($Q$217*($Q219*S219/100))*$L$216","v":0},{"$f":"$L219*($Q$217*($Q219*T219/100))*$L$216","v":0},{"$f":"$L219*($Q$217*($Q219*U219/100))*$L$216","v":0}]
[null,null,null,"c) mensile",null,null,null,null,null,null,null,{"$f":"+IF('QUEST PROFILATURA CLIENTI'!L220=\"\",0,1)","v":0},null,null,null,{"$f":"SUM(R220:U220)","v":10},3,0,0,5,5,null,0,0,0,0]
[null,null,null,"d) settimanale/giornaliera",null,null,null,null,null,null,null,{"$f":"+IF('QUEST PROFILATURA CLIENTI'!L221=\"\",0,1)","v":0},null,null,null,{"$f":"SUM(R221:U221)","v":10},5,0,0,0,10,null,0,0,0,0]
[null,null,null,null,null,null,null,null,null,null,null,{"$f":"+IF('QUEST PROFILATURA CLIENTI'!L222=\"\",0,1)","v":0}]
[null,null,null,"Qual è il volume medio delle operazioni finanziarie da Lei effettuate?",null,null,null,null,null,null,null,{"$f":"+IF('QUEST PROFILATURA CLIENTI'!L223=\"\",0,1)","v":0},null,null,null,null,1,"frequenza operazioni effettuate",null,null,null,null,"frequenza operazioni effettuate"]
[null,null,null,"a) inferiore a 10.000 Euro",null,null,null,null,null,null,null,{"$f":"+IF('QUEST PROFILATURA CLIENTI'!L224=\"\",0,1)","v":0},null,null,null,{"$f":"SUM(R224:U224)","v":10},1,10,0,0,0,null,{"$f":"$L224*($Q$223*($Q224*R224/100))*$L$216","v":0},{"$f":"$L224*($Q$223*($Q224*S224/100))*$L$216","v":0},0,0]
[null,null,null,"b) tra 10.000 e 30.000 Euro",null,null,null,null,null,null,null,{"$f":"+IF('QUEST PROFILATURA CLIENTI'!L225=\"\",0,1)","v":0},null,null,null,{"$f":"SUM(R225:U225)","v":10},1,0,5,5,0,null,{"$f":"$L225*($Q$223*($Q225*R225/100))*$L$216","v":0},{"$f":"$L225*($Q$223*($Q225*S225/100))*$L$216","v":0},{"$f":"$L225*($Q$223*($Q225*T225/100))*$L$216","v":0},{"$f":"$L225*($Q$223*($Q225*U225/100))*$L$216","v":0}]
[null,null,null,"c) tra 30.000 e 50.000 Euro",null,null,null,null,null,null,null,{"$f":"+IF('QUEST PROFILATURA CLIENTI'!L226=\"\",0,1)","v":0},null,null,null,{"$f":"SUM(R226:U226)","v":10},1,0,5,5,0,null,0,0,0,0]
[null,null,null,"d) superiore a 50.000 Euro",null,null,null,null,null,null,null,{"$f":"+IF('QUEST PROFILATURA CLIENTI'!L227=\"\",0,1)","v":0},null,null,null,{"$f":"SUM(R227:U227)","v":10},1,0,0,0,10,null,0,0,0,0]
[null,null,null,null,null,null,null,null,null,null,null,{"$f":"+IF('QUEST PROFILATURA CLIENTI'!L228=\"\",0,1)","v":0}]
[null,null,null,"In quale periodo ha realizzato le suddette operazioni?",null,null,null,null,null,null,null,{"$f":"+IF('QUEST PROFILATURA CLIENTI'!L229=\"\",0,1)","v":0},null,null,null,null,2,"frequenza operazioni effettuate",null,null,null,null,"frequenza operazioni effettuate"]
[null,null,null,"Più di 3 anni fa",null,null,null,null,null,null,null,{"$f":"+IF('QUEST PROFILATURA CLIENTI'!L230=\"\",0,1)","v":0},null,null,null,{"$f":"SUM(R230:U230)","v":10},1,10,0,0,0,null,{"$f":"$L230*($Q$229*($Q230*R230/100))*$L$216","v":0},{"$f":"$L230*($Q$229*($Q230*S230/100))*$L$216","v":0},0,0]
[null,null,null,"Negli ultimi tre anni",null,null,null,null,null,null,null,{"$f":"+IF('QUEST PROFILATURA CLIENTI'!L231=\"\",0,1)","v":0},null,null,null,{"$f":"SUM(R231:U231)","v":10},1,0,5,5,0,null,{"$f":"$L231*($Q$229*($Q231*R231/100))*$L$216","v":0},{"$f":"$L231*($Q$229*($Q231*S231/100))*$L$216","v":0},{"$f":"$L231*($Q$229*($Q231*T231/100))*$L$216","v":0},{"$f":"$L231*($Q$229*($Q231*U231/100))*$L$216","v":0}]
[null,null,null,"Negli ultimi due anni",null,null,null,null,null,null,null,{"$f":"+IF('QUEST PROFILATURA CLIENTI'!L232=\"\",0,1)","v":0},null,null,null,{"$f":"SUM(R232:U232)","v":10},1,0,5,5,0,null,0,0,0,0]
[null,null,null,"Nell'ultimo anno",null,null,null,null,null,null,null,{"$f":"+IF('QUEST PROFILATURA CLIENTI'!L233=\"\",0,1)","v":0},null,null,null,{"$f":"SUM(R233:U233)","v":10},1,0,0,0,10,null,0,0,0,0]
[null,null,null,null,null,null,null,null,null,null,null,{"$f":"+IF('QUEST PROFILATURA CLIENTI'!L234=\"\",0,1)","v":0}]
[null,null,null,null,null,null,null,null,null,null,null,{"$f":"+IF('QUEST PROFILATURA CLIENTI'!L235=\"\",0,1)","v":0}]
[null,null,"e) polizze index linked; polizze unit linked",null,null,null,null,null,null,null,null,{"$f":"+IF('QUEST PROFILATURA CLIENTI'!L236=\"\",0,1)","v":0},null,null,4,200,1,15,30,65,90,null,{"$f":"$L236*($Q$174*($Q236*R236/100))","v":0},0,0,0]
[null,null,null,"Qual è la frequenza normale delle operazioni finanziarie da Lei effettuate?",null,null,null,null,null,null,null,{"$f":"+IF('QUEST PROFILATURA CLIENTI'!L237=\"\",0,1)","v":0},null,null,null,null,2,"frequenza operazioni effettuate",null,null,null,null,"frequenza operazioni effettuate"]
[null,null,null,"a) annuale o più ",null,null,null,null,null,null,null,{"$f":"+IF('QUEST PROFILATURA CLIENTI'!L238=\"\",0,1)","v":0},null,null,null,{"$f":"SUM(R238:U238)","v":10},1,10,0,0,0,null,{"$f":"$L238*($Q$237*($Q238*R238/100))*$L$236","v":0},{"$f":"$L238*($Q$237*($Q238*S238/100))*$L$236","v":0},0,0]
[null,null,null,"b) semestrale/trimestrale",null,null,null,null,null,null,null,{"$f":"+IF('QUEST PROFILATURA CLIENTI'!L239=\"\",0,1)","v":0},null,null,null,{"$f":"SUM(R239:U239)","v":10},1,0,5,5,0,null,{"$f":"$L239*($Q$237*($Q239*R239/100))*$L$236","v":0},0,0,0]
[null,null,null,"c) mensile",null,null,null,null,null,null,null,{"$f":"+IF('QUEST PROFILATURA CLIENTI'!L240=\"\",0,1)","v":0},null,null,null,{"$f":"SUM(R240:U240)","v":10},3,0,0,5,5,null,{"$f":"$L240*($Q$237*($Q240*R240/100))*$L$236","v":0},0,0,0]
[null,null,null,"d) settimanale/giornaliera",null,null,null,null,null,null,null,{"$f":"+IF('QUEST PROFILATURA CLIENTI'!L241=\"\",0,1)","v":0},null,null,null,{"$f":"SUM(R241:U241)","v":10},5,0,0,0,10,null,{"$f":"$L241*($Q$237*($Q241*R241/100))*$L$236","v":0},0,0,0]
[null,null,null,null,null,null,null,null,null,null,null,{"$f":"+IF('QUEST PROFILATURA CLIENTI'!L242=\"\",0,1)","v":0}]
[null,null,null,"Qual è il volume medio delle operazioni finanziarie da Lei effettuate?",null,null,null,null,null,null,null,{"$f":"+IF('QUEST PROFILATURA CLIENTI'!L243=\"\",0,1)","v":0},null,null,null,null,1,"frequenza operazioni effettuate",null,null,null,null,"frequenza operazioni effettuate"]
[null,null,null,"a) inferiore a 10.000 Euro",null,null,null,null,null,null,null,{"$f":"+IF('QUEST PROFILATURA CLIENTI'!L244=\"\",0,1)","v":0},null,null,null,{"$f":"SUM(R244:U244)","v":10},1,10,0,0,0,null,{"$f":"$L244*($Q$243*($Q244*R244/100))*$L$236","v":0},{"$f":"$L244*($Q$243*($Q244*S244/100))*$L$236","v":0},0,0]
[null,null,null,"b) tra 10.000 e 30.000 Euro",null,null,null,null,null,null,null,{"$f":"+IF('QUEST PROFILATURA CLIENTI'!L245=\"\",0,1)","v":0},null,null,null,{"$f":"SUM(R245:U245)","v":10},1,0,5,5,0,null,{"$f":"$L245*($Q$243*($Q245*R245/100))*$L$236","v":0},{"$f":"$L245*($Q$243*($Q245*S245/100))*$L$236","v":0},{"$f":"$L245*($Q$243*($Q245*T245/100))*$L$236","v":0},{"$f":"$L245*($Q$243*($Q245*U245/100))*$L$236","v":0}]
[null,null,null,"c) tra 30.000 e 50.000 Euro",null,null,null,null,null,null,null,{"$f":"+IF('QUEST PROFILATURA CLIENTI'!L246=\"\",0,1)","v":0},null,null,null,{"$f":"SUM(R246:U246)","v":10},1,0,5,5,0,null,0,0,0,0]
[null,null,null,"d) superiore a 50.000 Euro",null,null,null,null,null,null,null,{"$f":"+IF('QUEST PROFILATURA CLIENTI'!L247=\"\",0,1)","v":0},null,null,null,{"$f":"SUM(R247:U247)","v":10},1,0,0,0,10,null,0,0,0,0]
[null,null,null,null,null,null,null,null,null,null,null,{"$f":"+IF('QUEST PROFILATURA CLIENTI'!L248=\"\",0,1)","v":0}]
[null,null,null,"In quale periodo ha realizzato le suddette operazioni?",null,null,null,null,null,null,null,{"$f":"+IF('QUEST PROFILATURA CLIENTI'!L249=\"\",0,1)","v":0},null,null,null,null,2,"frequenza operazioni effettuate",null,null,null,null,"frequenza operazioni effettuate"]
[null,null,null,"Più di 3 anni fa",null,null,null,null,null,null,null,{"$f":"+IF('QUEST PROFILATURA CLIENTI'!L250=\"\",0,1)","v":0},null,null,null,{"$f":"SUM(R250:U250)","v":10},1,10,0,0,0,null,{"$f":"$L250*($Q$249*($Q250*R250/100))*$L$236","v":0},{"$f":"$L250*($Q$249*($Q250*S250/100))*$L$236","v":0},0,0]
[null,null,null,"Negli ultimi tre anni",null,null,null,null,null,null,null,{"$f":"+IF('QUEST PROFILATURA CLIENTI'!L251=\"\",0,1)","v":0},null,null,null,{"$f":"SUM(R251:U251)","v":10},1,0,5,5,0,null,{"$f":"$L251*($Q$249*($Q251*R251/100))*$L$236","v":0},{"$f":"$L251*($Q$249*($Q251*S251/100))*$L$236","v":0},{"$f":"$L251*($Q$249*($Q251*T251/100))*$L$236","v":0},{"$f":"$L251*($Q$249*($Q251*U251/100))*$L$236","v":0}]
[null,null,null,"Negli ultimi due anni",null,null,null,null,null,null,null,{"$f":"+IF('QUEST PROFILATURA CLIENTI'!L252=\"\",0,1)","v":0},null,null,null,{"$f":"SUM(R252:U252)","v":10},1,0,5,5,0,null,0,0,0,0]
[null,null,null,"Nell'ultimo anno",null,null,null,null,null,null,null,{"$f":"+IF('QUEST PROFILATURA CLIENTI'!L253=\"\",0,1)","v":0},null,null,null,{"$f":"SUM(R253:U253)","v":10},1,0,0,0,10,null,0,0,0,0]
[null,null,null,null,null,null,null,null,null,null,null,{"$f":"+IF('QUEST PROFILATURA CLIENTI'!L254=\"\",0,1)","v":0}]
[null,null,null,null,null,null,null,null,null,null,null,{"$f":"+IF('QUEST PROFILATURA CLIENTI'!L255=\"\",0,1)","v":0}]
[null,null,"f) azioni ordinarie, di risparmio, privilegiate",null,null,null,null,null,null,null,null,{"$f":"+IF('QUEST PROFILATURA CLIENTI'!L256=\"\",0,1)","v":0},null,null,5,200,1,0,20,70,110,null,{"$f":"$L256*($Q$174*($Q256*R256/100))","v":0},0,0,0]
[null,null,null,"Qual è la frequenza normale delle operazioni finanziarie da Lei effettuate?",null,null,null,null,null,null,null,{"$f":"+IF('QUEST PROFILATURA CLIENTI'!L257=\"\",0,1)","v":0},null,null,null,null,2,"frequenza operazioni effettuate",null,null,null,null,"frequenza operazioni effettuate"]
[null,null,null,"a) annuale o più ",null,null,null,null,null,null,null,{"$f":"+IF('QUEST PROFILATURA CLIENTI'!L258=\"\",0,1)","v":0},null,null,null,{"$f":"SUM(R258:U258)","v":10},1,10,0,0,0,null,{"$f":"$L258*($Q$257*($Q258*R258/100))*$L$256","v":0},{"$f":"$L258*($Q$257*($Q258*S258/100))*$L$256","v":0},0,0]
[null,null,null,"b) semestrale/trimestrale",null,null,null,null,null,null,null,{"$f":"+IF('QUEST PROFILATURA CLIENTI'!L259=\"\",0,1)","v":0},null,null,null,{"$f":"SUM(R259:U259)","v":10},1,0,5,5,0,null,0,0,0,0]
[null,null,null,"c) mensile",null,null,null,null,null,null,null,{"$f":"+IF('QUEST PROFILATURA CLIENTI'!L260=\"\",0,1)","v":0},null,null,null,{"$f":"SUM(R260:U260)","v":10},3,0,0,5,5,null,0,0,0,0]
[null,null,null,"d) settimanale/giornaliera",null,null,null,null,null,null,null,{"$f":"+IF('QUEST PROFILATURA CLIENTI'!L261=\"\",0,1)","v":0},null,null,null,{"$f":"SUM(R261:U261)","v":10},5,0,0,0,10,null,0,0,0,0]
[null,null,null,null,null,null,null,null,null,null,null,{"$f":"+IF('QUEST PROFILATURA CLIENTI'!L262=\"\",0,1)","v":0}]
[null,null,null,"Qual è il volume medio delle operazioni finanziarie da Lei effettuate?",null,null,null,null,null,null,null,{"$f":"+IF('QUEST PROFILATURA CLIENTI'!L263=\"\",0,1)","v":0},null,null,null,null,1,"frequenza operazioni effettuate",null,null,null,null,"frequenza operazioni effettuate"]
[null,null,null,"a) inferiore a 10.000 Euro",null,null,null,null,null,null,null,{"$f":"+IF('QUEST PROFILATURA CLIENTI'!L264=\"\",0,1)","v":0},null,null,null,{"$f":"SUM(R264:U264)","v":10},1,10,0,0,0,null,{"$f":"$L264*($Q$263*($Q264*R264/100))*$L$256","v":0},{"$f":"$L264*($Q$263*($Q264*S264/100))*$L$256","v":0},0,0]
[null,null,null,"b) tra 10.000 e 30.000 Euro",null,null,null,null,null,null,null,{"$f":"+IF('QUEST PROFILATURA CLIENTI'!L265=\"\",0,1)","v":0},null,null,null,{"$f":"SUM(R265:U265)","v":10},1,0,5,5,0,null,0,0,0,0]
[null,null,null,"c) tra 30.000 e 50.000 Euro",null,null,null,null,null,null,null,{"$f":"+IF('QUEST PROFILATURA CLIENTI'!L266=\"\",0,1)","v":0},null,null,null,{"$f":"SUM(R266:U266)","v":10},1,0,5,5,0,null,0,0,0,0]
[null,null,null,"d) superiore a 50.000 Euro",null,null,null,null,null,null,null,{"$f":"+IF('QUEST PROFILATURA CLIENTI'!L267=\"\",0,1)","v":0},null,null,null,{"$f":"SUM(R267:U267)","v":10},1,0,0,0,10,null,0,0,0,0]
[null,null,null,null,null,null,null,null,null,null,null,{"$f":"+IF('QUEST PROFILATURA CLIENTI'!L268=\"\",0,1)","v":0}]
[null,null,null,"In quale periodo ha realizzato le suddette operazioni?",null,null,null,null,null,null,null,{"$f":"+IF('QUEST PROFILATURA CLIENTI'!L269=\"\",0,1)","v":0},null,null,null,null,2,"frequenza operazioni effettuate",null,null,null,null,"frequenza operazioni effettuate"]
[null,null,null,"Più di 3 anni fa",null,null,null,null,null,null,null,{"$f":"+IF('QUEST PROFILATURA CLIENTI'!L270=\"\",0,1)","v":0},null,null,null,{"$f":"SUM(R270:U270)","v":10},1,10,0,0,0,null,{"$f":"$L270*($Q$269*($Q270*R270/100))*$L$256","v":0},{"$f":"$L270*($Q$269*($Q270*S270/100))*$L$256","v":0},0,0]
[null,null,null,"Negli ultimi tre anni",null,null,null,null,null,null,null,{"$f":"+IF('QUEST PROFILATURA CLIENTI'!L271=\"\",0,1)","v":0},null,null,null,{"$f":"SUM(R271:U271)","v":10},1,0,5,5,0,null,{"$f":"$L271*($Q$269*($Q271*R271/100))*$L$256","v":0},0,0,0]
[null,null,null,"Negli ultimi due anni",null,null,null,null,null,null,null,{"$f":"+IF('QUEST PROFILATURA CLIENTI'!L272=\"\",0,1)","v":0},null,null,null,{"$f":"SUM(R272:U272)","v":10},1,0,5,5,0,null,0,0,0,0]
[null,null,null,"Nell'ultimo anno",null,null,null,null,null,null,null,{"$f":"+IF('QUEST PROFILATURA CLIENTI'!L273=\"\",0,1)","v":0},null,null,null,{"$f":"SUM(R273:U273)","v":10},1,0,0,0,10,null,0,0,0,0]
[null,null,null,null,null,null,null,null,null,null,null,{"$f":"+IF('QUEST PROFILATURA CLIENTI'!L274=\"\",0,1)","v":0}]
[null,null,null,null,null,null,null,null,null,null,null,{"$f":"+IF('QUEST PROFILATURA CLIENTI'!L275=\"\",0,1)","v":0}]
[null,null,"g) certificates non a leva; obbligazioni strutturate; obbligazioni subordinate",null,null,null,null,null,null,null,null,{"$f":"+IF('QUEST PROFILATURA CLIENTI'!L276=\"\",0,1)","v":0},null,null,6,200,1,0,20,70,110,null,{"$f":"$L276*($Q$174*($Q276*R276/100))","v":0},0,0,0]
[null,null,null,"Qual è la frequenza normale delle operazioni finanziarie da Lei effettuate?",null,null,null,null,null,null,null,{"$f":"+IF('QUEST PROFILATURA CLIENTI'!L277=\"\",0,1)","v":0},null,null,null,null,2,"frequenza operazioni effettuate",null,null,null,null,"frequenza operazioni effettuate"]
[null,null,null,"a) annuale o più ",null,null,null,null,null,null,null,{"$f":"+IF('QUEST PROFILATURA CLIENTI'!L278=\"\",0,1)","v":0},null,null,null,{"$f":"SUM(R278:U278)","v":10},1,10,0,0,0,null,{"$f":"$L278*($Q$277*($Q278*R278/100))*$L$276","v":0},{"$f":"$L278*($Q$277*($Q278*S278/100))*$L$276","v":0},0,0]
[null,null,null,"b) semestrale/trimestrale",null,null,null,null,null,null,null,{"$f":"+IF('QUEST PROFILATURA CLIENTI'!L279=\"\",0,1)","v":0},null,null,null,{"$f":"SUM(R279:U279)","v":10},1,0,5,5,0,null,0,0,0,0]
[null,null,null,"c) mensile",null,null,null,null,null,null,null,{"$f":"+IF('QUEST PROFILATURA CLIENTI'!L280=\"\",0,1)","v":0},null,null,null,{"$f":"SUM(R280:U280)","v":10},3,0,0,5,5,null,0,0,0,0]
[null,null,null,"d) settimanale/giornaliera",null,null,null,null,null,null,null,{"$f":"+IF('QUEST PROFILATURA CLIENTI'!L281=\"\",0,1)","v":0},null,null,null,{"$f":"SUM(R281:U281)","v":10},5,0,0,0,10,null,0,0,0,0]
[null,null,null,null,null,null,null,null,null,null,null,{"$f":"+IF('QUEST PROFILATURA CLIENTI'!L282=\"\",0,1)","v":0}]
[null,null,null,"Qual è il volume medio delle operazioni finanziarie da Lei effettuate?",null,null,null,null,null,null,null,{"$f":"+IF('QUEST PROFILATURA CLIENTI'!L283=\"\",0,1)","v":0},null,null,null,null,1,"frequenza operazioni effettuate",null,null,null,null,"frequenza operazioni effettuate"]
[null,null,null,"a) inferiore a 10.000 Euro",null,null,null,null,null,null,null,{"$f":"+IF('QUEST PROFILATURA CLIENTI'!L284=\"\",0,1)","v":0},null,null,null,{"$f":"SUM(R284:U284)","v":10},1,10,0,0,0,null,{"$f":"$L284*($Q$283*($Q284*R284/100))*$L$276","v":0},{"$f":"$L284*($Q$283*($Q284*S284/100))*$L$276","v":0},0,0]
[null,null,null,"b) tra 10.000 e 30.000 Euro",null,null,null,null,null,null,null,{"$f":"+IF('QUEST PROFILATURA CLIENTI'!L285=\"\",0,1)","v":0},null,null,null,{"$f":"SUM(R285:U285)","v":10},1,0,5,5,0,null,0,0,0,0]
[null,null,null,"c) tra 30.000 e 50.000 Euro",null,null,null,null,null,null,null,{"$f":"+IF('QUEST PROFILATURA CLIENTI'!L286=\"\",0,1)","v":0},null,null,null,{"$f":"SUM(R286:U286)","v":10},1,0,5,5,0,null,0,0,0,0]
[null,null,null,"d) superiore a 50.000 Euro",null,null,null,null,null,null,null,{"$f":"+IF('QUEST PROFILATURA CLIENTI'!L287=\"\",0,1)","v":0},null,null,null,{"$f":"SUM(R287:U287)","v":10},1,0,0,0,10,null,0,0,0,0]
[null,null,null,null,null,null,null,null,null,null,null,{"$f":"+IF('QUEST PROFILATURA CLIENTI'!L288=\"\",0,1)","v":0}]
[null,null,null,"In quale periodo ha realizzato le suddette operazioni?",null,null,null,null,null,null,null,{"$f":"+IF('QUEST PROFILATURA CLIENTI'!L289=\"\",0,1)","v":0},null,null,null,null,2,"frequenza operazioni effettuate",null,null,null,null,"frequenza operazioni effettuate"]
[null,null,null,"Più di 3 anni fa",null,null,null,null,null,null,null,{"$f":"+IF('QUEST PROFILATURA CLIENTI'!L290=\"\",0,1)","v":0},null,null,null,{"$f":"SUM(R290:U290)","v":10},1,10,0,0,0,null,{"$f":"$L290*($Q$289*($Q290*R290/100))*$L$276","v":0},{"$f":"$L290*($Q$289*($Q290*S290/100))*$L$276","v":0},0,0]
[null,null,null,"Negli ultimi tre anni",null,null,null,null,null,null,null,{"$f":"+IF('QUEST PROFILATURA CLIENTI'!L291=\"\",0,1)","v":0},null,null,null,{"$f":"SUM(R291:U291)","v":10},1,0,5,5,0,null,0,0,0,0]
[null,null,null,"Negli ultimi due anni",null,null,null,null,null,null,null,{"$f":"+IF('QUEST PROFILATURA CLIENTI'!L292=\"\",0,1)","v":0},null,null,null,{"$f":"SUM(R292:U292)","v":10},1,0,5,5,0,null,0,0,0,0]
[null,null,null,"Nell'ultimo anno",null,null,null,null,null,null,null,{"$f":"+IF('QUEST PROFILATURA CLIENTI'!L293=\"\",0,1)","v":0},null,null,null,{"$f":"SUM(R293:U293)","v":10},1,0,0,0,10,null,0,0,0,0]
[null,null,null,null,null,null,null,null,null,null,null,{"$f":"+IF('QUEST PROFILATURA CLIENTI'!L294=\"\",0,1)","v":0}]
[null,null,null,null,null,null,null,null,null,null,null,{"$f":"+IF('QUEST PROFILATURA CLIENTI'!L295=\"\",0,1)","v":0}]
[null,null,"h) ETC, ETN e certificates a leva",null,null,null,null,null,null,null,null,{"$f":"+IF('QUEST PROFILATURA CLIENTI'!L296=\"\",0,1)","v":0},null,null,7,200,2,0,0,80,120,null,{"$f":"$L296*($Q$174*($Q296*R296/100))","v":0},0,0,0]
[null,null,null,"Qual è la frequenza normale delle operazioni finanziarie da Lei effettuate?",null,null,null,null,null,null,null,{"$f":"+IF('QUEST PROFILATURA CLIENTI'!L297=\"\",0,1)","v":0},null,null,null,null,2,"frequenza operazioni effettuate",null,null,null,null,"frequenza operazioni effettuate"]
[null,null,null,"a) annuale o più ",null,null,null,null,null,null,null,{"$f":"+IF('QUEST PROFILATURA CLIENTI'!L298=\"\",0,1)","v":0},null,null,null,{"$f":"SUM(R298:U298)","v":10},1,10,0,0,0,null,{"$f":"$L298*($Q$297*($Q298*R298/100))*$L$296","v":0},{"$f":"$L298*($Q$297*($Q298*S298/100))*$L$296","v":0},0,0]
[null,null,null,"b) semestrale/trimestrale",null,null,null,null,null,null,null,{"$f":"+IF('QUEST PROFILATURA CLIENTI'!L299=\"\",0,1)","v":0},null,null,null,{"$f":"SUM(R299:U299)","v":10},1,0,5,5,0,null,0,0,0,0]
[null,null,null,"c) mensile",null,null,null,null,null,null,null,{"$f":"+IF('QUEST PROFILATURA CLIENTI'!L300=\"\",0,1)","v":0},null,null,null,{"$f":"SUM(R300:U300)","v":10},3,0,0,5,5,null,0,0,0,0]
[null,null,null,"d) settimanale/giornaliera",null,null,null,null,null,null,null,{"$f":"+IF('QUEST PROFILATURA CLIENTI'!L301=\"\",0,1)","v":0},null,null,null,{"$f":"SUM(R301:U301)","v":10},5,0,0,0,10,null,0,0,0,0]
[null,null,null,null,null,null,null,null,null,null,null,{"$f":"+IF('QUEST PROFILATURA CLIENTI'!L302=\"\",0,1)","v":0}]
[null,null,null,"Qual è il volume medio delle operazioni finanziarie da Lei effettuate?",null,null,null,null,null,null,null,{"$f":"+IF('QUEST PROFILATURA CLIENTI'!L303=\"\",0,1)","v":0},null,null,null,null,1,"frequenza operazioni effettuate",null,null,null,null,"frequenza operazioni effettuate"]
[null,null,null,"a) inferiore a 10.000 Euro",null,null,null,null,null,null,null,{"$f":"+IF('QUEST PROFILATURA CLIENTI'!L304=\"\",0,1)","v":0},null,null,null,{"$f":"SUM(R304:U304)","v":10},1,10,0,0,0,null,{"$f":"$L304*($Q$303*($Q304*R304/100))*$L$296","v":0},{"$f":"$L304*($Q$303*($Q304*S304/100))*$L$296","v":0},0,0]
[null,null,null,"b) tra 10.000 e 30.000 Euro",null,null,null,null,null,null,null,{"$f":"+IF('QUEST PROFILATURA CLIENTI'!L305=\"\",0,1)","v":0},null,null,null,{"$f":"SUM(R305:U305)","v":10},1,0,5,5,0,null,0,0,0,0]
[null,null,null,"c) tra 30.000 e 50.000 Euro",null,null,null,null,null,null,null,{"$f":"+IF('QUEST PROFILATURA CLIENTI'!L306=\"\",0,1)","v":0},null,null,null,{"$f":"SUM(R306:U306)","v":10},1,0,5,5,0,null,0,0,0,0]
[null,null,null,"d) superiore a 50.000 Euro",null,null,null,null,null,null,null,{"$f":"+IF('QUEST PROFILATURA CLIENTI'!L307=\"\",0,1)","v":0},null,null,null,{"$f":"SUM(R307:U307)","v":10},1,0,0,0,10,null,0,0,0,0]
[null,null,null,null,null,null,null,null,null,null,null,{"$f":"+IF('QUEST PROFILATURA CLIENTI'!L308=\"\",0,1)","v":0}]
[null,null,null,"In quale periodo ha realizzato le suddette operazioni?",null,null,null,null,null,null,null,{"$f":"+IF('QUEST PROFILATURA CLIENTI'!L309=\"\",0,1)","v":0},null,null,null,null,2,"frequenza operazioni effettuate",null,null,null,null,"frequenza operazioni effettuate"]
[null,null,null,"Più di 3 anni fa",null,null,null,null,null,null,null,{"$f":"+IF('QUEST PROFILATURA CLIENTI'!L310=\"\",0,1)","v":0},null,null,null,{"$f":"SUM(R310:U310)","v":10},1,10,0,0,0,null,{"$f":"$L310*($Q$309*($Q310*R310/100))*$L$296","v":0},{"$f":"$L310*($Q$309*($Q310*S310/100))*$L$296","v":0},0,0]
[null,null,null,"Negli ultimi tre anni",null,null,null,null,null,null,null,{"$f":"+IF('QUEST PROFILATURA CLIENTI'!L311=\"\",0,1)","v":0},null,null,null,{"$f":"SUM(R311:U311)","v":10},1,0,5,5,0,null,0,0,0,0]
[null,null,null,"Negli ultimi due anni",null,null,null,null,null,null,null,{"$f":"+IF('QUEST PROFILATURA CLIENTI'!L312=\"\",0,1)","v":0},null,null,null,{"$f":"SUM(R312:U312)","v":10},1,0,5,5,0,null,0,0,0,0]
[null,null,null,"Nell'ultimo anno",null,null,null,null,null,null,null,{"$f":"+IF('QUEST PROFILATURA CLIENTI'!L313=\"\",0,1)","v":0},null,null,null,{"$f":"SUM(R313:U313)","v":10},1,0,0,0,10,null,0,0,0,0]
[null,null,null,null,null,null,null,null,null,null,null,{"$f":"+IF('QUEST PROFILATURA CLIENTI'!L314=\"\",0,1)","v":0}]
[null,null,null,null,null,null,null,null,null,null,null,{"$f":"+IF('QUEST PROFILATURA CLIENTI'!L315=\"\",0,1)","v":0}]
[null,null,"i) strumenti derivati standardizzati, trading in marginazione",null,null,null,null,null,null,null,null,{"$f":"+IF('QUEST PROFILATURA CLIENTI'!L316=\"\",0,1)","v":0},null,null,8,200,2,0,0,50,150,null,{"$f":"$L316*($Q$174*($Q316*R316/100))","v":0},0,0,0]
[null,null,null,"Qual è la frequenza normale delle operazioni finanziarie da Lei effettuate?",null,null,null,null,null,null,null,{"$f":"+IF('QUEST PROFILATURA CLIENTI'!L317=\"\",0,1)","v":0},null,null,null,null,2,"frequenza operazioni effettuate",null,null,null,null,"frequenza operazioni effettuate"]
[null,null,null,"a) annuale o più ",null,null,null,null,null,null,null,{"$f":"+IF('QUEST PROFILATURA CLIENTI'!L318=\"\",0,1)","v":0},null,null,null,{"$f":"SUM(R318:U318)","v":10},1,10,0,0,0,null,{"$f":"$L318*($Q$317*($Q318*R318/100))*$L$316","v":0},{"$f":"$L318*($Q$317*($Q318*S318/100))*$L$316","v":0},0,0]
[null,null,null,"b) semestrale/trimestrale",null,null,null,null,null,null,null,{"$f":"+IF('QUEST PROFILATURA CLIENTI'!L319=\"\",0,1)","v":0},null,null,null,{"$f":"SUM(R319:U319)","v":10},1,0,5,5,0,null,0,0,0,0]
[null,null,null,"c) mensile",null,null,null,null,null,null,null,{"$f":"+IF('QUEST PROFILATURA CLIENTI'!L320=\"\",0,1)","v":0},null,null,null,{"$f":"SUM(R320:U320)","v":10},3,0,0,5,5,null,0,0,0,0]
[null,null,null,"d) settimanale/giornaliera",null,null,null,null,null,null,null,{"$f":"+IF('QUEST PROFILATURA CLIENTI'!L321=\"\",0,1)","v":0},null,null,null,{"$f":"SUM(R321:U321)","v":10},5,0,0,0,10,null,0,0,0,0]
[null,null,null,null,null,null,null,null,null,null,null,{"$f":"+IF('QUEST PROFILATURA CLIENTI'!L322=\"\",0,1)","v":0}]
[null,null,null,"Qual è il volume medio delle operazioni finanziarie da Lei effettuate?",null,null,null,null,null,null,null,{"$f":"+IF('QUEST PROFILATURA CLIENTI'!L323=\"\",0,1)","v":0},null,null,null,null,1,"frequenza operazioni effettuate",null,null,null,null,"frequenza operazioni effettuate"]
[null,null,null,"a) inferiore a 10.000 Euro",null,null,null,null,null,null,null,{"$f":"+IF('QUEST PROFILATURA CLIENTI'!L324=\"\",0,1)","v":0},null,null,null,{"$f":"SUM(R324:U324)","v":10},1,10,0,0,0,null,{"$f":"$L324*($Q$323*($Q324*R324/100))*$L$316","v":0},{"$f":"$L324*($Q$323*($Q324*S324/100))*$L$316","v":0},0,0]
[null,null,null,"b) tra 10.000 e 30.000 Euro",null,null,null,null,null,null,null,{"$f":"+IF('QUEST PROFILATURA CLIENTI'!L325=\"\",0,1)","v":0},null,null,null,{"$f":"SUM(R325:U325)","v":10},1,0,5,5,0,null,0,0,0,0]
[null,null,null,"c) tra 30.000 e 50.000 Euro",null,null,null,null,null,null,null,{"$f":"+IF('QUEST PROFILATURA CLIENTI'!L326=\"\",0,1)","v":0},null,null,null,{"$f":"SUM(R326:U326)","v":10},1,0,5,5,0,null,0,0,0,0]
[null,null,null,"d) superiore a 50.000 Euro",null,null,null,null,null,null,null,{"$f":"+IF('QUEST PROFILATURA CLIENTI'!L327=\"\",0,1)","v":0},null,null,null,{"$f":"SUM(R327:U327)","v":10},1,0,0,0,10,null,0,0,0,0]
[null,null,null,null,null,null,null,null,null,null,null,{"$f":"+IF('QUEST PROFILATURA CLIENTI'!L328=\"\",0,1)","v":0}]
[null,null,null,"In quale periodo ha realizzato le suddette operazioni?",null,null,null,null,null,null,null,{"$f":"+IF('QUEST PROFILATURA CLIENTI'!L329=\"\",0,1)","v":0},null,null,null,null,2,"frequenza operazioni effettuate",null,null,null,null,"frequenza operazioni effettuate"]
[null,null,null,"Più di 3 anni fa",null,null,null,null,null,null,null,{"$f":"+IF('QUEST PROFILATURA CLIENTI'!L330=\"\",0,1)","v":0},null,null,null,{"$f":"SUM(R330:U330)","v":10},1,10,0,0,0,null,{"$f":"$L330*($Q$329*($Q330*R330/100))*$L$316","v":0},{"$f":"$L330*($Q$329*($Q330*S330/100))*$L$316","v":0},0,0]
[null,null,null,"Negli ultimi tre anni",null,null,null,null,null,null,null,{"$f":"+IF('QUEST PROFILATURA CLIENTI'!L331=\"\",0,1)","v":0},null,null,null,{"$f":"SUM(R331:U331)","v":10},1,0,5,5,0,null,0,0,0,0]
[null,null,null,"Negli ultimi due anni",null,null,null,null,null,null,null,{"$f":"+IF('QUEST PROFILATURA CLIENTI'!L332=\"\",0,1)","v":0},null,null,null,{"$f":"SUM(R332:U332)","v":10},1,0,5,5,0,null,0,0,0,0]
[null,null,null,"Nell'ultimo anno",null,null,null,null,null,null,null,{"$f":"+IF('QUEST PROFILATURA CLIENTI'!L333=\"\",0,1)","v":0},null,null,null,{"$f":"SUM(R333:U333)","v":10},1,0,0,0,10,null,0,0,0,0]
[null,null,null,null,null,null,null,null,null,null,null,{"$f":"+IF('QUEST PROFILATURA CLIENTI'!L334=\"\",0,1)","v":0}]
[null,null,null,null,null,null,null,null,null,null,null,{"$f":"+IF('QUEST PROFILATURA CLIENTI'!L335=\"\",0,1)","v":0}]
[null,null,"l) fondi hedge",null,null,null,null,null,null,null,null,{"$f":"+IF('QUEST PROFILATURA CLIENTI'!L336=\"\",0,1)","v":0},null,null,9,200,2,0,0,30,170,null,{"$f":"$L336*($Q$174*($Q336*R336/100))","v":0},0,0,0]
[null,null,null,"Qual è la frequenza normale delle operazioni finanziarie da Lei effettuate?",null,null,null,null,null,null,null,{"$f":"+IF('QUEST PROFILATURA CLIENTI'!L337=\"\",0,1)","v":0},null,null,null,null,2,"frequenza operazioni effettuate",null,null,null,null,"frequenza operazioni effettuate"]
[null,null,null,"a) annuale o più ",null,null,null,null,null,null,null,{"$f":"+IF('QUEST PROFILATURA CLIENTI'!L338=\"\",0,1)","v":0},null,null,null,{"$f":"SUM(R338:U338)","v":10},1,10,0,0,0,null,{"$f":"$L338*($Q$337*($Q338*R338/100))*$L$336","v":0},{"$f":"$L338*($Q$337*($Q338*S338/100))*$L$336","v":0},0,0]
[null,null,null,"b) semestrale/trimestrale",null,null,null,null,null,null,null,{"$f":"+IF('QUEST PROFILATURA CLIENTI'!L339=\"\",0,1)","v":0},null,null,null,{"$f":"SUM(R339:U339)","v":10},1,0,5,5,0,null,0,0,0,0]
[null,null,null,"c) mensile",null,null,null,null,null,null,null,{"$f":"+IF('QUEST PROFILATURA CLIENTI'!L340=\"\",0,1)","v":0},null,null,null,{"$f":"SUM(R340:U340)","v":10},3,0,0,5,5,null,0,0,0,0]
[null,null,null,"d) settimanale/giornaliera",null,null,null,null,null,null,null,{"$f":"+IF('QUEST PROFILATURA CLIENTI'!L341=\"\",0,1)","v":0},null,null,null,{"$f":"SUM(R341:U341)","v":10},5,0,0,0,10,null,0,0,0,0]
[null,null,null,null,null,null,null,null,null,null,null,{"$f":"+IF('QUEST PROFILATURA CLIENTI'!L342=\"\",0,1)","v":0}]
[null,null,null,"Qual è il volume medio delle operazioni finanziarie da Lei effettuate?",null,null,null,null,null,null,null,{"$f":"+IF('QUEST PROFILATURA CLIENTI'!L343=\"\",0,1)","v":0},null,null,null,null,1,"frequenza operazioni effettuate",null,null,null,null,"frequenza operazioni effettuate"]
[null,null,null,"a) inferiore a 10.000 Euro",null,null,null,null,null,null,null,{"$f":"+IF('QUEST PROFILATURA CLIENTI'!L344=\"\",0,1)","v":0},null,null,null,{"$f":"SUM(R344:U344)","v":10},1,10,0,0,0,null,{"$f":"$L344*($Q$343*($Q344*R344/100))*$L$336","v":0},{"$f":"$L344*($Q$343*($Q344*S344/100))*$L$336","v":0},0,0]
[null,null,null,"b) tra 10.000 e 30.000 Euro",null,null,null,null,null,null,null,{"$f":"+IF('QUEST PROFILATURA CLIENTI'!L345=\"\",0,1)","v":0},null,null,null,{"$f":"SUM(R345:U345)","v":10},1,0,5,5,0,null,0,0,0,0]
[null,null,null,"c) tra 30.000 e 50.000 Euro",null,null,null,null,null,null,null,{"$f":"+IF('QUEST PROFILATURA CLIENTI'!L346=\"\",0,1)","v":0},null,null,null,{"$f":"SUM(R346:U346)","v":10},1,0,5,5,0,null,0,0,0,0]
[null,null,null,"d) superiore a 50.000 Euro",null,null,null,null,null,null,null,{"$f":"+IF('QUEST PROFILATURA CLIENTI'!L347=\"\",0,1)","v":0},null,null,null,{"$f":"SUM(R347:U347)","v":10},1,0,0,0,10,null,0,0,0,0]
[null,null,null,null,null,null,null,null,null,null,null,{"$f":"+IF('QUEST PROFILATURA CLIENTI'!L348=\"\",0,1)","v":0}]
[null,null,null,"In quale periodo ha realizzato le suddette operazioni?",null,null,null,null,null,null,null,{"$f":"+IF('QUEST PROFILATURA CLIENTI'!L349=\"\",0,1)","v":0},null,null,null,null,2,"frequenza operazioni effettuate",null,null,null,null,"frequenza operazioni effettuate"]
[null,null,null,"Più di 3 anni fa",null,null,null,null,null,null,null,{"$f":"+IF('QUEST PROFILATURA CLIENTI'!L350=\"\",0,1)","v":0},null,null,null,{"$f":"SUM(R350:U350)","v":10},1,10,0,0,0,null,{"$f":"$L350*($Q$349*($Q350*R350/100))*$L$336","v":0},{"$f":"$L350*($Q$349*($Q350*S350/100))*$L$336","v":0},0,0]
[null,null,null,"Negli ultimi tre anni",null,null,null,null,null,null,null,{"$f":"+IF('QUEST PROFILATURA CLIENTI'!L351=\"\",0,1)","v":0},null,null,null,{"$f":"SUM(R351:U351)","v":10},1,0,5,5,0,null,{"$f":"$L351*($Q$349*($Q351*R351/100))*$L$336","v":0},0,0,0]
[null,null,null,"Negli ultimi due anni",null,null,null,null,null,null,null,{"$f":"+IF('QUEST PROFILATURA CLIENTI'!L352=\"\",0,1)","v":0},null,null,null,{"$f":"SUM(R352:U352)","v":10},1,0,5,5,0,null,0,0,0,0]
[null,null,null,"Nell'ultimo anno",null,null,null,null,null,null,null,{"$f":"+IF('QUEST PROFILATURA CLIENTI'!L353=\"\",0,1)","v":0},null,null,null,{"$f":"SUM(R353:U353)","v":10},1,0,0,0,10,null,0,0,0,0]
[null,null,null,null,null,null,null,null,null,null,null,{"$f":"+IF('QUEST PROFILATURA CLIENTI'!L354=\"\",0,1)","v":0}]
[null,null,null,null,null,null,null,null,null,null,null,{"$f":"+IF('QUEST PROFILATURA CLIENTI'!L355=\"\",0,1)","v":0}]
[null,"A.6)","QUAL E' LA SUA PRINCIPALE FONTE DI INFORMAZIONE FINANZIARIA?",null,null,null,null,null,null,null,null,{"$f":"+IF('QUEST PROFILATURA CLIENTI'!L356=\"\",0,1)","v":0},null,null,null,null,0.7,"Fonte di informazione finanziaria",null,null,null,null,"Fonte di informazione finanziaria"]
[null,null,"a) amici e conoscenti",null,null,null,null,null,null,null,null,{"$f":"+IF('QUEST PROFILATURA CLIENTI'!L357=\"\",0,1)","v":0},null,null,null,{"$f":"SUM(R357:U357)","v":200},1,80,60,40,20,null,{"$f":"$L357*($Q$356*($Q357*R357/100))","v":0},{"$f":"$L357*($Q$356*($Q357*S357/100))","v":0},0,0]
[null,null,"b) stampa generica",null,null,null,null,null,null,null,null,{"$f":"+IF('QUEST PROFILATURA CLIENTI'!L358=\"\",0,1)","v":0},null,null,null,{"$f":"SUM(R358:U358)","v":200},1,60,60,40,40,null,0,0,0,0]
[null,null,"c) banche, consulenti abilitati all’offerta fuori sede, agenti assicurativi",null,null,null,null,null,null,null,null,{"$f":"+IF('QUEST PROFILATURA CLIENTI'!L359=\"\",0,1)","v":0},null,null,null,{"$f":"SUM(R359:U359)","v":200},1,55,60,40,45,null,0,0,0,0]
[null,null,"d) consulenti indipendenti",null,null,null,null,null,null,null,null,{"$f":"+IF('QUEST PROFILATURA CLIENTI'!L360=\"\",0,1)","v":0},null,null,null,{"$f":"SUM(R360:U360)","v":200},1.1000000000000001,30,45,50,75,null,0,0,0,0]
[null,null,"e) internet e Stampa specializzata",null,null,null,null,null,null,null,null,{"$f":"+IF('QUEST PROFILATURA CLIENTI'!L361=\"\",0,1)","v":0},null,null,null,{"$f":"SUM(R361:U361)","v":200},1.3,0,40,70,90,null,0,0,0,0]
[null,null,null,null,null,null,null,null,null,null,null,{"$f":"+IF('QUEST PROFILATURA CLIENTI'!L362=\"\",0,1)","v":0}]
[null,null,null,null,null,null,null,null,null,null,null,{"$f":"+IF('QUEST PROFILATURA CLIENTI'!L363=\"\",0,1)","v":0}]
[null,"B)","SITUAZIONE e PROSPETTIVE",null,null,null,null,null,null,null,null,{"$f":"+IF('QUEST PROFILATURA CLIENTI'!L364=\"\",0,1)","v":0},null,null,null,null,null,"SITUAZIONE FINANZIARIA",null,null,null,null,"SITUAZIONE FINANZIARIA"]
[null,null,null,null,null,null,null,null,null,null,null,{"$f":"+IF('QUEST PROFILATURA CLIENTI'!L365=\"\",0,1)","v":0}]
[null,"B.1)","A QUANTO AMMONTA IL PATRIMONIO COMPLESSIVO, INCLUSI GLI IMMOBILI, IL VALORE DI REALIZZO DELLE ATTIVITA’ ECONOMICHE E IL PATRIMONIO FINANZIARIO?",null,null,null,null,null,null,null,null,{"$f":"+IF('QUEST PROFILATURA CLIENTI'!L366=\"\",0,1)","v":0},null,null,null,null,0.75,"Patrimonio",null,null,null,null,"Patrimonio"]
[null,null,"a) dispongo di un patrimonio complessivo fino a 300.000 euro",null,null,null,null,null,null,null,null,{"$f":"+IF('QUEST PROFILATURA CLIENTI'!L367=\"\",0,1)","v":0},1,null,null,{"$f":"SUM(R367:U367)","v":200},1,50,50,50,50,null,{"$f":"$L367*($Q$366*($Q367*R367/100))","v":0},{"$f":"$L367*($Q$366*($Q367*S367/100))","v":0},0,0]
[null,null,"b) dispongo di un patrimonio complessivo compreso tra 300.000 e 1.000.000 di euro",null,null,null,null,null,null,null,null,{"$f":"+IF('QUEST PROFILATURA CLIENTI'!L368=\"\",0,1)","v":0},2,null,null,{"$f":"SUM(R368:U368)","v":200},1,40,45,50,65,null,0,0,0,0]
[null,null,"c) dispongo di un patrimonio complessivo superiore a 1.000.000 di euro",null,null,null,null,null,null,null,null,{"$f":"+IF('QUEST PROFILATURA CLIENTI'!L369=\"\",0,1)","v":0},3,null,null,{"$f":"SUM(R369:U369)","v":200},1,10,45,65,80,null,{"$f":"$L369*($Q$366*($Q369*R369/100))","v":0},0,0,0]
[null,null,null,null,null,null,null,null,null,null,null,{"$f":"+IF('QUEST PROFILATURA CLIENTI'!L370=\"\",0,1)","v":0}]
[null,"B.2)","QUAL’E’ LA FONTE DEL PATRIMONIO COMPLESSIVO? ",null,null,null,null,null,null,null,null,{"$f":"+IF('QUEST PROFILATURA CLIENTI'!L371=\"\",0,1)","v":0},null,null,null,null,0.5,"fonte del patrimonio",null,null,null,null,{"$f":"R371","v":"fonte del patrimonio"}]
[null,null,"a) prevalentemente ereditaria o da donazioni",null,null,null,null,null,null,null,null,{"$f":"+IF('QUEST PROFILATURA CLIENTI'!L372=\"\",0,1)","v":0},1,null,null,{"$f":"SUM(R372:U372)","v":200},1,50,50,50,50,null,{"$f":"$L372*($Q$371*($Q372*R372/100))","v":0},{"$f":"$L372*($Q$371*($Q372*S372/100))","v":0},0,0]
[null,null,"b) in parte ereditaria o da donazioni, in parte frutto della propria attività",null,null,null,null,null,null,null,null,{"$f":"+IF('QUEST PROFILATURA CLIENTI'!L373=\"\",0,1)","v":0},2,null,null,{"$f":"SUM(R373:U373)","v":200},1,50,50,50,50,null,0,0,0,0]
[null,null,"c) prevalentemente frutto della propria attività",null,null,null,null,null,null,null,null,{"$f":"+IF('QUEST PROFILATURA CLIENTI'!L374=\"\",0,1)","v":0},3,null,null,{"$f":"SUM(R374:U374)","v":200},1,50,50,50,50,null,0,0,0,0]
[null,null,"d) _______________________________________________________________________",null,null,null,null,null,null,null,null,{"$f":"+IF('QUEST PROFILATURA CLIENTI'!L375=\"\",0,1)","v":0},4,null,null,{"$f":"SUM(R375:U375)","v":200},1,50,50,50,50,null,0,0,0,0]
[null,null,null,null,null,null,null,null,null,null,null,{"$f":"+IF('QUEST PROFILATURA CLIENTI'!L376=\"\",0,1)","v":0}]
[null,"B.3)","QUANTO RAPPRESENTA, IN TERMINI PERCENTUALI, IL PESO DEL PATRIMONIO FINANZIARIO RISPETTO AL PATRIMONIO COMPLESSIVO? ",null,null,null,null,null,null,null,null,{"$f":"+IF('QUEST PROFILATURA CLIENTI'!L377=\"\",0,1)","v":0},null,null,null,null,0.5,"Peso investimenti detenuti.",null,null,null,null,"Peso investimenti detenuti."]
[null,null,"a) più del 80%",null,null,null,null,null,null,null,null,{"$f":"+IF('QUEST PROFILATURA CLIENTI'!L378=\"\",0,1)","v":0},1,null,null,{"$f":"SUM(R378:U378)","v":200},1,50,50,50,50,null,{"$f":"$L378*($Q$377*($Q378*R378/100))","v":0},{"$f":"$L378*($Q$377*($Q378*S378/100))","v":0},0,0]
[null,null,"b) dal 50% al 80%",null,null,null,null,null,null,null,null,{"$f":"+IF('QUEST PROFILATURA CLIENTI'!L379=\"\",0,1)","v":0},2,null,null,{"$f":"SUM(R379:U379)","v":200},1,50,50,50,50,null,{"$f":"$L379*($Q$377*($Q379*R379/100))","v":0},0,0,0]
[null,null,"c) dal 20% al 50%",null,null,null,null,null,null,null,null,{"$f":"+IF('QUEST PROFILATURA CLIENTI'!L380=\"\",0,1)","v":0},3,null,null,{"$f":"SUM(R380:U380)","v":200},1,50,50,50,50,null,0,0,0,0]
[null,null,"d) meno del 20%",null,null,null,null,null,null,null,null,{"$f":"+IF('QUEST PROFILATURA CLIENTI'!L381=\"\",0,1)","v":0},4,null,null,{"$f":"SUM(R381:U381)","v":200},1,50,50,50,50,null,0,0,0,0]
[null,null,null,null,null,null,null,null,null,null,null,{"$f":"+IF('QUEST PROFILATURA CLIENTI'!L382=\"\",0,1)","v":0}]
[null,"B.4)","SI ATTENDONO SIGNIFICATIVE ENTRATE FUTURE PER VIA EREDITARIA?",null,null,null,null,null,null,null,null,{"$f":"+IF('QUEST PROFILATURA CLIENTI'!L383=\"\",0,1)","v":0},null,null,null,null,1.5,"future entrate ereditarie",null,null,null,null,{"$f":"R383","v":"future entrate ereditarie"}]
[null,null,"a) no, le aspettative ereditarie sono nulle o non importanti",null,null,null,null,null,null,null,null,{"$f":"+IF('QUEST PROFILATURA CLIENTI'!L384=\"\",0,1)","v":0},1,null,null,{"$f":"SUM(R384:U384)","v":200},1,50,50,50,50,null,{"$f":"$L384*($Q$383*($Q384*R384/100))","v":0},{"$f":"$L384*($Q$383*($Q384*S384/100))","v":0},0,0]
[null,null,"b) si, le aspettative ereditarie sono importanti ma lontane",null,null,null,null,null,null,null,null,{"$f":"+IF('QUEST PROFILATURA CLIENTI'!L385=\"\",0,1)","v":0},2,null,null,{"$f":"SUM(R385:U385)","v":200},1,35,45,55,65,null,0,0,0,0]
[null,null,"c) si, le aspettative sono importanti e probabilmente vicine",null,null,null,null,null,null,null,null,{"$f":"+IF('QUEST PROFILATURA CLIENTI'!L386=\"\",0,1)","v":0},3,null,null,{"$f":"SUM(R386:U386)","v":200},1,10,20,60,110,null,0,0,0,0]
[null,null,null,null,null,null,null,null,null,null,null,{"$f":"+IF('QUEST PROFILATURA CLIENTI'!L387=\"\",0,1)","v":0}]
[null,"B.5)","L’ATTUALE TENORE DI VITA DIPENDE DALL’UTILIZZO DI FLUSSI GENERATI DAGLI INVESTIMENTI FINANZIARI?",null,null,null,null,null,null,null,null,{"$f":"+IF('QUEST PROFILATURA CLIENTI'!L388=\"\",0,1)","v":0},null,null,null,null,2.2999999999999998,"Dipendenza tenore di vita da flussi",null,null,null,null,"Dipendenza tenore di vita da flussi"]
[null,null,"a) sì, utilizzo tutti i redditi derivanti dai miei investimenti per mantenere il mio tenore di vita",null,null,null,null,null,null,null,null,{"$f":"+IF('QUEST PROFILATURA CLIENTI'!L389=\"\",0,1)","v":0},1,null,null,{"$f":"SUM(R389:U389)","v":200},1,90,80,30,0,null,{"$f":"$L389*($Q$388*($Q389*R389/100))","v":0},{"$f":"$L389*($Q$388*($Q389*S389/100))","v":0},0,0]
[null,null,"b) si, utilizzo circa il 50% dei redditi derivanti dai miei investimenti per mantenere inalterato il mio di vita",null,null,null,null,null,null,null,null,{"$f":"+IF('QUEST PROFILATURA CLIENTI'!L390=\"\",0,1)","v":0},2,null,null,{"$f":"SUM(R390:U390)","v":200},1,60,75,55,10,null,0,0,0,0]
[null,null,"c) no, non utilizzo questi redditi per mantenere costante il mio tenore di vita",null,null,null,null,null,null,null,null,{"$f":"+IF('QUEST PROFILATURA CLIENTI'!L391=\"\",0,1)","v":0},3,null,null,{"$f":"SUM(R391:U391)","v":200},1,9,37,64,90,null,0,0,0,0]
[null,null,null,null,null,null,null,null,null,null,null,{"$f":"+IF('QUEST PROFILATURA CLIENTI'!L392=\"\",0,1)","v":0},4]
[null,"B.6)","QUAL’E’ IL REDDITO NETTO SU BASE ANNUA, INCLUSE LE RENDITE IMMOBILIARI, ASSICURATIVE O SIMILARI (ESCLUSI I RENDIMENTI FINANZIARI)? ",null,null,null,null,null,null,null,null,{"$f":"+IF('QUEST PROFILATURA CLIENTI'!L393=\"\",0,1)","v":0},null,null,null,null,0.6,"Reddito e quanto risparmia",null,null,null,null,"Reddito e quanto risparmia"]
[null,null,"a) fino a 20.000 Euro",null,null,null,null,null,null,null,null,{"$f":"+IF('QUEST PROFILATURA CLIENTI'!L394=\"\",0,1)","v":0},1,null,null,{"$f":"SUM(R394:U394)","v":200},1,90,80,20,10,null,{"$f":"$L394*($Q$393*($Q394*R394/100))","v":0},{"$f":"$L394*($Q$393*($Q394*S394/100))","v":0},0,0]
[null,null,"b) da 20.000 a 50.000 Euro",null,null,null,null,null,null,null,null,{"$f":"+IF('QUEST PROFILATURA CLIENTI'!L395=\"\",0,1)","v":0},2,null,null,{"$f":"SUM(R395:U395)","v":200},1,45,55,55,45,null,0,0,0,0]
[null,null,"c) da 50.000 a 100.000 Euro",null,null,null,null,null,null,null,null,{"$f":"+IF('QUEST PROFILATURA CLIENTI'!L396=\"\",0,1)","v":0},3,null,null,{"$f":"SUM(R396:U396)","v":200},1,10,40,60,90,null,0,0,0,0]
[null,null,"d) oltre 100.000",null,null,null,null,null,null,null,null,{"$f":"+IF('QUEST PROFILATURA CLIENTI'!L397=\"\",0,1)","v":0},4,null,null,{"$f":"SUM(R397:U397)","v":200},1,0,10,90,100,null,0,0,0,0]
[null,null,null,null,null,null,null,null,null,null,null,{"$f":"+IF('QUEST PROFILATURA CLIENTI'!L398=\"\",0,1)","v":0}]
[null,"B.7)","NEI PROSSIMI ANNI COSA PENSA POSSA ACCADERE AL SUO REDDITO?",null,null,null,null,null,null,null,null,{"$f":"+IF('QUEST PROFILATURA CLIENTI'!L399=\"\",0,1)","v":0},null,null,null,null,2.4,"prospettive reddito",null,null,null,null,{"$f":"R399","v":"prospettive reddito"}]
[null,null,"a) diminuirà sensibilmente",null,null,null,null,null,null,null,null,{"$f":"+IF('QUEST PROFILATURA CLIENTI'!L400=\"\",0,1)","v":0},1,null,null,{"$f":"SUM(R400:U400)","v":200},1,100,80,20,0,null,{"$f":"$L400*($Q$399*($Q400*R400/100))","v":0},{"$f":"$L400*($Q$399*($Q400*S400/100))","v":0},0,0]
[null,null,"b) diminuirà leggermente",null,null,null,null,null,null,null,null,{"$f":"+IF('QUEST PROFILATURA CLIENTI'!L401=\"\",0,1)","v":0},2,null,null,{"$f":"SUM(R401:U401)","v":200},1,55,65,50,30,null,0,0,0,0]
[null,null,"c) rimarrà invariato",null,null,null,null,null,null,null,null,{"$f":"+IF('QUEST PROFILATURA CLIENTI'!L402=\"\",0,1)","v":0},3,null,null,{"$f":"SUM(R402:U402)","v":200},1,50,50,50,50,null,0,0,0,0]
[null,null,"d) aumenterà leggermente",null,null,null,null,null,null,null,null,{"$f":"+IF('QUEST PROFILATURA CLIENTI'!L403=\"\",0,1)","v":0},4,null,null,{"$f":"SUM(R403:U403)","v":200},1,20,40,65,75,null,0,0,0,0]
[null,null,"e) aumenterà notevolmente",null,null,null,null,null,null,null,null,{"$f":"+IF('QUEST PROFILATURA CLIENTI'!L404=\"\",0,1)","v":0},5,null,null,{"$f":"SUM(R404:U404)","v":200},1,0,20,80,100,null,0,0,0,0]
[null,null,null,null,null,null,null,null,null,null,null,{"$f":"+IF('QUEST PROFILATURA CLIENTI'!L405=\"\",0,1)","v":0}]
[null,"B.8)","A QUANTO AMMONTA IL RISPARMIO SU BASE ANNUA? ",null,null,null,null,null,null,null,null,{"$f":"+IF('QUEST PROFILATURA CLIENTI'!L406=\"\",0,1)","v":0},null,null,null,null,1,"Reddito e quanto risparmia",null,null,null,null,"Reddito e quanto risparmia"]
[null,null,"a) fino a 10.000 Euro",null,null,null,null,null,null,null,null,{"$f":"+IF('QUEST PROFILATURA CLIENTI'!L407=\"\",0,1)","v":0},1,null,null,{"$f":"SUM(R407:U407)","v":200},1,75,60,40,25,null,{"$f":"$L407*($Q$406*($Q407*R407/100))","v":0},{"$f":"$L407*($Q$406*($Q407*S407/100))","v":0},0,0]
[null,null,"b) da 10.000 a 30.000 Euro",null,null,null,null,null,null,null,null,{"$f":"+IF('QUEST PROFILATURA CLIENTI'!L408=\"\",0,1)","v":0},2,null,null,{"$f":"SUM(R408:U408)","v":200},1,40,45,50,65,null,0,0,0,0]
[null,null,"c) da 30.000 a 60.000 Euro",null,null,null,null,null,null,null,null,{"$f":"+IF('QUEST PROFILATURA CLIENTI'!L409=\"\",0,1)","v":0},3,null,null,{"$f":"SUM(R409:U409)","v":200},1,20,30,70,80,null,0,0,0,0]
[null,null,"d) oltre 60.000",null,null,null,null,null,null,null,null,{"$f":"+IF('QUEST PROFILATURA CLIENTI'!L410=\"\",0,1)","v":0},4,null,null,{"$f":"SUM(R410:U410)","v":200},1,20,20,80,80,null,0,0,0,0]
[null,null,null,null,null,null,null,null,null,null,null,{"$f":"+IF('QUEST PROFILATURA CLIENTI'!L411=\"\",0,1)","v":0}]
[null,"B.9)","A QUANTO AMMONTANO I SUEI IMPEGNI FINANZIARI FUTURI?",null,null,null,null,null,null,null,null,{"$f":"+IF('QUEST PROFILATURA CLIENTI'!L412=\"\",0,1)","v":0},null,null,null,null,1.7,"Impegni finanziari e spesa annua",null,null,null,null,"Impegni finanziari e spesa annua"]
[null,null,"a) oltre il triplo del mio reddito annuo",null,null,null,null,null,null,null,null,{"$f":"+IF('QUEST PROFILATURA CLIENTI'!L413=\"\",0,1)","v":0},1,null,null,{"$f":"SUM(R413:U413)","v":200},1.2,85,60,40,15,null,{"$f":"$L413*($Q$412*($Q413*R413/100))","v":0},{"$f":"$L413*($Q$412*($Q413*S413/100))","v":0},0,0]
[null,null,"b) circa il doppio del mio reddito annuo",null,null,null,null,null,null,null,null,{"$f":"+IF('QUEST PROFILATURA CLIENTI'!L414=\"\",0,1)","v":0},2,null,null,{"$f":"SUM(R414:U414)","v":200},1.2,70,57,43,30,null,0,0,0,0]
[null,null,"c) circa il valore del mio reddito annuo",null,null,null,null,null,null,null,null,{"$f":"+IF('QUEST PROFILATURA CLIENTI'!L415=\"\",0,1)","v":0},3,null,null,{"$f":"SUM(R415:U415)","v":200},1.2,55,54,48,43,null,0,0,0,0]
[null,null,"d) non ho impegni finanziari",null,null,null,null,null,null,null,null,{"$f":"+IF('QUEST PROFILATURA CLIENTI'!L416=\"\",0,1)","v":0},4,null,null,{"$f":"SUM(R416:U416)","v":200},0,50,50,50,50,null,0,0,0,0]
[null,null,null,null,null,null,null,null,null,null,null,{"$f":"+IF('QUEST PROFILATURA CLIENTI'!L417=\"\",0,1)","v":0}]
[null,"B.10)","NEL CORSO DEI PROSSIMI ANNI, COSA PENSA CHE POTRA’ ACCADERE ALLA SUA QUOTA DI RISPARMIO ANNUO?",null,null,null,null,null,null,null,null,{"$f":"+IF('QUEST PROFILATURA CLIENTI'!L418=\"\",0,1)","v":0},null,null,null,null,1.4,"prospettive risparmio",null,null,null,null,{"$f":"R418","v":"prospettive risparmio"}]
[null,null,"a) diminuirà sensibilmente",null,null,null,null,null,null,null,null,{"$f":"+IF('QUEST PROFILATURA CLIENTI'!L419=\"\",0,1)","v":0},1,null,null,{"$f":"SUM(R419:U419)","v":200},1,85,65,40,10,null,{"$f":"$L419*($Q$418*($Q419*R419/100))","v":0},{"$f":"$L419*($Q$418*($Q419*S419/100))","v":0},0,0]
[null,null,"b) diminuirà leggermente",null,null,null,null,null,null,null,null,{"$f":"+IF('QUEST PROFILATURA CLIENTI'!L420=\"\",0,1)","v":0},2,null,null,{"$f":"SUM(R420:U420)","v":200},1,60,55,55,30,null,{"$f":"$L420*($Q$418*($Q420*R420/100))","v":0},0,0,0]
[null,null,"c) rimarrà invariato",null,null,null,null,null,null,null,null,{"$f":"+IF('QUEST PROFILATURA CLIENTI'!L421=\"\",0,1)","v":0},3,null,null,{"$f":"SUM(R421:U421)","v":200},1,50,50,50,50,null,0,0,0,0]
[null,null,"d) aumenterà leggermente",null,null,null,null,null,null,null,null,{"$f":"+IF('QUEST PROFILATURA CLIENTI'!L422=\"\",0,1)","v":0},4,null,null,{"$f":"SUM(R422:U422)","v":200},1,30,50,50,70,null,0,0,0,0]
[null,null,"e) aumenterà notevolmente",null,null,null,null,null,null,null,null,{"$f":"+IF('QUEST PROFILATURA CLIENTI'!L423=\"\",0,1)","v":0},5,null,null,{"$f":"SUM(R423:U423)","v":200},1,10,40,60,90,null,0,0,0,0]
[null,null,null,null,null,null,null,null,null,null,null,{"$f":"+IF('QUEST PROFILATURA CLIENTI'!L424=\"\",0,1)","v":0}]
[null,null,null,null,null,null,null,null,null,null,null,{"$f":"+IF('QUEST PROFILATURA CLIENTI'!L425=\"\",0,1)","v":0}]
[null,"C)","OBIETTIVI",null,null,null,null,null,null,null,null,{"$f":"+IF('QUEST PROFILATURA CLIENTI'!L426=\"\",0,1)","v":0},null,null,null,null,null,"ASEPTTATIVE, OBIETTIVI, RISCHIO",null,null,null,null,{"$f":"R426","v":"ASEPTTATIVE, OBIETTIVI, RISCHIO"}]
[null,null,null,null,null,null,null,null,null,null,null,{"$f":"+IF('QUEST PROFILATURA CLIENTI'!L427=\"\",0,1)","v":0}]
[null,"C.1) ","QUALI SONO LE SUE ASPETTATIVE DI RENDIMENTO PER IL SUO PORTAFOGLIO FINANZIARIO? ",null,null,null,null,null,null,null,null,{"$f":"+IF('QUEST PROFILATURA CLIENTI'!L428=\"\",0,1)","v":0},null,null,null,null,4,"aspettative di rendimento",null,null,null,null,{"$f":"R428","v":"aspettative di rendimento"}]
[null,null,"a) preservare il capitale cercando di recuperare l’inflazione",null,null,null,null,null,null,null,null,{"$f":"+IF('QUEST PROFILATURA CLIENTI'!L429=\"\",0,1)","v":0},1,null,null,{"$f":"SUM(R429:U429)","v":200},1,100,70,30,0,null,{"$f":"$L429*($Q$428*($Q429*R429/100))","v":0},{"$f":"$L429*($Q$428*($Q429*S429/100))","v":0},0,0]
[null,null,"b) il rendimento deve tenere almeno il passo con l’inflazione, con una volatilità medio/bassa",null,null,null,null,null,null,null,null,{"$f":"+IF('QUEST PROFILATURA CLIENTI'!L430=\"\",0,1)","v":0},2,null,null,{"$f":"SUM(R430:U430)","v":200},1,55,70,45,30,null,0,0,0,0]
[null,null,"c) il rendimento deve essere superiore all’inflazione, accettando una discreta volatilità",null,null,null,null,null,null,null,null,{"$f":"+IF('QUEST PROFILATURA CLIENTI'!L431=\"\",0,1)","v":0},3,null,null,{"$f":"SUM(R431:U431)","v":200},1,10,40,90,60,null,0,0,0,0]
[null,null,"d) il rendimento deve essere superiore in modo significativo all’inflazione, anche se questo comporta una volatilità elevata",null,null,null,null,null,null,null,null,{"$f":"+IF('QUEST PROFILATURA CLIENTI'!L432=\"\",0,1)","v":0},4,null,null,{"$f":"SUM(R432:U432)","v":200},1,0,0,90,110,null,0,0,0,0]
[null,null,null,null,null,null,null,null,null,null,null,{"$f":"+IF('QUEST PROFILATURA CLIENTI'!L433=\"\",0,1)","v":0}]
[null,"C.2) ","HA IN PROGRAMMA DI DOVER UTILIZZARE NEI PROSSIMI ANNI UNA PARTE DEL SUO PATRIMONIO PER OBIETTIVI ",null,null,null,null,null,null,null,null,{"$f":"+IF('QUEST PROFILATURA CLIENTI'!L434=\"\",0,1)","v":0},null,null,null,null,0.5,"eventuale utilizzo di parte del patrimonio",null,null,null,null,{"$f":"R434","v":"eventuale utilizzo di parte del patrimonio"}]
[null,null,"a) integrazione pensionistica",null,null,null,null,null,null,null,null,{"$f":"+IF('QUEST PROFILATURA CLIENTI'!L435=\"\",0,1)","v":0},null,null,{"$f":"+L435","v":0},{"$f":"SUM(R435:U435)","v":200},1,50,50,50,50,null,{"$f":"$L435*($Q$434*($Q435*R435/100))","v":0},{"$f":"$L435*($Q$434*($Q435*S435/100))","v":0},0,0]
[null,null,"b) acquisto / ristrutturazione di immobili",null,null,null,null,null,null,null,null,{"$f":"+IF('QUEST PROFILATURA CLIENTI'!L436=\"\",0,1)","v":0},null,null,{"$f":"+IF(L436=0,0,MAX(O$435:O435)+L436)","v":0},200,1,50,50,50,50,null,0,0,0,0]
[null,null,"c) esigenze economiche per i figli o altri familiari",null,null,null,null,null,null,null,null,{"$f":"+IF('QUEST PROFILATURA CLIENTI'!L437=\"\",0,1)","v":0},null,null,{"$f":"+IF(L437=0,0,MAX(O$435:O436)+L437)","v":0},200,1,50,50,50,50,null,0,0,0,0]
[null,null,"d) esigenze di salute",null,null,null,null,null,null,null,null,{"$f":"+IF('QUEST PROFILATURA CLIENTI'!L438=\"\",0,1)","v":0},null,null,{"$f":"+IF(L438=0,0,MAX(O$435:O437)+L438)","v":0},200,1,50,50,50,50,null,0,0,0,0]
[null,null,"e) esigenze imprenditoriali",null,null,null,null,null,null,null,null,{"$f":"+IF('QUEST PROFILATURA CLIENTI'!L439=\"\",0,1)","v":0},null,null,{"$f":"+IF(L439=0,0,MAX(O$435:O438)+L439)","v":0},200,1,50,50,50,50,null,0,0,0,0]
[null,null,"f) acquisto beni mobili",null,null,null,null,null,null,null,null,{"$f":"+IF('QUEST PROFILATURA CLIENTI'!L440=\"\",0,1)","v":0},null,null,{"$f":"+IF(L440=0,0,MAX(O$435:O439)+L440)","v":0},200,1,50,50,50,50,null,0,0,0,0]
[null,null,"g) viaggi",null,null,null,null,null,null,null,null,{"$f":"+IF('QUEST PROFILATURA CLIENTI'!L441=\"\",0,1)","v":0},null,null,{"$f":"+IF(L441=0,0,MAX(O$435:O440)+L441)","v":0},200,1,50,50,50,50,null,0,0,0,0]
[null,null,"h) altro ___________________________________________________________",null,null,null,null,null,null,null,null,{"$f":"+IF('QUEST PROFILATURA CLIENTI'!L442=\"\",0,1)","v":0},null,null,{"$f":"+IF(L442=0,0,MAX(O$435:O441)+L442)","v":0},200,1,50,50,50,50,null,0,0,0,0]
[null,null,null,null,null,null,null,null,null,null,null,{"$f":"+IF('QUEST PROFILATURA CLIENTI'!L443=\"\",0,1)","v":0}]
[null,null,null,null,null,null,null,null,null,null,null,{"$f":"+IF('QUEST PROFILATURA CLIENTI'!L444=\"\",0,1)","v":0}]
[null,"D)","TOLLERANZA",null,null,null,null,null,null,null,null,{"$f":"+IF('QUEST PROFILATURA CLIENTI'!L445=\"\",0,1)","v":0},null,null,null,null,null,"ASEPTTATIVE, OBIETTIVI, RISCHIO",null,null,null,null,{"$f":"R445","v":"ASEPTTATIVE, OBIETTIVI, RISCHIO"}]
[null,"D.1) ","FATTO IPOTETICAMENTE 100.000 EURO IL PATRIMONIO FINANZIARIO E TENENDO CONTO DELLE INEVITABILI OSCILLAZIONI NEGATIVE, QUANT’E’ LA PERDITA MASSIMA CHE E’ DISPOSTO AD ACCETTARE NELL’ARCO DI 12 MESI (V.A.R. SU 252 GG. LAVORATIVI CON CONFIDENZA AL 99%) ",null,null,null,null,null,null,null,null,{"$f":"+IF('QUEST PROFILATURA CLIENTI'!L446=\"\",0,1)","v":0},null,null,null,null,5,"Qual'è la perdita massima?",null,null,null,null,{"$f":"R446","v":"Qual'è la perdita massima?"}]
[null,null,"a) inferiore al 2%, ovvero portafoglio finale di 98.000 euro",null,null,null,null,null,null,null,null,{"$f":"+IF('QUEST PROFILATURA CLIENTI'!L447=\"\",0,1)","v":0},1,null,null,{"$f":"SUM(R447:U447)","v":200},1.4,110,90,0,0,null,{"$f":"$L447*($Q$446*($Q447*R447/100))","v":0},{"$f":"$L447*($Q$446*($Q447*S447/100))","v":0},0,0]
[null,null,"b) dal 2% al 7%, ovvero portafoglio finale da 93.000 a 98.000 euro",null,null,null,null,null,null,null,null,{"$f":"+IF('QUEST PROFILATURA CLIENTI'!L448=\"\",0,1)","v":0},2,null,null,{"$f":"SUM(R448:U448)","v":200},1,45,80,60,15,null,0,0,0,0]
[null,null,"c) dal 7% al 12%, ovvero portafoglio finale da 88.000 a 93.000 euro",null,null,null,null,null,null,null,null,{"$f":"+IF('QUEST PROFILATURA CLIENTI'!L449=\"\",0,1)","v":0},3,null,null,{"$f":"SUM(R449:U449)","v":200},1,0,40,85,75,null,0,0,0,0]
[null,null,"d) superiore al 12%, ovvero portafoglio finale anche inferiore a 88.000 euro",null,null,null,null,null,null,null,null,{"$f":"+IF('QUEST PROFILATURA CLIENTI'!L450=\"\",0,1)","v":0},4,null,null,{"$f":"SUM(R450:U450)","v":200},1,0,0,70,130,null,0,0,0,0]
[null,null,null,null,null,null,null,null,null,null,null,{"$f":"+IF('QUEST PROFILATURA CLIENTI'!L451=\"\",0,1)","v":0}]
[null,"D.2) ","NEL CASO SI FOSSE CONCRETIZZATA, NELL’ARCO DI POCO TEMPO, LA PERDITA MASSIMA DA LEI INDICATA NELLE DOMANDE SOPRA INDICATE, COSA FAREBBE? ",null,null,null,null,null,null,null,null,{"$f":"+IF('QUEST PROFILATURA CLIENTI'!L452=\"\",0,1)","v":0},null,null,null,null,2.8,"reazione finanziaria di fronte alla perdita",null,null,null,null,{"$f":"R452","v":"reazione finanziaria di fronte alla perdita"}]
[null,null,"a) disinvesto il capitale",null,null,null,null,null,null,null,null,{"$f":"+IF('QUEST PROFILATURA CLIENTI'!L453=\"\",0,1)","v":0},1,null,null,{"$f":"SUM(R453:U453)","v":200},1,135,65,0,0,null,{"$f":"$L453*($Q$452*($Q453*R453/100))","v":0},{"$f":"$L453*($Q$452*($Q453*S453/100))","v":0},0,0]
[null,null,"b) sposto immediatamente il capitale su investimenti più conservativi per non avere altre perdite",null,null,null,null,null,null,null,null,{"$f":"+IF('QUEST PROFILATURA CLIENTI'!L454=\"\",0,1)","v":0},2,null,null,{"$f":"SUM(R454:U454)","v":200},1,110,65,25,0,null,0,0,0,0]
[null,null,"c) seguo la situazione, se continua a peggiorare sposto parte del capitale su investimenti più conservativi",null,null,null,null,null,null,null,null,{"$f":"+IF('QUEST PROFILATURA CLIENTI'!L455=\"\",0,1)","v":0},3,null,null,{"$f":"SUM(R455:U455)","v":200},1,60,90,40,10,null,0,0,0,0]
[null,null,"d) mi faccio consigliare dal consulente finanziario per verificare se la mia asset allocation è corretta e accetto la volatilità dei mercati",null,null,null,null,null,null,null,null,{"$f":"+IF('QUEST PROFILATURA CLIENTI'!L456=\"\",0,1)","v":0},4,null,null,{"$f":"SUM(R456:U456)","v":200},1,0,20,80,100,null,0,0,0,0]
[null,null,"e) prendo in considerazione di aumentare l’investimento, perché forse si tratta di un’opportunità di acquisto a basso prezzo",null,null,null,null,null,null,null,null,{"$f":"+IF('QUEST PROFILATURA CLIENTI'!L457=\"\",0,1)","v":0},5,null,null,{"$f":"SUM(R457:U457)","v":200},1,0,0,60,140,null,0,0,0,0]
[null,null,null,null,null,null,null,null,null,null,null,{"$f":"+IF('QUEST PROFILATURA CLIENTI'!L458=\"\",0,1)","v":0}]
[null,"D.3)","NEL CASO SI FOSSE CONCRETIZZATA, NELL’ARCO DI POCO TEMPO, LA PERDITA MASSIMA DA LEI INDICATA NELLA DOMANDA PRECEDENTE:",null,null,null,null,null,null,null,null,{"$f":"+IF('QUEST PROFILATURA CLIENTI'!L459=\"\",0,1)","v":0},null,null,null,null,2.5,"reazione psicologica di fronte alla perdita",null,null,null,null,{"$f":"R459","v":"reazione psicologica di fronte alla perdita"}]
[null,null,"a) di forte preoccupazione ",null,null,null,null,null,null,null,null,{"$f":"+IF('QUEST PROFILATURA CLIENTI'!L460=\"\",0,1)","v":0},1,null,null,{"$f":"SUM(R460:U460)","v":200},1,120,80,0,0,null,{"$f":"$L460*($Q$459*($Q460*R460/100))","v":0},{"$f":"$L460*($Q$459*($Q460*S460/100))","v":0},0,0]
[null,null,"b) di preoccupazione",null,null,null,null,null,null,null,null,{"$f":"+IF('QUEST PROFILATURA CLIENTI'!L461=\"\",0,1)","v":0},2,null,null,{"$f":"SUM(R461:U461)","v":200},1,60,80,50,10,null,0,0,0,0]
[null,null,"c) di leggera preoccupazione",null,null,null,null,null,null,null,null,{"$f":"+IF('QUEST PROFILATURA CLIENTI'!L462=\"\",0,1)","v":0},3,null,null,{"$f":"SUM(R462:U462)","v":200},1,10,50,80,60,null,0,0,0,0]
[null,null,"d) di consapevole accettazione",null,null,null,null,null,null,null,null,{"$f":"+IF('QUEST PROFILATURA CLIENTI'!L463=\"\",0,1)","v":0},4,null,null,{"$f":"SUM(R463:U463)","v":200},1,0,0,80,120,null,0,0,0,0]
[null,null,null,null,null,null,null,null,null,null,null,{"$f":"+IF('QUEST PROFILATURA CLIENTI'!L464=\"\",0,1)","v":0}]
[null,"D.4)","QUANDO E’ D’ACCORDO CON QUESTA AFFERMAZIONE? \n“Mi considero paziente con i miei investimenti finanziari. Sono disponibile ad accettare periodi nei quali il rendimento del portafoglio è negativo”:",null,null,null,null,null,null,null,null,{"$f":"+IF('QUEST PROFILATURA CLIENTI'!L465=\"\",0,1)","v":0},null,null,null,{"$f":"SUM(R465:U465)","v":0},2.2000000000000002,"accettazinoe perdite",null,null,null,null,{"$f":"R465","v":"accettazinoe perdite"}]
[null,null,"a) totale disaccordo",null,null,null,null,null,null,null,null,{"$f":"+IF('QUEST PROFILATURA CLIENTI'!L466=\"\",0,1)","v":0},1,null,null,{"$f":"SUM(R466:U466)","v":200},1.4,160,40,0,0,null,{"$f":"$L466*($Q$465*($Q466*R466/100))","v":0},{"$f":"$L466*($Q$465*($Q466*S466/100))","v":0},0,0]
[null,null,"b) disaccordo",null,null,null,null,null,null,null,null,{"$f":"+IF('QUEST PROFILATURA CLIENTI'!L467=\"\",0,1)","v":0},2,null,null,{"$f":"SUM(R467:U467)","v":200},1.2,120,80,0,0,null,0,0,0,0]
[null,null,"c) concordo",null,null,null,null,null,null,null,null,{"$f":"+IF('QUEST PROFILATURA CLIENTI'!L468=\"\",0,1)","v":0},3,null,null,{"$f":"SUM(R468:U468)","v":200},1,0,40,70,90,null,0,0,0,0]
[null,null,"d) concordo pienamente  ",null,null,null,null,null,null,null,null,{"$f":"+IF('QUEST PROFILATURA CLIENTI'!L469=\"\",0,1)","v":0},4,null,null,{"$f":"SUM(R469:U469)","v":200},1,0,0,80,120,null,0,0,0,0]
[null,null,null,null,null,null,null,null,null,null,null,{"$f":"+IF('QUEST PROFILATURA CLIENTI'!L470=\"\",0,1)","v":0}]
[null,"D.5)","PENSA IN FUTURO PER LA GESTIONE DEL SUO PATRIMONIO DI DOVER ASSUMERE PIU’ RISCHI RISPETTO AL PASSATO?",null,null,null,null,null,null,null,null,{"$f":"+IF('QUEST PROFILATURA CLIENTI'!L471=\"\",0,1)","v":0},null,null,null,{"$f":"SUM(R471:U471)","v":0},2,"più rischi in futuro?",null,null,null,null,{"$f":"R471","v":"più rischi in futuro?"}]
[null,null,"a) si",null,null,null,null,null,null,null,null,{"$f":"+IF('QUEST PROFILATURA CLIENTI'!L472=\"\",0,1)","v":0},1,null,null,{"$f":"SUM(R472:U472)","v":200},1.4,0,0,100,100,null,{"$f":"$L472*($Q$471*($Q472*R472/100))","v":0},{"$f":"$L472*($Q$471*($Q472*S472/100))","v":0},0,0]
[null,null,"b) no",null,null,null,null,null,null,null,null,{"$f":"+IF('QUEST PROFILATURA CLIENTI'!L473=\"\",0,1)","v":0},2,null,null,{"$f":"SUM(R473:U473)","v":200},0.9,50,50,50,50,null,0,0,0,0]
[null,null,null,null,null,null,null,null,null,null,null,{"$f":"+IF('QUEST PROFILATURA CLIENTI'!L474=\"\",0,1)","v":0}]
[null,"D.6)","IMMAGINI DI PARTECIPARE A UNO SHOW TELEVISIVO. IL PRESENTATORE LE OFFRE UNA SERIE DI PROPOSTE. QUALE SCEGLIE? ",null,null,null,null,null,null,null,null,{"$f":"+IF('QUEST PROFILATURA CLIENTI'!L475=\"\",0,1)","v":0},null,null,null,{"$f":"SUM(R475:U475)","v":0},0.5,"vincite",null,null,null,null,{"$f":"R475","v":"vincite"}]
[null,null,"a) una vincita di 1.000 euro in contanti subito",null,null,null,null,null,null,null,null,{"$f":"+IF('QUEST PROFILATURA CLIENTI'!L476=\"\",0,1)","v":0},1,null,null,{"$f":"SUM(R476:U476)","v":200},1,120,80,0,0,null,{"$f":"$L476*($Q$475*($Q476*R476/100))","v":0},{"$f":"$L476*($Q$475*($Q476*S476/100))","v":0},0,0]
[null,null,"b) una vincita di 5.000 euro con il 50% di possibilità",null,null,null,null,null,null,null,null,{"$f":"+IF('QUEST PROFILATURA CLIENTI'!L477=\"\",0,1)","v":0},2,null,null,{"$f":"SUM(R477:U477)","v":200},1,40,90,60,10,null,0,0,0,0]
[null,null,"c) una vincita di 15.000 euro con il 25% di possibilità",null,null,null,null,null,null,null,null,{"$f":"+IF('QUEST PROFILATURA CLIENTI'!L478=\"\",0,1)","v":0},3,null,null,{"$f":"SUM(R478:U478)","v":200},1,0,30,70,100,null,0,0,0,0]
[null,null,"d) una vincita di 100.000 euro con il 5% di possibilità",null,null,null,null,null,null,null,null,{"$f":"+IF('QUEST PROFILATURA CLIENTI'!L479=\"\",0,1)","v":0},4,null,null,{"$f":"SUM(R479:U479)","v":200},1.5,0,0,60,140,null,0,0,0,0]
[null,null,null,null,null,null,null,null,null,null,null,{"$f":"+IF('QUEST PROFILATURA CLIENTI'!L480=\"\",0,1)","v":0}]
[null,"D.7)","IMMAGINI CHE UN LONTANO ZIO LE ABBIA LASCIATO IN EREDITA’ UN PATRIMONIO DI 100.000 EURO MA ABBIA ESPRESSO NEL TESTAMENTO LA VOLONTA’ DI INVESTIRE TUTTO L’IMPORTO IN UNA DI QUESTE ALTERNATIVE. QUALE SCEGLIE? ",null,null,null,null,null,null,null,null,{"$f":"+IF('QUEST PROFILATURA CLIENTI'!L481=\"\",0,1)","v":0},null,null,null,{"$f":"SUM(R481:U481)","v":0},0.8,"eredità",null,null,null,null,{"$f":"R481","v":"eredità"}]
[null,null,"a)  un deposito bancario o un fondo monetario",null,null,null,null,null,null,null,null,{"$f":"+IF('QUEST PROFILATURA CLIENTI'!L482=\"\",0,1)","v":0},1,null,null,{"$f":"SUM(R482:U482)","v":200},1,120,80,0,0,null,{"$f":"$L482*($Q$481*($Q482*R482/100))","v":0},{"$f":"$L482*($Q$481*($Q482*S482/100))","v":0},0,0]
[null,null,"b) un fondo comune bilanciato (che investe sia in obbligazioni che in azioni)",null,null,null,null,null,null,null,null,{"$f":"+IF('QUEST PROFILATURA CLIENTI'!L483=\"\",0,1)","v":0},2,null,null,{"$f":"SUM(R483:U483)","v":200},1,0,70,80,50,null,{"$f":"$L483*($Q$481*($Q483*R483/100))","v":0},0,0,0]
[null,null,"c) un portafoglio di 15 azioni",null,null,null,null,null,null,null,null,{"$f":"+IF('QUEST PROFILATURA CLIENTI'!L484=\"\",0,1)","v":0},3,null,null,{"$f":"SUM(R484:U484)","v":200},1,0,0,80,120,null,0,0,0,0]
[null,null,"d) beni come oro, gioielli, quadri, case",null,null,null,null,null,null,null,null,{"$f":"+IF('QUEST PROFILATURA CLIENTI'!L485=\"\",0,1)","v":0},4,null,null,{"$f":"SUM(R485:U485)","v":200},1,50,50,50,50,null,0,0,0,0]
[null,null,null,null,null,null,null,null,null,null,null,{"$f":"+IF('QUEST PROFILATURA CLIENTI'!L486=\"\",0,1)","v":0}]
[null,"E)","ORIZZONTE TEMPORALE D'INVESTIMENTO",null,null,null,null,null,null,null,null,{"$f":"+IF('QUEST PROFILATURA CLIENTI'!L487=\"\",0,1)","v":0},null,null,null,null,null,"ASEPTTATIVE, OBIETTIVI, RISCHIO",null,null,null,null,{"$f":"R487","v":"ASEPTTATIVE, OBIETTIVI, RISCHIO"}]
[null,"E.1)","QUAL’E’ L’ORIZZONTE TEMPORALE PRINCIPALE CHE SI PONE? ",null,null,null,null,null,null,null,null,{"$f":"+IF('QUEST PROFILATURA CLIENTI'!L488=\"\",0,1)","v":0},null,null,null,{"$f":"SUM(R488:U488)","v":0},1.5,"Tra quanto utilizzerà le somme investite?",null,null,null,null,{"$f":"R488","v":"Tra quanto utilizzerà le somme investite?"}]
[null,null,"a) breve termine; circa un anno",null,null,null,null,null,null,null,null,{"$f":"+IF('QUEST PROFILATURA CLIENTI'!L489=\"\",0,1)","v":0},1,null,null,{"$f":"SUM(R489:U489)","v":200},1,110,90,0,0,null,{"$f":"$L489*($Q$488*($Q489*R489/100))","v":0},0,0,0]
[null,null,"b) breve/medio termine; minore di 3 anni",null,null,null,null,null,null,null,null,{"$f":"+IF('QUEST PROFILATURA CLIENTI'!L490=\"\",0,1)","v":0},2,null,null,{"$f":"SUM(R490:U490)","v":200},1,65,75,35,25,null,0,0,0,0]
[null,null,"c) medio termine; minore  di 5 anni",null,null,null,null,null,null,null,null,{"$f":"+IF('QUEST PROFILATURA CLIENTI'!L491=\"\",0,1)","v":0},3,null,null,{"$f":"SUM(R491:U491)","v":200},1,10,40,85,65,null,{"$f":"$L491*($Q$488*($Q491*R491/100))","v":0},{"$f":"$L491*($Q$488*($Q491*S491/100))","v":0},0,0]
[null,null,"d) lungo termine; oltre 5 anni",null,null,null,null,null,null,null,null,{"$f":"+IF('QUEST PROFILATURA CLIENTI'!L492=\"\",0,1)","v":0},4,null,null,{"$f":"SUM(R492:U492)","v":200},2,0,20,70,110,null,0,0,0,0]
[null,null,null,null,null,null,null,null,null,null,null,{"$f":"+IF('QUEST PROFILATURA CLIENTI'!L493=\"\",0,1)","v":0}]
[]
[null,"E.2)","RITIENE CHE VI SIANO INFORMAZIONI DA COMUNICARE CHE NON SONO STATE AFFRONTATE DAL QUESTIONARIO? LE INDICHI DI SEGUITO",null,null,null,null,null,null,null,null,{"$f":"+IF('QUEST PROFILATURA CLIENTI'!L495=\"\",0,1)","v":0},null,null,null,{"$f":"SUM(R495:U495)","v":0}]
[null,null,null,null,null,null,null,null,null,null,null,{"$f":"+IF('QUEST PROFILATURA CLIENTI'!L496=\"\",0,1)","v":0}]
[null,null,null,null,null,null,null,null,null,null,null,{"$f":"+IF('QUEST PROFILATURA CLIENTI'!L497=\"\",0,1)","v":0}]
[null,null,null,null,null,null,null,null,null,null,null,{"$f":"+IF('QUEST PROFILATURA CLIENTI'!L498=\"\",0,1)","v":0}]
[null,null,null,null,null,null,null,null,null,null,null,{"$f":"+IF('QUEST PROFILATURA CLIENTI'!L499=\"\",0,1)","v":0}]
[null,null,null,null,null,null,null,null,null,null,null,{"$f":"+IF('QUEST PROFILATURA CLIENTI'!L500=\"\",0,1)","v":0}]
[null,null,null,null,null,null,null,null,null,null,null,{"$f":"+IF('QUEST PROFILATURA CLIENTI'!L501=\"\",0,1)","v":0},null,null,null,null,null,null,null,null,null,null,null,null,null,null,null,"SEZIONE 1 conoscenza ed esperienza"]
[null,null,null,null,null,null,null,null,null,null,null,{"$f":"+IF('QUEST PROFILATURA CLIENTI'!L502=\"\",0,1)","v":0},null,null,null,null,null,null,null,null,null,null,null,null,null,null,null,{"$f":"SUM(W37:W363)","v":0},{"$f":"SUM(X37:X363)","v":0},{"$f":"SUM(Y37:Y363)","v":0},{"$f":"SUM(Z37:Z363)","v":0},null,null,{"$f":"+MATCH(MAX(AB502:AE502),AB502:AE502,0)","v":1}]
[null,null,"FACOLTATIVE (non contribuiranno alla formazione del punteggio):",null,null,null,null,null,null,null,null,{"$f":"+IF('QUEST PROFILATURA CLIENTI'!L503=\"\",0,1)","v":0},null,null,null,null,null,null,null,null,null,null,null,null,null,null,null,"scarsa","sufficiente","buona","ottima",null,null,{"$f":"+INDEX(AB503:AE503,,AH502)","v":"scarsa"}]
[null,null,null,null,null,null,null,null,null,null,null,{"$f":"+IF('QUEST PROFILATURA CLIENTI'!L504=\"\",0,1)","v":0}]
[null,null,"COME DEFINIREBBE LA SUA PERSONALITA’? ",null,null,null,null,null,null,null,null,{"$f":"+IF('QUEST PROFILATURA CLIENTI'!L505=\"\",0,1)","v":0}]
[null,null,"a) mi aspetto sempre il peggio. Sono un pessimista",null,null,null,null,null,null,null,null,{"$f":"+IF('QUEST PROFILATURA CLIENTI'!L506=\"\",0,1)","v":0}]
[null,null,"b) mi preoccupo facilmente. Sono ansioso",null,null,null,null,null,null,null,null,{"$f":"+IF('QUEST PROFILATURA CLIENTI'!L507=\"\",0,1)","v":0}]
[null,null,"c) sono prudente ma aperto a considerare nuove idee",null,null,null,null,null,null,null,null,{"$f":"+IF('QUEST PROFILATURA CLIENTI'!L508=\"\",0,1)","v":0},null,null,null,null,null,null,null,null,null,null,null,null,null,null,null,"sezione 2 SITUAZIONE FIN E CAP SOPP PERD"]
[null,null,"d) posso prendere una decisione valutando i pro e i contro. Sono obiettivo",null,null,null,null,null,null,null,null,{"$f":"+IF('QUEST PROFILATURA CLIENTI'!L509=\"\",0,1)","v":0},null,null,null,null,null,null,null,null,null,null,null,null,null,null,null,{"$f":"SUM(W367:W423)","v":0},{"$f":"SUM(X367:X423)","v":0},{"$f":"SUM(Y367:Y423)","v":0},{"$f":"SUM(Z367:Z423)","v":0},null,null,{"$f":"+MATCH(MAX(AB509:AE509),AB509:AE509,0)","v":1}]
[null,null,"e) le cose alla fine si aggiustano sempre. Sono ottimista",null,null,null,null,null,null,null,null,{"$f":"+IF('QUEST PROFILATURA CLIENTI'!L510=\"\",0,1)","v":0},null,null,null,null,null,null,null,null,null,null,null,null,null,null,null,"Difficile","Sufficiente","Buona","Brillante",null,null,{"$f":"+INDEX(AB510:AE510,,AH509)","v":"Difficile"}]
[null,null,null,null,null,null,null,null,null,null,null,{"$f":"+IF('QUEST PROFILATURA CLIENTI'!L511=\"\",0,1)","v":0},null,null,null,null,null,null,null,null,null,null,null,null,null,null,null,{"$f":"IF(AB509=MAX($AB509:$AE509),\"*\",\"\")","v":"*"},{"$f":"IF(AC509=MAX($AB509:$AE509),\"*\",\"\")","v":"*"},{"$f":"IF(AD509=MAX($AB509:$AE509),\"*\",\"\")","v":"*"},{"$f":"IF(AE509=MAX($AB509:$AE509),\"*\",\"\")","v":"*"}]
[null,null,"QUANDO CONTROLLA GLI INVESTIMENTI NEL CORSO DEL TEMPO, SU COSA TENDE A CONCENTRARSI? ",null,null,null,null,null,null,null,null,{"$f":"+IF('QUEST PROFILATURA CLIENTI'!L512=\"\",0,1)","v":0}]
[null,null,"a) sugli investimenti che stanno avendo un risultato negativo",null,null,null,null,null,null,null,null,{"$f":"+IF('QUEST PROFILATURA CLIENTI'!L513=\"\",0,1)","v":0},null,null,null,null,null,null,null,null,null,null,null,null,null,null,null,"sezione 3 OBIETTIVI / tolleranza al rischio"]
[null,null,"b) sugli investimenti che stanno avendo un risultato molto positivo",null,null,null,null,null,null,null,null,{"$f":"+IF('QUEST PROFILATURA CLIENTI'!L514=\"\",0,1)","v":0},null,null,null,null,null,null,null,null,null,null,null,null,null,null,null,{"$f":"SUM(W429:W492)","v":0},{"$f":"SUM(X429:X492)","v":0},0,0,null,null,{"$f":"+MATCH(MAX(AB514:AE514),AB514:AE514,0)","v":1}]
[null,null,"c) sui recenti rendimenti del portafoglio complessivo",null,null,null,null,null,null,null,null,{"$f":"+IF('QUEST PROFILATURA CLIENTI'!L515=\"\",0,1)","v":0},null,null,null,null,null,null,null,null,null,null,null,null,null,null,null,"protezione","inflazione","crescita","aggressivo",null,null,{"$f":"+INDEX(AB515:AE515,,AH514)","v":"protezione"}]
[null,null,"d) sul rendimento a lungo termine del portafoglio complessivo",null,null,null,null,null,null,null,null,{"$f":"+IF('QUEST PROFILATURA CLIENTI'!L516=\"\",0,1)","v":0},null,null,null,null,null,null,null,null,null,null,null,null,null,null,null,{"$f":"IF(AB514=MAX($AB514:$AE514),\"*\",\"\")","v":"*"},{"$f":"IF(AC514=MAX($AB514:$AE514),\"*\",\"\")","v":"*"},{"$f":"IF(AD514=MAX($AB514:$AE514),\"*\",\"\")","v":"*"},{"$f":"IF(AE514=MAX($AB514:$AE514),\"*\",\"\")","v":"*"}]
[null,null,null,null,null,null,null,null,null,null,null,{"$f":"+IF('QUEST PROFILATURA CLIENTI'!L517=\"\",0,1)","v":0}]
[null,null,"QUALI DI QUESTE COPERTURE ASSICURATIVE RELATIVE ALLA TUTELA DELLA PERSONA POSSIEDE?",null,null,null,null,null,null,null,null,{"$f":"+IF('QUEST PROFILATURA CLIENTI'!L518=\"\",0,1)","v":0}]
[null,null,"rischio morte",null,null,null,null,null,null,null,null,{"$f":"+IF('QUEST PROFILATURA CLIENTI'!L519=\"\",0,1)","v":0}]
[null,null,"rischio invalidità permanente da infortunio",null,null,null,null,null,null,null,null,{"$f":"+IF('QUEST PROFILATURA CLIENTI'!L520=\"\",0,1)","v":0}]
[null,null,"rischio invalidità permanente da malattia",null,null,null,null,null,null,null,null,{"$f":"+IF('QUEST PROFILATURA CLIENTI'!L521=\"\",0,1)","v":0}]
[null,null,"coperture sanitarie",null,null,null,null,null,null,null,null,{"$f":"+IF('QUEST PROFILATURA CLIENTI'!L522=\"\",0,1)","v":0}]
[null,null,null,null,null,null,null,null,null,null,null,{"$f":"+IF('QUEST PROFILATURA CLIENTI'!L523=\"\",0,1)","v":0}]
[null,null,"I SUOI FAMILIARI POSSIEDONO SIMILI COPERURE ASSICURATIVE?",null,null,null,null,null,null,null,null,{"$f":"+IF('QUEST PROFILATURA CLIENTI'!L524=\"\",0,1)","v":0}]
[null,null,"si",null,null,null,null,null,null,null,null,{"$f":"+IF('QUEST PROFILATURA CLIENTI'!L525=\"\",0,1)","v":0},null,null,null,null,null,null,null,null,null,null,null,null,null,null,null,"sezione 5 ORIZZONTE TEMPORALE"]
[null,null,"no",null,null,null,null,null,null,null,null,{"$f":"+IF('QUEST PROFILATURA CLIENTI'!L526=\"\",0,1)","v":0},null,null,null,null,null,null,null,null,null,null,null,null,null,null,null,{"$f":"SUM(W489:W492)","v":0},{"$f":"SUM(X489:X492)","v":0},0,0,null,null,{"$f":"+MATCH(MAX(AB526:AE526),AB526:AE526,0)","v":1}]
[null,null,null,null,null,null,null,null,null,null,null,{"$f":"+IF('QUEST PROFILATURA CLIENTI'!L527=\"\",0,1)","v":0},null,null,null,null,null,null,null,null,null,null,null,null,null,null,null,"< 1 ANNO","< 3 ANNI","< 5 ANNI","> 5 ANNI",null,null,{"$f":"+INDEX(AB527:AE527,,AH526)","v":"< 1 ANNO"}]
[null,null,"QUALI DI QUESTE COPERTURE ASSICURATIVE RELATIVE ALLA TUTELA DEL PATRIMONIO POSSIEDE?",null,null,null,null,null,null,null,null,{"$f":"+IF('QUEST PROFILATURA CLIENTI'!L528=\"\",0,1)","v":0},null,null,null,null,null,null,null,null,null,null,null,null,null,null,null,{"$f":"IF(AB526=MAX($AB526:$AE526),\"*\",\"\")","v":"*"},{"$f":"IF(AC526=MAX($AB526:$AE526),\"*\",\"\")","v":"*"},{"$f":"IF(AD526=MAX($AB526:$AE526),\"*\",\"\")","v":"*"},{"$f":"IF(AE526=MAX($AB526:$AE526),\"*\",\"\")","v":"*"}]
[null,null,"responsabilità civile verso terzi",null,null,null,null,null,null,null,null,{"$f":"+IF('QUEST PROFILATURA CLIENTI'!L529=\"\",0,1)","v":0}]
[null,null,"protezione degli immobili",null,null,null,null,null,null,null,null,{"$f":"+IF('QUEST PROFILATURA CLIENTI'!L530=\"\",0,1)","v":0}]
[null,null,"protezione del rischio professionale",null,null,null,null,null,null,null,null,{"$f":"+IF('QUEST PROFILATURA CLIENTI'!L531=\"\",0,1)","v":0}]
[null,null,null,null,null,null,null,null,null,null,null,{"$f":"+IF('QUEST PROFILATURA CLIENTI'!L532=\"\",0,1)","v":0}]
[null,null,"QUALI DI QUESTI PRODOTTI PENSIONISTICI POSSIEDE?",null,null,null,null,null,null,null,null,{"$f":"+IF('QUEST PROFILATURA CLIENTI'!L533=\"\",0,1)","v":0},null,null,null,null,null,null,null,null,null,null,null,null,null,null,null,"Adeguatezza"]
[null,null,"fondo pensione di categoria",null,null,null,null,null,null,null,null,{"$f":"+IF('QUEST PROFILATURA CLIENTI'!L534=\"\",0,1)","v":0},null,null,null,null,null,null,null,null,null,null,null,null,null,null,null,null,null,null,null,null,null,{"$f":"+MIN(AH509,AH514)","v":1}]
[null,null,"fondo pensione aperto",null,null,null,null,null,null,null,null,{"$f":"+IF('QUEST PROFILATURA CLIENTI'!L535=\"\",0,1)","v":0},null,null,null,null,null,null,null,null,null,null,null,null,null,null,null,{"$f":"+IF($AH$534=1,\"*\",\"\")","v":"*"},{"$f":"+IF($AH$534=2,\"*\",\"\")","v":""},{"$f":"+IF($AH$534=3,\"*\",\"\")","v":""},{"$f":"+IF($AH$534=4,\"*\",\"\")","v":""}]
[null,null,"piano idividuale di previdenza (PIP) e/o polizze vita",null,null,null,null,null,null,null,null,{"$f":"+IF('QUEST PROFILATURA CLIENTI'!L536=\"\",0,1)","v":0},null,null,null,null,null,null,null,null,null,null,null,null,null,null,null,"var basso ","var medio basso","var medio alto","var alto"]
[]
[]
[]
[]
[]
[null,null,null,null,null,null,null,null,null,{"$f":"IF(L533>0,1,0)","v":0}]

{"sheet":"Domande Controllo","index":3,"n_rows":18,"n_cols":19,"rows_kept":18,"cut":false,"hidden":true,"merged":[]}
["riga rif","prog","cod.univ","testo","A","B","C","risposta corretta"]
[57,1,{"$f":"+A2&\"p\"&B2","v":"57p1"},"All'aumentare dei tassi di mercato sulla stessa scadenza di un'obbligazione, il prezzo dell'obbligazione","a) aumenta","b) diminuisce","c) le due cose non sono collegate",2,null,null,null,null,null,null,null,null,57,0.7055475115776062,{"$f":"+CEILING(R2*COUNTIF(A:A,Q2),1)","v":2}]
[57,2,"57p2","Investire denaro in un Titolo di Stato decennale in scadenza tra 6 mesi è da considerarsi un investimento","a) a medio rischio","b) a basso rischio","c) ad alto rischio",2]
[58,1,"58p1","Il rendimento di una obbligazione in valuta estera","a) dipende dai tassi di interesse e dall’andamento del cambio della valuta","b) dipende solo dal tasso di interesse","c) non dipende dall’andamento della valuta",1,null,null,null,null,null,null,null,null,58,0.5334240198135376,{"$f":"+CEILING(R4*COUNTIF(A:A,Q4),1)","v":2}]
[58,2,"58p2","Il rating di un'obbligazione è ","a) un punteggio che misura la redditività del titolo rispetto alle altre obbligazioni simili","b) un giudizio sulla capacità dell'emittente di rimborsare l'obbligazione","c) non so",2]
[59,1,"59p1","Se fallisce la società che gestisce un fondo comune d'investimento","a) il sottoscrittore del fondo rischia di perdere tutti i soldi investiti","b) il patrimonio del fondo è separato da quelli del gestore e quindi non rientra nella procedura fallimentare.","c) non so",2,null,null,null,null,null,null,null,null,59,0.57951861619949341,{"$f":"+CEILING(R6*COUNTIF(A:A,Q6),1)","v":2}]
[59,2,"59p2","I costi di un fondo comune d'investimento","a) si pagano solo al momento dell'investimento oppure del disinvestimento","b) oltre ai costi a carico dell'investitore vi sono una serie di costi a carico del fondo che indirettamente pagano i sottoscrittori poiché diminuiscono il valore della quota","c) non ci sono costi nei fondi comuni",2]
[59,3,"59p3","Gli ETF (Exchanged Traded Funds) sono","a) fondi comuni quotati il cui prezzo è generalmente legato ad un indice di mercato","b) una categoria di azioni di gestori di fondi comuni d'investimento","c) non so",1,null,null,null,null,null,null,null,null,60,0.28956246376037598,{"$f":"+CEILING(R8*COUNTIF(A:A,Q8),1)","v":1}]
[60,1,"60p1","Il valore di riscatto di una polizza index linked o unit linked","a) è sempre garantito almeno pari al valore di sottoscrizione ","b) può essere inferiore al valore di sottoscrizione solo se si riscatta in anticipo","c) dipende dalle condizioni della polizza e dall’andamento dell’indice o del fondo sottostante",3]
[61,1,"61p1","Acquistando azioni di un'azienda quotata si diventa","a) creditori dell'azienda, che deve restituire almeno il capitale investito pagando i dividendi","b) soci dell'azienda, esposti a perdere anche tutto il capitale investito","c) soci dell’azienda ma con un capitale minimo garantito in proporzione al capitale sociale",2,null,null,null,null,null,null,null,null,61,0.30194801092147827,{"$f":"+CEILING(R10*COUNTIF(A:A,Q10),1)","v":1}]
[61,2,"61p2","Cosa sono i dividendi","a) dei lotti di azioni destinati inizialmente agli investitori istituzioni e che verranno poi  suddivisi in lotti più piccoli per il mercato retail","b) una parte degli utili dell'emittente che vengono distribuiti agli azionisti","c) non so",2]
[62,1,"62p1","Investire denaro in un “Investment Certificate” rappresenta sempre","a) un investimento ad alto rischio perché al suo interno sono presenti “strumenti  derivati” ","b) un investimento con un livello di rischio che varia a seconda della tipologia del  certificato","c) un investimento con rischi contenuti perché viene comunque garantito il rimborso di una percentuale prestabilita dell’importo investito",2,null,null,null,null,null,null,null,null,62,0.77474009990692139,{"$f":"+CEILING(R12*COUNTIF(A:A,Q12),1)","v":2}]
[62,2,"62p2","Le obbligazioni subordinate sono","a) obbligazioni il cui rimborso è subordinato al comportamento di alcuni indici di  mercato","b) obbligazioni legate al pagamento dei mutui ipotecari","c) obbligazioni che garantiscono, in caso di fallimento dell’emittente, una minore  priorità nei diritti di credito rispetto alle obbligazioni senior",3]
[63,1,"63p1","Per investimenti a leva si intende","a) un investimento il cui rendimento (in positivo o in negativo) è più che proporzionale al movimento di prezzo del sottostante","b) un investimento che prevede più opzioni di rendimento che si possono attivare in base al verificarsi di determinati “eventi” finanziari (delle “leve”)","c) non so",1,null,null,null,null,null,null,null,null,63,1.4017641544342041E-2,{"$f":"+CEILING(R14*COUNTIF(A:A,Q14),1)","v":1}]
[64,1,"64p1","Se ho una visione moderatamente negativa circa l’andamento futuro del prezzo di un titolo, la strategia più coerente con questa visione potrebbe essere","a) acquistare un’opzione PUT con lo strike molto inferiore al prezzo attuale","b) vendere un’opzione CALL out-of-the-money","c) non so",2]
[64,2,"64p2","Con il termine CONTANGO s’intende","a) un termine utilizzato nell’analisi finanziaria per indicare una fase nella quale il  prezzo SPOT è inferiore al prezzo di un Future","b) un termine utilizzato nell’analisi finanziaria per indicare una fase nella quale il  prezzo SPOT è superiore al prezzo di un Future","c) non so",1,null,null,null,null,null,null,null,null,64,0.76072359085083008,{"$f":"+CEILING(R16*COUNTIF(A:A,Q16),1)","v":2}]
[65,1,"65p1","Quale fra queste frasi ritiene essere vera?","a) in Italia gli Hedge Fund si possono pubblicizzare liberamente come tutti gli altri fondi comune di investimento","b) gli Hedge Fund sono fondi d’investimento speculativi destinati esclusivamente a profili di rischio molto elevati","c) gli Hedge Fund sono una categoria di fondi d’investimento che comprende al loro interno profili di rischio / rendimento molto diversificati",2]
[65,2,"65p2","Quale di queste non è una tipologia di hedge fund?","a) Market neutral o relative value","b) Global Macro","c) Cash Colect ",3,null,null,null,null,null,null,null,null,65,0.81449002027511597,{"$f":"+CEILING(R18*COUNTIF(A:A,Q18),1)","v":2}]

{"sheet":"STAMPA","index":4,"n_rows":114,"n_cols":15,"rows_kept":114,"cut":false,"hidden":false,"merged":[[78,0,78,2],[78,4,78,9],[79,4,79,9],[80,4,80,9],[81,4,81,9],[79,0,79,2],[20,0,20,2],[20,4,20,9],[70,11,70,18],[71,0,71,9],[63,4,63,9],[55,0,55,9],[38,0,38,9],[27,1,27,7],[28,1,28,7],[23,0,23,9],[25,0,25,9],[59,0,59,2],[29,1,29,7],[30,1,30,7],[31,1,31,7],[32,1,32,7],[0,0,0,9],[14,0,14,9],[5,0,5,9],[7,0,7,9],[3,0,3,9],[4,0,4,9],[6,0,6,9],[1,0,1,10],[11,0,11,9],[10,0,10,9],[77,4,77,9],[62,4,62,9],[61,0,61,2],[62,0,62,2],[63,0,63,2],[16,4,16,9],[17,4,17,9],[18,4,18,9],[19,4,19,9],[16,0,16,2],[17,0,17,2],[18,0,18,2],[19,0,19,2],[104,2,104,4],[106,2,106,4],[91,0,91,2],[88,4,88,9],[89,4,89,9],[90,4,90,9],[91,4,91,9],[89,0,89,2],[90,0,90,2],[97,5,97,8],[88,0,88,2],[99,0,99,2],[98,0,98,2],[33,1,33,7],[34,1,34,7],[35,1,35,7],[58,0,58,2],[58,4,58,9],[40,1,40,5],[59,4,59,9],[100,0,100,2],[64,4,64,9],[65,4,65,9],[67,4,67,9],[66,4,66,9],[64,0,64,2],[65,0,65,2],[66,0,66,2],[67,0,67,2],[75,4,75,9],[76,4,76,9],[83,0,83,2],[84,0,84,2],[87,0,87,2],[87,4,87,9],[85,0,85,2],[97,0,97,2],[86,0,86,2],[60,4,60,9],[60,0,60,2],[84,4,84,9],[85,4,85,9],[86,4,86,9],[74,4,74,9],[83,4,83,9],[82,4,82,9],[74,0,74,2],[75,0,75,2],[76,0,76,2],[77,0,77,2],[61,4,61,9]]}
["Questionario finanziario, valutazione di adeguatezza"]
[]
[]
["DATI ANAGRAFICI "]
[]
[{"$f":"calcolo!C4","v":"CFA SCF"}]
[{"$f":"calcolo!C5","v":"xx/xx/xxxx"}]
[{"$f":"calcolo!C6","v":"codice fiscale"}]
[]
[]
[{"$f":"+INDEX(calcolo!C22:C29,VLOOKUP(1,calcolo!L22:M29,2,0))","v":{"$error":"#N/A"}}]
[{"$f":"+INDEX(calcolo!C9:C12,VLOOKUP(1,calcolo!L9:M12,2,0))","v":{"$error":"#N/A"}}]
[]
[]
["ELEMENTI SOGGETTIVI"]
[]
["Abitazione Principale",null,null,null,{"$f":"+INDEX(calcolo!C37:C38,VLOOKUP(1,calcolo!L37:M38,2,0))","v":{"$error":"#N/A"}}]
["Attività Professionale",null,null,null,{"$f":"+INDEX(calcolo!C43:C48,VLOOKUP(1,calcolo!L43:M48,2,0))","v":{"$error":"#N/A"}}]
["Lavora in Finanza",null,null,null,{"$f":"+INDEX(calcolo!C51:C52,VLOOKUP(1,calcolo!L51:M52,2,0))","v":{"$error":"#N/A"}}]
["Titolo di Studio",null,null,null,{"$f":"+INDEX(calcolo!C55:C58,VLOOKUP(1,calcolo!L55:M58,2,0))","v":{"$error":"#N/A"}}]
[]
[]
[]
["ESPERIENZA FINANZIARIA E CONOSCENZA"]
[]
["STRUMENTI PER I QUALI E' STATA VERIFICATA LA CONOSCENZA"]
[]
[1,{"$f":"+IF(TYPE(MATCH(A28,calcolo!$O$61:$O$161,0))=16,\"\",INDEX(calcolo!$C$61:$C$161,MATCH(A28,calcolo!$O$61:$O$161,0)))","v":""}]
[2,{"$f":"+IF(TYPE(MATCH(A29,calcolo!$O$61:$O$161,0))=16,\"\",INDEX(calcolo!$C$61:$C$161,MATCH(A29,calcolo!$O$61:$O$161,0)))","v":""}]
[3,{"$f":"+IF(TYPE(MATCH(A30,calcolo!$O$61:$O$161,0))=16,\"\",INDEX(calcolo!$C$61:$C$161,MATCH(A30,calcolo!$O$61:$O$161,0)))","v":""}]
[4,{"$f":"+IF(TYPE(MATCH(A31,calcolo!$O$61:$O$161,0))=16,\"\",INDEX(calcolo!$C$61:$C$161,MATCH(A31,calcolo!$O$61:$O$161,0)))","v":""}]
[5,{"$f":"+IF(TYPE(MATCH(A32,calcolo!$O$61:$O$161,0))=16,\"\",INDEX(calcolo!$C$61:$C$161,MATCH(A32,calcolo!$O$61:$O$161,0)))","v":""}]
[6,{"$f":"+IF(TYPE(MATCH(A33,calcolo!$O$61:$O$161,0))=16,\"\",INDEX(calcolo!$C$61:$C$161,MATCH(A33,calcolo!$O$61:$O$161,0)))","v":""}]
[7,{"$f":"+IF(TYPE(MATCH(A34,calcolo!$O$61:$O$161,0))=16,\"\",INDEX(calcolo!$C$61:$C$161,MATCH(A34,calcolo!$O$61:$O$161,0)))","v":""}]
[8,{"$f":"+IF(TYPE(MATCH(A35,calcolo!$O$61:$O$161,0))=16,\"\",INDEX(calcolo!$C$61:$C$161,MATCH(A35,calcolo!$O$61:$O$161,0)))","v":""}]
[9,{"$f":"+IF(TYPE(MATCH(A36,calcolo!$O$61:$O$161,0))=16,\"\",INDEX(calcolo!$C$61:$C$161,MATCH(A36,calcolo!$O$61:$O$161,0)))","v":""}]
[]
[]
["OPERATIVITA' IN STRUMENTI"]
[]
[null,"STRUMENTO",null,null,null,null,null,"FREQUENZA","VOLUME","PERIODO"]
[1,{"$f":"+IF(TYPE(MATCH(A42,calcolo!$AC$61:$AC$161,0))=16,\"\",INDEX(calcolo!$C$61:$C$161,MATCH(A42,calcolo!$AC$61:$AC$161,0)))","v":""},null,null,null,null,null,{"$f":"+IF(B42=\"\",\"\",LOOKUP(1,INDIRECT(\"'calcolo'!l\"&158+20*$O42&\":l\"&161+20*$O42),INDIRECT(\"'calcolo'!d\"&158+20*$O42&\":d\"&161+20*$O42)))","v":""},{"$f":"+IF(B42=\"\",\"\",LOOKUP(1,INDIRECT(\"'calcolo'!l\"&164+20*$O42&\":l\"&167+20*$O42),INDIRECT(\"'calcolo'!d\"&164+20*$O42&\":d\"&167+20*$O42)))","v":""},{"$f":"+IF(B42=\"\",\"\",LOOKUP(1,INDIRECT(\"'calcolo'!l\"&170+20*$O42&\":l\"&173+20*$O42),INDIRECT(\"'calcolo'!d\"&170+20*$O42&\":d\"&173+20*$O42)))","v":""},null,null,null,null,{"$f":"+VLOOKUP(B42,calcolo!C62:N161,12,0)","v":{"$error":"#N/A"}}]
[2,{"$f":"+IF(TYPE(MATCH(A43,calcolo!$AC$61:$AC$161,0))=16,\"\",INDEX(calcolo!$C$61:$C$161,MATCH(A43,calcolo!$AC$61:$AC$161,0)))","v":""},null,null,null,null,null,{"$f":"+IF(B43=\"\",\"\",LOOKUP(1,INDIRECT(\"'calcolo'!l\"&158+20*$O43&\":l\"&161+20*$O43),INDIRECT(\"'calcolo'!d\"&158+20*$O43&\":d\"&161+20*$O43)))","v":""},{"$f":"+IF(B43=\"\",\"\",LOOKUP(1,INDIRECT(\"'calcolo'!l\"&164+20*$O43&\":l\"&167+20*$O43),INDIRECT(\"'calcolo'!d\"&164+20*$O43&\":d\"&167+20*$O43)))","v":""},{"$f":"+IF(B43=\"\",\"\",LOOKUP(1,INDIRECT(\"'calcolo'!l\"&170+20*$O43&\":l\"&173+20*$O43),INDIRECT(\"'calcolo'!d\"&170+20*$O43&\":d\"&173+20*$O43)))","v":""},null,null,null,null,{"$f":"+VLOOKUP(B43,calcolo!C63:N162,12,0)","v":{"$error":"#N/A"}}]
[3,{"$f":"+IF(TYPE(MATCH(A44,calcolo!$AC$61:$AC$161,0))=16,\"\",INDEX(calcolo!$C$61:$C$161,MATCH(A44,calcolo!$AC$61:$AC$161,0)))","v":""},null,null,null,null,null,"","","",null,null,null,null,{"$f":"+VLOOKUP(B44,calcolo!C64:N163,12,0)","v":{"$error":"#N/A"}}]
[4,{"$f":"+IF(TYPE(MATCH(A45,calcolo!$AC$61:$AC$161,0))=16,\"\",INDEX(calcolo!$C$61:$C$161,MATCH(A45,calcolo!$AC$61:$AC$161,0)))","v":""},null,null,null,null,null,"","","",null,null,null,null,{"$f":"+VLOOKUP(B45,calcolo!C65:N164,12,0)","v":{"$error":"#N/A"}}]
[5,{"$f":"+IF(TYPE(MATCH(A46,calcolo!$AC$61:$AC$161,0))=16,\"\",INDEX(calcolo!$C$61:$C$161,MATCH(A46,calcolo!$AC$61:$AC$161,0)))","v":""},null,null,null,null,null,"","","",null,null,null,null,{"$f":"+VLOOKUP(B46,calcolo!C66:N165,12,0)","v":{"$error":"#N/A"}}]
[6,{"$f":"+IF(TYPE(MATCH(A47,calcolo!$AC$61:$AC$161,0))=16,\"\",INDEX(calcolo!$C$61:$C$161,MATCH(A47,calcolo!$AC$61:$AC$161,0)))","v":""},null,null,null,null,null,"","","",null,null,null,null,{"$f":"+VLOOKUP(B47,calcolo!C67:N166,12,0)","v":{"$error":"#N/A"}}]
[7,{"$f":"+IF(TYPE(MATCH(A48,calcolo!$AC$61:$AC$161,0))=16,\"\",INDEX(calcolo!$C$61:$C$161,MATCH(A48,calcolo!$AC$61:$AC$161,0)))","v":""},null,null,null,null,null,"","","",null,null,null,null,{"$f":"+VLOOKUP(B48,calcolo!C68:N167,12,0)","v":{"$error":"#N/A"}}]
[8,{"$f":"+IF(TYPE(MATCH(A49,calcolo!$AC$61:$AC$161,0))=16,\"\",INDEX(calcolo!$C$61:$C$161,MATCH(A49,calcolo!$AC$61:$AC$161,0)))","v":""},null,null,null,null,null,"","","",null,null,null,null,{"$f":"+VLOOKUP(B49,calcolo!C69:N168,12,0)","v":{"$error":"#N/A"}}]
[9,{"$f":"+IF(TYPE(MATCH(A50,calcolo!$AC$61:$AC$161,0))=16,\"\",INDEX(calcolo!$C$61:$C$161,MATCH(A50,calcolo!$AC$61:$AC$161,0)))","v":""},null,null,null,null,null,"","","",null,null,null,null,{"$f":"+VLOOKUP(B50,calcolo!C70:N169,12,0)","v":{"$error":"#N/A"}}]
[]
[]
[]
[]
[]
["SITUAZIONE FINANZIARIA E PROSPETTIVE"]
[]
[]
["Patrimonio complessivo",null,null,null,{"$f":"+INDEX(calcolo!C367:C370,VLOOKUP(1,calcolo!L367:M370,2,0))","v":{"$error":"#N/A"}}]
["Fonte del Patrimonio",null,null,null,{"$f":"+INDEX(calcolo!C372:C376,VLOOKUP(1,calcolo!L372:M376,2,0))","v":{"$error":"#N/A"}}]
["% Investimenti sotto Consulenza",null,null,null,{"$f":"+INDEX(calcolo!C378:C382,VLOOKUP(1,calcolo!L378:M382,2,0))","v":{"$error":"#N/A"}}]
["Entrate Future",null,null,null,{"$f":"+INDEX(calcolo!C384:C387,VLOOKUP(1,calcolo!L384:M387,2,0))","v":{"$error":"#N/A"}}]
["Tenore di Vita",null,null,null,{"$f":"+INDEX(calcolo!C389:C392,VLOOKUP(1,calcolo!L389:M392,2,0))","v":{"$error":"#N/A"}}]
["Reddito annuo",null,null,null,{"$f":"+INDEX(calcolo!C394:C398,VLOOKUP(1,calcolo!L394:M398,2,0))","v":{"$error":"#N/A"}}]
["Aspettative Reddito",null,null,null,{"$f":"+INDEX(calcolo!C400:C405,VLOOKUP(1,calcolo!L400:M405,2,0))","v":{"$error":"#N/A"}}]
["Risparmio annuo",null,null,null,{"$f":"+INDEX(calcolo!C407:C411,VLOOKUP(1,calcolo!L407:M411,2,0))","v":{"$error":"#N/A"}}]
["Impegni finanziari futuri",null,null,null,{"$f":"+INDEX(calcolo!C413:C417,VLOOKUP(1,calcolo!L413:M417,2,0))","v":{"$error":"#N/A"}}]
["Risparmio futuro",null,null,null,{"$f":"+INDEX(calcolo!C419:C424,VLOOKUP(1,calcolo!L419:M424,2,0))","v":{"$error":"#N/A"}}]
[]
[]
[]
["ASPETTATIVE, OBIETTIVI, RISCHIO"]
[]
[]
["Aspettative rendimento",null,null,null,{"$f":"+INDEX(calcolo!C429:C433,VLOOKUP(1,calcolo!L429:M433,2,0))","v":{"$error":"#N/A"}}]
["Esigenze future",null,null,1,{"$f":"+IF(TYPE(MATCH(D76,calcolo!$O$435:$O$442,0))=16,\"\",INDEX(calcolo!$C$435:$C$442,MATCH(D76,calcolo!$O$435:$O$442,0)))","v":""}]
[null,null,null,2,{"$f":"+IF(TYPE(MATCH(D77,calcolo!$O$435:$O$442,0))=16,\"\",INDEX(calcolo!$C$435:$C$442,MATCH(D77,calcolo!$O$435:$O$442,0)))","v":""}]
[null,null,null,3,{"$f":"+IF(TYPE(MATCH(D78,calcolo!$O$435:$O$442,0))=16,\"\",INDEX(calcolo!$C$435:$C$442,MATCH(D78,calcolo!$O$435:$O$442,0)))","v":""}]
[null,null,null,4,{"$f":"+IF(TYPE(MATCH(D79,calcolo!$O$435:$O$442,0))=16,\"\",INDEX(calcolo!$C$435:$C$442,MATCH(D79,calcolo!$O$435:$O$442,0)))","v":""}]
[null,null,null,5,{"$f":"+IF(TYPE(MATCH(D80,calcolo!$O$435:$O$442,0))=16,\"\",INDEX(calcolo!$C$435:$C$442,MATCH(D80,calcolo!$O$435:$O$442,0)))","v":""}]
[null,null,null,6,{"$f":"+IF(TYPE(MATCH(D81,calcolo!$O$435:$O$442,0))=16,\"\",INDEX(calcolo!$C$435:$C$442,MATCH(D81,calcolo!$O$435:$O$442,0)))","v":""}]
[null,null,null,7,{"$f":"+IF(TYPE(MATCH(D82,calcolo!$O$435:$O$442,0))=16,\"\",INDEX(calcolo!$C$435:$C$442,MATCH(D82,calcolo!$O$435:$O$442,0)))","v":""}]
[null,null,null,8,{"$f":"+IF(TYPE(MATCH(D83,calcolo!$O$435:$O$442,0))=16,\"\",INDEX(calcolo!$C$435:$C$442,MATCH(D83,calcolo!$O$435:$O$442,0)))","v":""}]
["Orizzonte temporale",null,null,null,{"$f":"+INDEX(calcolo!C489:C493,VLOOKUP(1,calcolo!L489:M493,2,0))","v":{"$error":"#N/A"}}]
["Perdita Massima",null,null,null,{"$f":"+INDEX(calcolo!C447:C451,VLOOKUP(1,calcolo!L447:M451,2,0))","v":{"$error":"#N/A"}}]
["Se si concretizza la perdita massima",null,null,null,{"$f":"+INDEX(calcolo!C453:C458,VLOOKUP(1,calcolo!L453:M458,2,0))","v":{"$error":"#N/A"}}]
["Se si concretizza la perdita massima",null,null,null,{"$f":"+INDEX(calcolo!C460:C464,VLOOKUP(1,calcolo!L460:M464,2,0))","v":{"$error":"#N/A"}}]
["Accettazione rendimenti negativi",null,null,null,{"$f":"+INDEX(calcolo!C466:C470,VLOOKUP(1,calcolo!L466:M470,2,0))","v":{"$error":"#N/A"}}]
["Aumento rischi futuri",null,null,null,{"$f":"+INDEX(calcolo!C472:C474,VLOOKUP(1,calcolo!L472:M474,2,0))","v":{"$error":"#N/A"}}]
["Vincita show TV",null,null,null,{"$f":"+INDEX(calcolo!C476:C480,VLOOKUP(1,calcolo!L476:M480,2,0))","v":{"$error":"#N/A"}}]
["Investimento eredità",null,null,null,{"$f":"+INDEX(calcolo!C482:C486,VLOOKUP(1,calcolo!L482:M486,2,0))","v":{"$error":"#N/A"}}]
["Altre informazioni",null,null,null,{"$f":"+calcolo!C496:J496&calcolo!C497:J497&calcolo!C498:J498&calcolo!C499:J499","v":""}]
[]
[]
[]
[]
[]
["Conoscenza ed Esperienza",null,null,{"$f":"+calcolo!AH503","v":"scarsa"},null,"Adeguatezza"]
["Capacità di sopportare Perdite",null,null,{"$f":"+calcolo!AH510","v":"Difficile"},null,{"$f":"+calcolo!AB535","v":"*"},{"$f":"+calcolo!AC535","v":""},{"$f":"+calcolo!AD535","v":""},{"$f":"+calcolo!AE535","v":""}]
["Aspettative, obiettivi, rischio",null,null,{"$f":"+calcolo!AH515","v":"protezione"},null,{"$f":"calcolo!AB536","v":"var basso "},{"$f":"calcolo!AC536","v":"var medio basso"},{"$f":"calcolo!AD536","v":"var medio alto"},{"$f":"calcolo!AE536","v":"var alto"}]
["Orizzonte temporale",null,null,{"$f":"+calcolo!AH527","v":"< 1 ANNO"}]
[]
[]
[]
["Il/La sottoscritto/a",null,{"$f":"A6","v":"CFA SCF"},null,null,"nato il …………………………………………………"]
[]
["cod.fisc",null,{"$f":"A8","v":"codice fiscale"}]
[]
["dichiaro che il questionario è stato compilato in modo attento e ponderato in tutte le sue parti"]
[]
[]
["città"]
[]
[null,null,"firma……………………………………………………………………………….."]

{"sheet":"-","index":5,"n_rows":205,"n_cols":11,"rows_kept":205,"cut":false,"hidden":false,"merged":[[0,0,0,10],[2,1,2,9],[6,1,6,8],[7,1,7,8],[19,1,19,8],[21,1,21,8],[15,1,15,8],[16,1,16,8],[17,1,17,8],[18,1,18,8],[13,1,13,8],[3,0,3,9],[4,0,4,9],[5,1,5,8],[10,1,10,8],[11,1,11,8],[9,1,9,8],[14,1,14,8],[92,1,92,8],[93,0,93,9],[58,1,58,8],[60,1,60,8],[67,1,67,8],[69,1,69,8],[61,1,61,8],[66,1,66,8],[42,1,42,8],[44,1,44,8],[51,1,51,8],[53,1,53,8],[87,1,87,9],[48,1,48,8],[64,1,64,8],[65,1,65,8],[103,1,103,8],[105,1,105,8],[101,1,101,8],[102,1,102,8],[70,1,70,8],[71,1,71,8],[72,1,72,8],[73,1,73,8],[89,1,89,8],[90,1,90,8],[94,1,94,8],[95,1,95,8],[96,1,96,8],[97,1,97,8],[98,1,98,8],[100,1,100,8],[84,1,84,8],[85,1,85,8],[79,1,79,8],[81,1,81,8],[82,1,82,8],[83,1,83,8],[88,0,88,9],[91,1,91,8],[113,1,113,8],[114,1,114,8],[119,1,119,8],[123,1,123,8],[122,1,122,8],[117,1,117,8],[118,1,118,8],[116,1,116,8],[106,1,106,8],[107,1,107,8],[108,1,108,8],[110,1,110,8],[111,1,111,8],[112,1,112,8],[120,1,120,8],[136,11,136,17],[137,1,137,8],[132,1,132,8],[133,1,133,8],[134,1,134,8],[136,1,136,8],[130,1,130,8],[131,1,131,8],[128,1,128,9],[143,1,143,8],[142,1,142,8],[158,1,158,8],[159,1,159,8],[138,1,138,8],[139,1,139,8],[140,1,140,8],[124,1,124,8],[125,1,125,8],[126,1,126,8],[144,1,144,8],[151,1,151,8],[156,1,156,8],[155,1,155,8],[157,1,157,8],[152,1,152,8],[163,1,163,8],[184,1,184,8],[149,1,149,8],[150,1,150,8],[145,1,145,8],[146,1,146,8],[148,1,148,8],[154,1,154,8],[161,1,161,8],[164,1,164,8],[165,1,165,8],[174,1,174,8],[175,1,175,8],[171,1,171,8],[172,1,172,8],[173,1,173,8],[166,1,166,8],[160,1,160,8],[194,1,194,8],[195,1,195,8],[196,1,196,8],[169,1,169,9],[170,0,170,9],[177,1,177,8],[181,1,181,8],[183,1,183,8],[178,1,178,8],[179,1,179,8],[185,1,185,8],[197,1,197,8],[199,3,199,6],[203,4,204,4],[203,5,204,5],[203,6,204,6],[203,3,204,3],[49,1,49,8],[50,1,50,8],[191,1,191,8],[193,1,193,8],[189,1,189,8],[190,1,190,8],[186,1,186,8],[188,1,188,8],[180,1,180,8],[167,1,167,8],[62,1,62,8],[63,1,63,8],[54,1,54,8],[55,1,55,8],[56,1,56,8],[57,1,57,8],[77,1,77,8],[78,1,78,8],[22,1,22,8],[23,1,23,8],[24,1,24,8],[25,1,25,8],[46,1,46,8],[47,1,47,8],[45,1,45,8],[75,1,75,8],[76,1,76,8],[38,1,38,8],[39,1,39,8],[40,1,40,8],[26,1,26,8],[27,1,27,8],[36,1,36,8],[37,1,37,8],[41,1,41,8],[34,0,34,9],[35,1,35,8],[28,1,28,8],[29,1,29,8],[30,1,30,8],[33,1,33,10]]}
["Questionario finanziario, valutazione di adeguatezza"]
[]
["A)","DATI ANAGRAFICI "]
[null,null,null,null,null,null,null,null,null,5]
[]
["A.1) ","Situazione familiare",null,null,null,null,null,null,null,{"$f":"calcolo!L9","v":0}]
[null,"Numero componenti del nucleo familiare",null,null,null,null,null,null,null,{"$f":"calcolo!L10","v":0}]
[null,"Numero percettori di reddito",null,null,null,null,null,null,null,{"$f":"calcolo!L11","v":0}]
[]
["A.2) ","Abitazione principale",null,null,null,null,null,null,null,{"$f":"calcolo!L36","v":0}]
[null,"a) in affitto",null,null,null,null,null,null,null,{"$f":"calcolo!L37","v":0}]
[null,"b) casa di proprietà",null,null,null,null,null,null,null,{"$f":"calcolo!L38","v":0}]
[]
["A.3) ","Situazione occupazionale",null,null,null,null,null,null,null,{"$f":"calcolo!L42","v":0}]
[null,"a) non occupato",null,null,null,null,null,null,null,{"$f":"calcolo!L43","v":0}]
[null,"b) occupato con contratto temporaneo/a progetto",null,null,null,null,null,null,null,{"$f":"calcolo!L44","v":0}]
[null,"c) pensionato",null,null,null,null,null,null,null,{"$f":"calcolo!L45","v":0}]
[null,"d) lavoratore dipendente/subordinato con contratto a tempo indeterminato",null,null,null,null,null,null,null,{"$f":"calcolo!L46","v":0}]
[null,"e) lavoratore autonomo/libero professionista",null,null,null,null,null,null,null,{"$f":"calcolo!L47","v":0}]
[null,"f) imprenditore",null,null,null,null,null,null,null,{"$f":"calcolo!L48","v":0}]
[]
["A.4)","Lavora o ha mai lavorato nel settore della finanza o in aziende con compiti che presuppongono competenze specifiche inerenti il campo finanziario?",null,null,null,null,null,null,null,{"$f":"calcolo!L50","v":0}]
[null,"a) no",null,null,null,null,null,null,null,{"$f":"calcolo!L51","v":0}]
[null,"b) si",null,null,null,null,null,null,null,{"$f":"calcolo!L52","v":0}]
[null,null,null,null,null,null,null,null,null,{"$f":"calcolo!L53","v":0}]
["A.5) ","Titolo di studio",null,null,null,null,null,null,null,{"$f":"calcolo!L54","v":0}]
[null,"a) nessun titolo di studio",null,null,null,null,null,null,null,{"$f":"calcolo!L55","v":0}]
[null,"b) licenza elementare",null,null,null,null,null,null,null,{"$f":"calcolo!L56","v":0}]
[null,"c) licenza media",null,null,null,null,null,null,null,{"$f":"calcolo!L57","v":0}]
[null,"d) diploma di scuola superiore",null,null,null,null,null,null,null,{"$f":"calcolo!L58","v":0}]
[null,"e) laurea",null,null,null,null,null,null,null,{"$f":"calcolo!#REF!","v":{"$error":"#REF!"}}]
[]
[]
["B)","ESPERIENZA FINANZIARIA E CONOSCENZA"]
[null,null,null,null,null,null,null,null,null,5]
["B.1) ","Di quali strumenti finanziari ha conoscenza?",null,null,null,null,null,null,null,{"$f":"calcolo!L60","v":0}]
[null,"a) nessuno",null,null,null,null,null,null,null,{"$f":"calcolo!L61","v":0}]
[null,"b) titoli di stato",null,null,null,null,null,null,null,{"$f":"calcolo!L62","v":0}]
[null,"c) titoli di stato, obbligazioni o fondi/etf obbligazionari",null,null,null,null,null,null,null,{"$f":"calcolo!L75","v":0}]
[null,"d) titoli di stato, obbligazioni o fondi/etf obbligazionari, obbligazioni strutturate e/o polizze index ed unit linked",null,null,null,null,null,null,null,{"$f":"calcolo!L88","v":0}]
[null,"f) titoli di stato, obbligazioni o fondi/etf obbligazionari, obbligazioni strutturate e/o polizze index ed unit linked, azioni o fondi/etf azionari",null,null,null,null,null,null,null,{"$f":"calcolo!L106","v":0}]
[null,"g) titoli di stato, obbligazioni o fondi/etf obbligazionari, obbligazioni strutturate e/o polizze index ed unit linked, azioni o fondi/etf azionari, certificates ed exange traded commodities",null,null,null,null,null,null,null,{"$f":"calcolo!L114","v":0}]
[null,"h) titoli di stato, obbligazioni o fondi/etf obbligazionari, obbligazioni strutturate e/o polizze index ed unit linked, azioni o fondi/etf azionari, certificates ed exange traded commodities, fondi hedge e strumenti derivati",null,null,null,null,null,null,null,{"$f":"calcolo!L127","v":0}]
[null,null,null,null,null,null,null,null,{"$f":"IF(J44>0,IF(K44>0,1,0),0)","v":0}]
["B.2) ","Con quali tipi di investimento ha dimestichezza?",null,null,null,null,null,null,null,{"$f":"calcolo!L174","v":0}]
[null,"a) nessuno",null,null,null,null,null,null,null,{"$f":"calcolo!L175","v":0}]
[null,"b) titoli di stato",null,null,null,null,null,null,null,{"$f":"calcolo!L176","v":0}]
[null,"c) titoli di stato, obbligazioni o fondi/etf obbligazionari",null,null,null,null,null,null,null,{"$f":"calcolo!L196","v":0}]
[null,"d) titoli di stato, obbligazioni o fondi/etf obbligazionari, obbligazioni strutturate e/o polizze index ed unit linked",null,null,null,null,null,null,null,{"$f":"calcolo!L216","v":0}]
[null,"f) titoli di stato, obbligazioni o fondi/etf obbligazionari, obbligazioni strutturate e/o polizze index ed unit linked, azioni o fondi/etf azionari",null,null,null,null,null,null,null,{"$f":"calcolo!L236","v":0}]
[null,"g) titoli di stato, obbligazioni o fondi/etf obbligazionari, obbligazioni strutturate e/o polizze index ed unit linked, azioni o fondi/etf azionari, certificates ed exange traded commodities",null,null,null,null,null,null,null,{"$f":"calcolo!L256","v":0}]
[null,"h) titoli di stato, obbligazioni o fondi/etf obbligazionari, obbligazioni strutturate e/o polizze index ed unit linked, azioni o fondi/etf azionari, certificates ed exange traded commodities, fondi hedge e strumenti derivati",null,null,null,null,null,null,null,{"$f":"calcolo!L336","v":0}]
[null,null,null,null,null,null,null,null,{"$f":"IF(J53>0,IF(K53>0,1,0),0)","v":0},null,{"$f":"SUM(K49:K52)","v":0}]
["B. 3) ","Qual è la Sua principale fonte di informazione Finanziaria?",null,null,null,null,null,null,null,{"$f":"calcolo!L356","v":0}]
[null,"a) Amici e conoscenti",null,null,null,null,null,null,null,{"$f":"calcolo!L357","v":0}]
[null,"b) Stampa generica",null,null,null,null,null,null,null,{"$f":"calcolo!L358","v":0}]
[null,"c) la Banca/Promotori/Agenti",null,null,null,null,null,null,null,{"$f":"calcolo!L359","v":0}]
[null,"d) Consulenti indipendenti",null,null,null,null,null,null,null,{"$f":"calcolo!L360","v":0}]
[null,"e) Internet e Stampa specializzata",null,null,null,null,null,null,null,{"$f":"calcolo!L361","v":0}]
[]
["B. 4) ","Qual è la natura delle operazioni da Lei realizzate?",null,null,null,null,null,null,null,{"$f":"calcolo!#REF!","v":{"$error":"#REF!"}}]
[null,"a) nessuno",null,null,null,null,null,null,null,{"$f":"calcolo!#REF!","v":{"$error":"#REF!"}}]
[null,"b) titoli di stato",null,null,null,null,null,null,null,{"$f":"calcolo!#REF!","v":{"$error":"#REF!"}}]
[null,"c) titoli di stato, obbligazioni o fondi/etf obbligazionari",null,null,null,null,null,null,null,{"$f":"calcolo!#REF!","v":{"$error":"#REF!"}}]
[null,"d) titoli di stato, obbligazioni o fondi/etf obbligazionari, obbligazioni strutturate e/o polizze index ed unit linked",null,null,null,null,null,null,null,{"$f":"calcolo!#REF!","v":{"$error":"#REF!"}}]
[null,"f) titoli di stato, obbligazioni o fondi/etf obbligazionari, obbligazioni strutturate e/o polizze index ed unit linked, azioni o fondi/etf azionari",null,null,null,null,null,null,null,{"$f":"calcolo!#REF!","v":{"$error":"#REF!"}}]
[null,"g) titoli di stato, obbligazioni o fondi/etf obbligazionari, obbligazioni strutturate e/o polizze index ed unit linked, azioni o fondi/etf azionari, certificates ed exange traded commodities",null,null,null,null,null,null,null,{"$f":"calcolo!#REF!","v":{"$error":"#REF!"}}]
[null,"h) titoli di stato, obbligazioni o fondi/etf obbligazionari, obbligazioni strutturate e/o polizze index ed unit linked, azioni o fondi/etf azionari, certificates ed exange traded commodities, fondi hedge e strumenti derivati",null,null,null,null,null,null,null,{"$f":"calcolo!#REF!","v":{"$error":"#REF!"}}]
[]
["B. 5) ","Qual è la frequenza normale delle operazioni finanziarie da Lei effettuate?",null,null,null,null,null,null,null,{"$f":"calcolo!#REF!","v":{"$error":"#REF!"}}]
[null,"a) annuale o più ",null,null,null,null,null,null,null,{"$f":"calcolo!#REF!","v":{"$error":"#REF!"}}]
[null,"b) semestrale/trimestrale",null,null,null,null,null,null,null,{"$f":"calcolo!#REF!","v":{"$error":"#REF!"}}]
[null,"c) mensile",null,null,null,null,null,null,null,{"$f":"calcolo!#REF!","v":{"$error":"#REF!"}}]
[null,"d) settimanale/giornaliera",null,null,null,null,null,null,null,{"$f":"calcolo!#REF!","v":{"$error":"#REF!"}}]
[]
["B. 6) ","Qual è il volume medio delle operazioni finanziarie da Lei effettuate?",null,null,null,null,null,null,null,{"$f":"calcolo!#REF!","v":{"$error":"#REF!"}}]
[null,"< 10.000 €",null,null,null,null,null,null,null,{"$f":"calcolo!#REF!","v":{"$error":"#REF!"}}]
[null,"10.000 € < volume < 30.000 €",null,null,null,null,null,null,null,{"$f":"calcolo!#REF!","v":{"$error":"#REF!"}}]
[null,"30.000 € < volume < 50.000 €",null,null,null,null,null,null,null,{"$f":"calcolo!#REF!","v":{"$error":"#REF!"}}]
[null,"volume > 50.000 €",null,null,null,null,null,null,null,{"$f":"calcolo!#REF!","v":{"$error":"#REF!"}}]
[]
["B. 7) ","In quale periodo ha realizzato le suddette operazioni?",null,null,null,null,null,null,null,{"$f":"calcolo!#REF!","v":{"$error":"#REF!"}}]
[null,"Più di 3 anni fa",null,null,null,null,null,null,null,{"$f":"calcolo!#REF!","v":{"$error":"#REF!"}}]
[null,"Negli ultimi tre anni",null,null,null,null,null,null,null,{"$f":"calcolo!#REF!","v":{"$error":"#REF!"}}]
[null,"Negli ultimi due anni",null,null,null,null,null,null,null,{"$f":"calcolo!#REF!","v":{"$error":"#REF!"}}]
[null,"Nell'ultimo anno",null,null,null,null,null,null,null,{"$f":"calcolo!#REF!","v":{"$error":"#REF!"}}]
[]
["C)","SITUAZIONE FINANZIARIA"]
[]
["C. 1)","A quanto ammonta il Suo patrimonio complessivo?",null,null,null,null,null,null,null,{"$f":"calcolo!L366","v":0}]
[null,"a) dispongo di un patrimonio finanziario fino a 100.000 euro",null,null,null,null,null,null,null,{"$f":"calcolo!L367","v":0}]
[null,"b) dispongo di un patrimonio finanziario compreso tra 100.000 e 500.000 di euro",null,null,null,null,null,null,null,{"$f":"calcolo!L368","v":0}]
[null,"c) dispongo di un patrimonio finanziario superiore a 500.000 di euro",null,null,null,null,null,null,null,{"$f":"calcolo!L369","v":0}]
[]
["C. 2) ","Quanto rappresenta, in termini percentuali, il peso degli investimenti oggetto della consulenza , rispetto al Suo patrimonio finanziario complessivo?",null,null,null,null,null,null,null,{"$f":"calcolo!L371","v":0}]
[null,"a) si tratta del 100%",null,null,null,null,null,null,null,{"$f":"calcolo!L372","v":0}]
[null,"b) più del 50%",null,null,null,null,null,null,null,{"$f":"calcolo!L373","v":0}]
[null,"c) dal 10% al 50%",null,null,null,null,null,null,null,{"$f":"calcolo!L374","v":0}]
[null,"d) meno del 10%",null,null,null,null,null,null,null,{"$f":"calcolo!L375","v":0}]
[]
["C.3) ","Qual è la sua fonte di reddito escluso il reddito da lavoro/impresa/pensione?",null,null,null,null,null,null,null,{"$f":"calcolo!L383","v":0}]
[null,"a) solo finanziario (attività liquide e investimenti)",null,null,null,null,null,null,null,{"$f":"calcolo!L384","v":0}]
[null,"b) solo immobiliare",null,null,null,null,null,null,null,{"$f":"calcolo!L385","v":0}]
[null,"c) finanziario e immobiliare",null,null,null,null,null,null,null,{"$f":"calcolo!L386","v":0}]
[]
["C.4) ","Il Suo tenore di vita dipende dall'utilizzo dei flussi generati dagli investimenti finanziari?",null,null,null,null,null,null,null,{"$f":"calcolo!L388","v":0}]
[null,"a) si, utilizzo tutti i redditi derivanti dai miei investimenti per mantenere inalterato il mio tenore di vita.",null,null,null,null,null,null,null,{"$f":"calcolo!L389","v":0}]
[null,"b) si, utilizzo fino al 50% dei redditi derivanti dali miei investimenti per mantenere inalterato il mio tenore di vita",null,null,null,null,null,null,null,{"$f":"calcolo!L390","v":0}]
[null,"c) no, non utilizzo questi redditi per mantenere costante il mio tenore di vita",null,null,null,null,null,null,null,{"$f":"calcolo!L391","v":0}]
[]
["C.5) ","Qual è il Suo reddito netto su base annua ?",null,null,null,null,null,null,null,{"$f":"calcolo!L393","v":0},{"$f":"calcolo!M393","v":0}]
[null,"a) fino a 15.000 Euro",null,null,null,null,null,null,null,{"$f":"calcolo!L394","v":0},{"$f":"calcolo!M394","v":1}]
[null,"b) da 15.000 a 30.000 Euro",null,null,null,null,null,null,null,{"$f":"calcolo!L395","v":0},{"$f":"calcolo!M395","v":2}]
[null,"c) da 30.000 a 60.000 Euro",null,null,null,null,null,null,null,{"$f":"calcolo!L396","v":0},{"$f":"calcolo!M396","v":3}]
[null,"d) oltre 60.000",null,null,null,null,null,null,null,{"$f":"calcolo!L397","v":0},{"$f":"calcolo!M397","v":4}]
[]
["C.6) ","A quanto ammonta il Suo risparmio su base annua ?",null,null,null,null,null,null,null,{"$f":"calcolo!L406","v":0},{"$f":"calcolo!M406","v":0}]
[null,"a) fino a 5.000 Euro",null,null,null,null,null,null,null,{"$f":"calcolo!L407","v":0},{"$f":"calcolo!M407","v":1}]
[null,"b) da 5.000 a 15.000 Euro",null,null,null,null,null,null,null,{"$f":"calcolo!L408","v":0},{"$f":"calcolo!M408","v":2}]
[null,"c) da 15.000 a 50.000 Euro",null,null,null,null,null,null,null,{"$f":"calcolo!L409","v":0},{"$f":"calcolo!M409","v":3}]
[null,"d) oltre 50.000",null,null,null,null,null,null,null,{"$f":"calcolo!L410","v":0},{"$f":"calcolo!M410","v":4}]
[]
["C.7) ","A quanto ammontano i suoi impegni finanziari?",null,null,null,null,null,null,null,{"$f":"calcolo!L412","v":0},"spesa annua"]
[null,"a) oltre il triplo del mio reddito annuo",null,null,null,null,null,null,null,{"$f":"calcolo!L413","v":0},{"$f":"calcolo!M413","v":1}]
[null,"b) circa il triplo del mio reddito annuo",null,null,null,null,null,null,null,{"$f":"calcolo!L414","v":0},{"$f":"calcolo!M414","v":2}]
[null,"c) circa il valore del mio reddito annuo",null,null,null,null,null,null,null,{"$f":"calcolo!L415","v":0},{"$f":"calcolo!M415","v":3}]
[null,"d) non ho impegni finanziari",null,null,null,null,null,null,null,{"$f":"calcolo!L416","v":0},{"$f":"calcolo!M416","v":4}]
[]
["D)","OBIETTIVI D'INVESTIMENTO E PROPENSIONE AL RISCHIO"]
[]
["D.1) ","Qual è l'obiettivo dei Suoi investimenti?",null,null,null,null,null,null,null,{"$f":"calcolo!L428","v":0}]
[null,"a) Impiego temporaneo di liquidità (investire a breve termine in strumenti prontamente liquidabili e conseguentemente con redditività ridotta)",null,null,null,null,null,null,null,{"$f":"calcolo!L429","v":0}]
[null,"b) proteggere nel tempo il capitale investito e ricevere flussi di cassa periodici (cedole, dividendi, …) anche contenuti, costanti e prevedibili.",null,null,null,null,null,null,null,{"$f":"calcolo!L430","v":0}]
[null,"c) crescita del capitale, con rendimenti attesi superiori ai tassi di inflazione, pur accettando il rischio di moderate oscillazioni.",null,null,null,null,null,null,null,{"$f":"calcolo!L431","v":0}]
[null,"d) crescita significativa del capitale, essendo disposto a sopportare anche forti oscillazioni di valore e rischio di perdite consistenti",null,null,null,null,null,null,null,{"$f":"calcolo!L432","v":0}]
[]
["D.2) ","Fatto ipoteticamente 100.000 euro il Suo portafoglio finanziario e tenendo presente che il valore dello stesso necessariamente oscillerà nel tempo, quant'è la perdita massima che è disposto ad accettare nell'arco di 12 mesi? (V.A.R. su 252 gg lavorativi con confidenza al 99%)",null,null,null,null,null,null,null,{"$f":"calcolo!L446","v":0}]
[null,"a) inferiore al 2%, ovvero portafoglio finale di 98.000 euro",null,null,null,null,null,null,null,{"$f":"calcolo!L447","v":0}]
[null,"b) dal 2% al 7%, ovvero portafoglio finale da 93.000 a 98.000 euro",null,null,null,null,null,null,null,{"$f":"calcolo!L448","v":0}]
[null,"c) dal 7% al 12%, ovvero portafoglio finale da 88.000 a 93.000 euro",null,null,null,null,null,null,null,{"$f":"calcolo!L449","v":0}]
[null,"d) superiore al 12%, ovvero portafoglio finale anche inferiore ad 88.000 euro",null,null,null,null,null,null,null,{"$f":"calcolo!L450","v":0}]
[]
["D.3) ","Nel caso si fosse concretizzata, nell'arco di poco tempo, la perdita massima da Lei indicata nella domanda precedente:",null,null,null,null,null,null,null,{"$f":"calcolo!L452","v":0}]
[null,"a) sostituirei gli investimenti acquistando strumenti di liquidità ",null,null,null,null,null,null,null,{"$f":"calcolo!L453","v":0}]
[null,"b) sostituirei gli investimenti con altri con oscillazione inferiore",null,null,null,null,null,null,null,{"$f":"calcolo!L454","v":0}]
[null,"c) lascerei inalterato il portafoglio",null,null,null,null,null,null,null,{"$f":"calcolo!L455","v":0}]
[null,"d) incrementerei gli strumenti calati maggiormente",null,null,null,null,null,null,null,{"$f":"calcolo!L456","v":0}]
[]
["D.4) ","Nel caso si fosse concretizzata, nell'arco di poco tempo, la perdita massima da Lei indicata nella domanda D.2), quale sarebbe il Suo stato d'animo?",null,null,null,null,null,null,null,{"$f":"calcolo!L459","v":0}]
[null,"a) di forte preoccupazione con conseguente stato ansiogeno",null,null,null,null,null,null,null,{"$f":"calcolo!L460","v":0}]
[null,"b) di preoccupazione",null,null,null,null,null,null,null,{"$f":"calcolo!L461","v":0}]
[null,"c) di leggera preoccupazione",null,null,null,null,null,null,null,{"$f":"calcolo!L462","v":0}]
[null,"d) di consapevole accettazione",null,null,null,null,null,null,null,{"$f":"calcolo!L463","v":0}]
[]
["D.5) ","Nel caso si fosse concretizzata, nell'arco di poco tempo, la perdita massima da Lei indicata nella domanda D.2), a chi ne attribuirebbe la responsabilità?",null,null,null,null,null,null,null,{"$f":"calcolo!#REF!","v":{"$error":"#REF!"}}]
[null,"a) all'andamento del mercato",null,null,null,null,null,null,null,{"$f":"calcolo!#REF!","v":{"$error":"#REF!"}}]
[null,"b) ai suggerimenti errati",null,null,null,null,null,null,null,{"$f":"calcolo!#REF!","v":{"$error":"#REF!"}}]
["D.6) ","Nel caso risposta b) D.5, come reagirebbe nei confronti del Suo consulente?",null,null,null,null,null,null,null,{"$f":"calcolo!#REF!","v":{"$error":"#REF!"}}]
[null,"a) il consulente ha lavorato male e va sostituito",null,null,null,null,null,null,null,{"$f":"calcolo!#REF!","v":{"$error":"#REF!"}}]
[null,"b) il consulente ha lavorato male ma gli offro una seconda possibilità",null,null,null,null,null,null,null,{"$f":"calcolo!#REF!","v":{"$error":"#REF!"}}]
[null,"c) il consulente ha fatto il possibile",null,null,null,null,null,null,null,{"$f":"calcolo!#REF!","v":{"$error":"#REF!"}}]
[null,"d) il consulente va valutato su tempi più lunghi",null,null,null,null,null,null,null,{"$f":"calcolo!#REF!","v":{"$error":"#REF!"}}]
[]
["D.7) ","Qual è l'orizzonte temporale principale dei Suoi investimenti? ",null,null,null,null,null,null,null,{"$f":"calcolo!L465","v":0}]
[null,"a) breve termine; circa un anno",null,null,null,null,null,null,null,{"$f":"calcolo!L466","v":0}]
[null,"b) breve/medio termine; circa tre anni",null,null,null,null,null,null,null,{"$f":"calcolo!L467","v":0}]
[null,"c) medio termine; circa cinque anni",null,null,null,null,null,null,null,{"$f":"calcolo!L468","v":0}]
[null,"d) lungo termine; oltre cinque anni",null,null,null,null,null,null,null,{"$f":"calcolo!L469","v":0}]
[]
["E)","SITUAZIONE ASSICURATIVA"]
[]
["E.1) ","Attualmente possiede prodotti di previdenza? (ok risposta multipla)",null,null,null,null,null,null,null,{"$f":"calcolo!L533","v":0}]
[null,"a) fondo pensione di categoria",null,null,null,null,null,null,null,{"$f":"calcolo!L534","v":0}]
[null,"b) fondo pensione aperto (FPA)",null,null,null,null,null,null,null,{"$f":"calcolo!L535","v":0}]
[null,"c) piano idividuale di previdenza (PIP)",null,null,null,null,null,null,null,{"$f":"calcolo!L536","v":0}]
[null,"d) no",null,null,null,null,null,null,null,{"$f":"calcolo!K541","v":0}]
[]
["E.2) ","Possiede \"adeguati\" prodotti assicurativi di tutela personale? (ok risp multipla)",null,null,null,null,null,null,null,{"$f":"calcolo!L518","v":0}]
[null,"c) protezione assicurativa di rischio caso morte",null,null,null,null,null,null,null,{"$f":"calcolo!L519","v":0}]
[null,"c) protezione assicurativa di rischio invalidità permanente da infortunio",null,null,null,null,null,null,null,{"$f":"calcolo!L520","v":0}]
[null,"c) protezione assicurativa di rischio invalidità permanente da malattia",null,null,null,null,null,null,null,{"$f":"calcolo!L521","v":0}]
[null,"d) nessuna copertura assicurativa",null,null,null,null,null,null,null,{"$f":"calcolo!L522","v":0}]
[]
["E.3) ","Possiede \"adeguati\" prodotti assicurativi di tutela patrimoniale? (ok risp multipla)",null,null,null,null,null,null,null,{"$f":"calcolo!L528","v":0}]
[null,"c) protezione assicurativa di rischio Rc famiglia ed abitazione",null,null,null,null,null,null,null,{"$f":"calcolo!L529","v":0}]
[null,"c) protezione assicurativa di rischio professionale",null,null,null,null,null,null,null,{"$f":"calcolo!L530","v":0}]
[null,"d) nessuna copertura assicurativa",null,null,null,null,null,null,null,{"$f":"calcolo!L531","v":0}]
[]
["E.4) ","Ha eventuali soggetti da tutelare (carichi familiari o altri soggetti)?",null,null,null,null,null,null,null,{"$f":"calcolo!#REF!","v":{"$error":"#REF!"}}]
[null,"a) sì",null,null,null,null,null,null,null,{"$f":"calcolo!#REF!","v":{"$error":"#REF!"}}]
[null,"b) sì, solo per i rischi legati alla mia attività (RCT - RCTO ecc)",null,null,null,null,null,null,null,{"$f":"calcolo!#REF!","v":{"$error":"#REF!"}}]
[null,"c) no",null,null,null,null,null,null,null,{"$f":"calcolo!#REF!","v":{"$error":"#REF!"}}]
[]
["E.5) ","Quanto pensa di dover integrare la Sua pensione futura per mantenere l'attuale tenore di vita?",null,null,null,null,null,null,null,{"$f":"calcolo!#REF!","v":{"$error":"#REF!"}}]
[null,"a) oltre il 40%",null,null,null,null,null,null,null,{"$f":"calcolo!#REF!","v":{"$error":"#REF!"}}]
[null,"b) dal 25% al 40%",null,null,null,null,null,null,null,{"$f":"calcolo!#REF!","v":{"$error":"#REF!"}}]
[null,"c) meno del 25%",null,null,null,null,null,null,null,{"$f":"calcolo!#REF!","v":{"$error":"#REF!"}}]
[null,"d) nessuna integrazione",null,null,null,null,null,null,null,{"$f":"calcolo!#REF!","v":{"$error":"#REF!"}}]
[]
[null,null,null,"Adeguatezza"]
[null,null,null,{"$f":"calcolo!AB534","v":0},{"$f":"calcolo!AC534","v":0},{"$f":"calcolo!AD534","v":0},{"$f":"calcolo!AE534","v":0}]
[null,null,null,{"$f":"IF(D201=MAX($D201:$G201),\"*\",\"\")","v":"*"},{"$f":"IF(E201=MAX($D201:$G201),\"*\",\"\")","v":"*"},{"$f":"IF(F201=MAX($D201:$G201),\"*\",\"\")","v":"*"},{"$f":"IF(G201=MAX($D201:$G201),\"*\",\"\")","v":"*"}]
[null,null,null,1,2,3,4]
[null,null,null,"var basso o port obbl","var medio basso","var medio alto","var alto"]
[null,null,null,"o port obbl"]